Workbook

Sheet Index
A1: Index and File Details
B3: Index | H3: File Details
B5: Inputs | D5: Inputs / Calculations | F5: Outputs | I5: Model | J5: Transgrid | Waratah Super Battery - Capex Forecast Model
I6: Author | J6: Transgrid
B7: Notes & Assumptions | D7: Calculations | F7: ='Outputs|Models'!$A$1 -> Outputs | Models | I7: Revision | J7: 2023-06-30
B8: Inputs | F8: ='Outputs|Tables'!$A$1 -> Outputs | Tables | I8: Status | J8: Regulatory proposal
F9: ='Outputs|RIN'!$A$1 -> Outputs | RIN
B12: Model Checks | H12: Instructions
B14: Worksheet | I14: Input Sheets
I15: Fill in any cells marked as input cells as seen on the right => | K15: user input
B16: =D7 -> Calculations | D16: =SUM(Calculations!A3:A209) -> 0 | I16: Historical / Not applicable
B17: =F7 -> Outputs | Models | D17: =SUM('Outputs|Models'!A2:A96) -> 0 | I17: Cells not marked as inputs should not be modified.
B18: =F8 -> Outputs | Tables | D18: =SUM('Outputs|Tables'!A2:A101) -> 0
B19: =F9 -> Outputs | RIN | D19: =SUM('Outputs|RIN'!A2:A113) -> 0
B21: Total Error Check | D21: =IF(SUM(D15:D19)=0,0,1) -> 0

Sheet Notes & Assumptions
A1: Assumptions & Notes
E3: User inputs in cells coloured like this
C4: * | E4: 1. Financial years are recorded in the Capex Forecast Model as tax years (e.g. 2017/18 is shown as 2018, 2018/19 is shown as 2019)
C5: * | E5: 2. Escalation is treated as follows:
E6: a. CPI escalation and Labour escalation are treated separately.
A9: Modifications
A10: Date | B10: Version | D10: Who | E10: Notes
A11: 2023-06-30 | B11: v1.1 | E11: Initial model development

Sheet Inputs
A1: Inputs
A2: AER amendments
A4: Output Reporting Format and Year
A5: Real
A6: 2024
A8: =IF(Real_or_Nom="Real", "Real $" & Report_Year, "$ Nominal") -> Real $2024
A10: Inflation and Labour Escalation
A13: Forecasts | K13: Rates
A14: Item | B14: Source | C14: Units | K14: =K20 -> 2020 | L14: 2021 | M14: 2022 | N14: 2023 | O14: 2024 | P14: 2025 | Q14: 2026 | R14: 2027 | S14: 2028 | T14: 2029
A15: Actual / Forecast Inflation | B15: ABS June to June / RBA Forecast | C15: % | K15: -0.003484320557 | L15: 0.03846153846 | M15: 0.06144781145 | N15: 0.063 | O15: 0.036 | P15: 0.02749847932 | Q15: 0.02749847932 | R15: 0.02749847932 | S15: 0.02749847932 | T15: 0.02749847932 | U15: ◄ Actual June year on year inflation used for 2019 to 2022. Forecast inflation for 2023 to 2029 as per Regulatory Proposal, updated for RBAs May 2023 MPS.
A16: Real labour escalation | B16: AER Final Determination / Transgrid proposal | C16: % | O16: 0.003904656476 | P16: 0.01307648255 | Q16: 0.01154643895 | R16: 0.004330457586 | S16: 0.003009413338 | T16: =AVERAGE(O16:S16) -> 0.00717348978 | U16: Note: Based on Final Decision values applied to both the opex and capex models with a placeholder value for 2028-29
A19: Cumulative Factors | K19: Cumulative factors
A20: Item | B20: Source | C20: Units | J20: =K20-1 -> 2019 | K20: 2020 | L20: =K20+1 -> 2021 | M20: 2022 | N20: 2023 | O20: 2024 | P20: 2025 | Q20: 2026 | R20: 2027 | S20: 2028 | T20: 2029 | U20: Nominal
A21: Inflation based to 2019 | B21: Calculated | C21: Factor | J21: 1 | K21: =J21*(1+K15) -> 0.9965156794 | L21: 1.034843206 | M21: 1.098432056 | N21: 1.167633275 | O21: 1.209668073 | P21: 1.242932106 | Q21: 1.277110848 | R21: 1.312229455 | S21: 1.348313769 | T21: 1.385390348
A22: Labour based to 2023 | B22: Calculated | C22: Factor | J22: 1 | K22: =J22*(1+K16) -> 1 | L22: 1 | M22: 1 | N22: 1 | O22: 1.003904656 | P22: 1.017032198 | Q22: 1.028775298 | R22: 1.033230366 | S22: 1.036339783 | T22: 1.043773956
A23: Real 2023 to Real 2024 | B23: Calculated | C23: Factor | K23: =$O$21/$N$21 -> 1.036 | L23: =$O$21/$N$21 -> 1.036 | M23: 1.036 | N23: 1.036 | O23: 1.036 | P23: 1.036 | Q23: 1.036 | R23: 1.036 | S23: 1.036 | T23: 1.036
A25: Indexation | K25: Indexation
A26: Item | B26: Source | C26: Units | K26: =K20 -> 2020 | L26: 2021 | M26: 2022 | N26: 2023 | O26: 2024 | P26: 2025 | Q26: 2026 | R26: 2027 | S26: 2028 | T26: 2029
A27: Real 2024 End Period to Nominal Mid Period | B27: Calculated | C27: Factor | K27: =K21/$O$21/(1+K$15)^0.5 -> 0.8252316 | L27: 0.8394853586 | M27: 0.8813687685 | N27: 0.9362107257 | O27: 0.9824718649 | P27: 1.013655997 | Q27: 1.041529995 | R27: 1.070170486 | S27: 1.099598547 | T27: 1.129835835
A28: Real 2019 End Period to Nominal Mid Period | B28: Calculated | C28: Factor | K28: =K27*$O$21 -> 0.9982563195 | L28: =L27*$O$21 -> 1.015498636 | M28: 1.06616366 | N28: 1.132504225 | O28: 1.188464848 | P28: 1.226187296 | Q28: 1.259905582 | R28: 1.29455107 | S28: 1.330149256 | T28: 1.366726337
A31: Capital Expenditure
A33: Direct Non-Labour Costs
A36: Direct Non-Labour Costs | By Category | E36: Conversion | H36: Expenditure | K36: Spend Profile Assumption | W36: ="$ Spend Profile (June "&$F$39&" dollars)" -> $ Spend Profile (June 2024 dollars)
A37: Category | B37: Source | C37: Units | E37: Dollar Year From | F37: Dollar Year To | H37: Value | I37: Capex Category | K37: =$K$20 -> 2020 | L37: =K37+1 -> 2021 | M37: 2022 | N37: 2023 | O37: 2024 | P37: 2025 | Q37: 2026 | R37: =Q37+1 -> 2027 | S37: =R37+1 -> 2028 | T37: =S37+1 -> 2029 | U37: Total | W37: =K37 -> 2020 | X37: =L37 -> 2021 | Y37: =M37 -> 2022 | Z37: 2023 | AA37: 2024 | AB37: 2025 | AC37: 2026 | AD37: 2027 | AE37: 2028 | AF37: 2029 | AG37: =U37 -> Total
A38: Augmentation works - Design and Construction
A39: Transmission lines uprating - Lines 39, 3L/4 & 5 - Transmission Towers | B39: Project Team Input | C39: $Millions | E39: Nominal | F39: =Report_Year -> 2024 | H39: 6.61596358 | I39: Transmission Lines - Transmission Towers | O39: 0.3445830432 | P39: 0.6554169568 | U39: =SUM(K39:T39) -> 1 | W39: =IFERROR($H39*K39 *INDEX($K$21:$T$21,,MATCH($F39,Years,0)) /IF($E39="Nominal",1/SUMPRODUCT($K39:$T39,1/$K$28:$T$28),INDEX($K$21:$T$21,,MATCH($E39,Years,0))),0) -> 0 | X39: =IFERROR($H39*L39 *INDEX($K$21:$T$21,,MATCH($F39,Years,0)) /IF($E39="Nominal",1/SUMPRODUCT($K39:$T39,1/$K$28:$T$28),INDEX($K$21:$T$21,,MATCH($E39,Years,0))),0) -> 0 | Y39: =IFERROR($H39*M39 *INDEX($K$21:$T$21,,MATCH($F39,Years,0)) /IF($E39="Nominal",1/SUMPRODUCT($K39:$T39,1/$K$28:$T$28),INDEX($K$21:$T$21,,MATCH($E39,Years,0))),0) -> 0 | Z39: =IFERROR($H39*N39 *INDEX($K$21:$T$21,,MATCH($F39,Years,0)) /IF($E39="Nominal",1/SUMPRODUCT($K39:$T39,1/$K$28:$T$28),INDEX($K$21:$T$21,,MATCH($E39,Years,0))),0) -> 0 | AA39: =IFERROR($H39*O39 *INDEX($K$21:$T$21,,MATCH($F39,Years,0)) /IF($E39="Nominal",1/SUMPRODUCT($K39:$T39,1/$K$28:$T$28),INDEX($K$21:$T$21,,MATCH($E39,Years,0))),0) -> 2.273634265 | AB39: =IFERROR($H39*P39 *INDEX($K$21:$T$21,,MATCH($F39,Years,0)) /IF($E39="Nominal",1/SUMPRODUCT($K39:$T39,1/$K$28:$T$28),INDEX($K$21:$T$21,,MATCH($E39,Years,0))),0) -> 4.324584394 | AC39: =IFERROR($H39*Q39 *INDEX($K$21:$T$21,,MATCH($F39,Years,0)) /IF($E39="Nominal",1/SUMPRODUCT($K39:$T39,1/$K$28:$T$28),INDEX($K$21:$T$21,,MATCH($E39,Years,0))),0) -> 0 | AD39: =IFERROR($H39*R39 *INDEX($K$21:$T$21,,MATCH($F39,Years,0)) /IF($E39="Nominal",1/SUMPRODUCT($K39:$T39,1/$K$28:$T$28),INDEX($K$21:$T$21,,MATCH($E39,Years,0))),0) -> 0 | AE39: =IFERROR($H39*S39 *INDEX($K$21:$T$21,,MATCH($F39,Years,0)) /IF($E39="Nominal",1/SUMPRODUCT($K39:$T39,1/$K$28:$T$28),INDEX($K$21:$T$21,,MATCH($E39,Years,0))),0) -> 0 | AF39: =IFERROR($H39*T39 *INDEX($K$21:$T$21,,MATCH($F39,Years,0)) /IF($E39="Nominal",1/SUMPRODUCT($K39:$T39,1/$K$28:$T$28),INDEX($K$21:$T$21,,MATCH($E39,Years,0))),0) -> 0 | AG39: =SUM(W39:AF39) -> 6.598218659
A40: Transmission lines uprating - Lines 39, 3L/4 & 5 - Transmission tower support structures | B40: Project Team Input | C40: $Millions | E40: Nominal | F40: =$F$39 -> 2024 | H40: 63.32382922 | I40: Transmission Lines - Transmission tower support structures | O40: 0.3079388441 | P40: 0.6920611559 | U40: =SUM(K40:T40) -> 1 | W40: =IFERROR($H40*K40 *INDEX($K$21:$T$21,,MATCH($F40,Years,0)) /IF($E40="Nominal",1/SUMPRODUCT($K40:$T40,1/$K$28:$T$28),INDEX($K$21:$T$21,,MATCH($E40,Years,0))),0) -> 0 | X40: =IFERROR($H40*L40 *INDEX($K$21:$T$21,,MATCH($F40,Years,0)) /IF($E40="Nominal",1/SUMPRODUCT($K40:$T40,1/$K$28:$T$28),INDEX($K$21:$T$21,,MATCH($E40,Years,0))),0) -> 0 | Y40: =IFERROR($H40*M40 *INDEX($K$21:$T$21,,MATCH($F40,Years,0)) /IF($E40="Nominal",1/SUMPRODUCT($K40:$T40,1/$K$28:$T$28),INDEX($K$21:$T$21,,MATCH($E40,Years,0))),0) -> 0 | Z40: =IFERROR($H40*N40 *INDEX($K$21:$T$21,,MATCH($F40,Years,0)) /IF($E40="Nominal",1/SUMPRODUCT($K40:$T40,1/$K$28:$T$28),INDEX($K$21:$T$21,,MATCH($E40,Years,0))),0) -> 0 | AA40: =IFERROR($H40*O40 *INDEX($K$21:$T$21,,MATCH($F40,Years,0)) /IF($E40="Nominal",1/SUMPRODUCT($K40:$T40,1/$K$28:$T$28),INDEX($K$21:$T$21,,MATCH($E40,Years,0))),0) -> 19.42519063 | AB40: =IFERROR($H40*P40 *INDEX($K$21:$T$21,,MATCH($F40,Years,0)) /IF($E40="Nominal",1/SUMPRODUCT($K40:$T40,1/$K$28:$T$28),INDEX($K$21:$T$21,,MATCH($E40,Years,0))),0) -> 43.65613541 | AC40: =IFERROR($H40*Q40 *INDEX($K$21:$T$21,,MATCH($F40,Years,0)) /IF($E40="Nominal",1/SUMPRODUCT($K40:$T40,1/$K$28:$T$28),INDEX($K$21:$T$21,,MATCH($E40,Years,0))),0) -> 0 | AD40: =IFERROR($H40*R40 *INDEX($K$21:$T$21,,MATCH($F40,Years,0)) /IF($E40="Nominal",1/SUMPRODUCT($K40:$T40,1/$K$28:$T$28),INDEX($K$21:$T$21,,MATCH($E40,Years,0))),0) -> 0 | AE40: =IFERROR($H40*S40 *INDEX($K$21:$T$21,,MATCH($F40,Years,0)) /IF($E40="Nominal",1/SUMPRODUCT($K40:$T40,1/$K$28:$T$28),INDEX($K$21:$T$21,,MATCH($E40,Years,0))),0) -> 0 | AF40: =IFERROR($H40*T40 *INDEX($K$21:$T$21,,MATCH($F40,Years,0)) /IF($E40="Nominal",1/SUMPRODUCT($K40:$T40,1/$K$28:$T$28),INDEX($K$21:$T$21,,MATCH($E40,Years,0))),0) -> 0 | AG40: =SUM(W40:AF40) -> 63.08132604
A41: Substation uprating - Substation switchbays | B41: Project Team Input | C41: $Millions | E41: Nominal | F41: =$F$39 -> 2024 | H41: 107.9820415 | I41: Substations - Substation switchbays | O41: 0.3209058887 | P41: 0.5773972229 | Q41: 0.1016968884 | U41: =SUM(K41:T41) -> 1 | W41: =IFERROR($H41*K41 *INDEX($K$21:$T$21,,MATCH($F41,Years,0)) /IF($E41="Nominal",1/SUMPRODUCT($K41:$T41,1/$K$28:$T$28),INDEX($K$21:$T$21,,MATCH($E41,Years,0))),0) -> 0 | X41: =IFERROR($H41*L41 *INDEX($K$21:$T$21,,MATCH($F41,Years,0)) /IF($E41="Nominal",1/SUMPRODUCT($K41:$T41,1/$K$28:$T$28),INDEX($K$21:$T$21,,MATCH($E41,Years,0))),0) -> 0 | Y41: =IFERROR($H41*M41 *INDEX($K$21:$T$21,,MATCH($F41,Years,0)) /IF($E41="Nominal",1/SUMPRODUCT($K41:$T41,1/$K$28:$T$28),INDEX($K$21:$T$21,,MATCH($E41,Years,0))),0) -> 0 | Z41: =IFERROR($H41*N41 *INDEX($K$21:$T$21,,MATCH($F41,Years,0)) /IF($E41="Nominal",1/SUMPRODUCT($K41:$T41,1/$K$28:$T$28),INDEX($K$21:$T$21,,MATCH($E41,Years,0))),0) -> 0 | AA41: =IFERROR($H41*O41 *INDEX($K$21:$T$21,,MATCH($F41,Years,0)) /IF($E41="Nominal",1/SUMPRODUCT($K41:$T41,1/$K$28:$T$28),INDEX($K$21:$T$21,,MATCH($E41,Years,0))),0) -> 34.44039948 | AB41: =IFERROR($H41*P41 *INDEX($K$21:$T$21,,MATCH($F41,Years,0)) /IF($E41="Nominal",1/SUMPRODUCT($K41:$T41,1/$K$28:$T$28),INDEX($K$21:$T$21,,MATCH($E41,Years,0))),0) -> 61.9676725 | AC41: =IFERROR($H41*Q41 *INDEX($K$21:$T$21,,MATCH($F41,Years,0)) /IF($E41="Nominal",1/SUMPRODUCT($K41:$T41,1/$K$28:$T$28),INDEX($K$21:$T$21,,MATCH($E41,Years,0))),0) -> 10.9143571 | AD41: =IFERROR($H41*R41 *INDEX($K$21:$T$21,,MATCH($F41,Years,0)) /IF($E41="Nominal",1/SUMPRODUCT($K41:$T41,1/$K$28:$T$28),INDEX($K$21:$T$21,,MATCH($E41,Years,0))),0) -> 0 | AE41: =IFERROR($H41*S41 *INDEX($K$21:$T$21,,MATCH($F41,Years,0)) /IF($E41="Nominal",1/SUMPRODUCT($K41:$T41,1/$K$28:$T$28),INDEX($K$21:$T$21,,MATCH($E41,Years,0))),0) -> 0 | AF41: =IFERROR($H41*T41 *INDEX($K$21:$T$21,,MATCH($F41,Years,0)) /IF($E41="Nominal",1/SUMPRODUCT($K41:$T41,1/$K$28:$T$28),INDEX($K$21:$T$21,,MATCH($E41,Years,0))),0) -> 0 | AG41: =SUM(W41:AF41) -> 107.3224291
A42: Secondary systems uprating | B42: Project Team Input | C42: $Millions | E42: Nominal | F42: =$F$39 -> 2024 | H42: 0 | I42: Secondary Systems - Scada, network control and protection systems | U42: =SUM(K42:T42) -> 0 | W42: =IFERROR($H42*K42 *INDEX($K$21:$T$21,,MATCH($F42,Years,0)) /IF($E42="Nominal",1/SUMPRODUCT($K42:$T42,1/$K$28:$T$28),INDEX($K$21:$T$21,,MATCH($E42,Years,0))),0) -> 0 | X42: =IFERROR($H42*L42 *INDEX($K$21:$T$21,,MATCH($F42,Years,0)) /IF($E42="Nominal",1/SUMPRODUCT($K42:$T42,1/$K$28:$T$28),INDEX($K$21:$T$21,,MATCH($E42,Years,0))),0) -> 0 | Y42: =IFERROR($H42*M42 *INDEX($K$21:$T$21,,MATCH($F42,Years,0)) /IF($E42="Nominal",1/SUMPRODUCT($K42:$T42,1/$K$28:$T$28),INDEX($K$21:$T$21,,MATCH($E42,Years,0))),0) -> 0 | Z42: =IFERROR($H42*N42 *INDEX($K$21:$T$21,,MATCH($F42,Years,0)) /IF($E42="Nominal",1/SUMPRODUCT($K42:$T42,1/$K$28:$T$28),INDEX($K$21:$T$21,,MATCH($E42,Years,0))),0) -> 0 | AA42: =IFERROR($H42*O42 *INDEX($K$21:$T$21,,MATCH($F42,Years,0)) /IF($E42="Nominal",1/SUMPRODUCT($K42:$T42,1/$K$28:$T$28),INDEX($K$21:$T$21,,MATCH($E42,Years,0))),0) -> 0 | AB42: =IFERROR($H42*P42 *INDEX($K$21:$T$21,,MATCH($F42,Years,0)) /IF($E42="Nominal",1/SUMPRODUCT($K42:$T42,1/$K$28:$T$28),INDEX($K$21:$T$21,,MATCH($E42,Years,0))),0) -> 0 | AC42: =IFERROR($H42*Q42 *INDEX($K$21:$T$21,,MATCH($F42,Years,0)) /IF($E42="Nominal",1/SUMPRODUCT($K42:$T42,1/$K$28:$T$28),INDEX($K$21:$T$21,,MATCH($E42,Years,0))),0) -> 0 | AD42: =IFERROR($H42*R42 *INDEX($K$21:$T$21,,MATCH($F42,Years,0)) /IF($E42="Nominal",1/SUMPRODUCT($K42:$T42,1/$K$28:$T$28),INDEX($K$21:$T$21,,MATCH($E42,Years,0))),0) -> 0 | AE42: =IFERROR($H42*S42 *INDEX($K$21:$T$21,,MATCH($F42,Years,0)) /IF($E42="Nominal",1/SUMPRODUCT($K42:$T42,1/$K$28:$T$28),INDEX($K$21:$T$21,,MATCH($E42,Years,0))),0) -> 0 | AF42: =IFERROR($H42*T42 *INDEX($K$21:$T$21,,MATCH($F42,Years,0)) /IF($E42="Nominal",1/SUMPRODUCT($K42:$T42,1/$K$28:$T$28),INDEX($K$21:$T$21,,MATCH($E42,Years,0))),0) -> 0 | AG42: =SUM(W42:AF42) -> 0
A43: Secondary systems uprating | B43: Project Team Input | C43: $Millions | E43: Nominal | F43: =$F$39 -> 2024 | H43: 0 | I43: Communications (short life) - Scada, network control and protection systems | U43: =SUM(K43:T43) -> 0 | W43: =IFERROR($H43*K43 *INDEX($K$21:$T$21,,MATCH($F43,Years,0)) /IF($E43="Nominal",1/SUMPRODUCT($K43:$T43,1/$K$28:$T$28),INDEX($K$21:$T$21,,MATCH($E43,Years,0))),0) -> 0 | X43: =IFERROR($H43*L43 *INDEX($K$21:$T$21,,MATCH($F43,Years,0)) /IF($E43="Nominal",1/SUMPRODUCT($K43:$T43,1/$K$28:$T$28),INDEX($K$21:$T$21,,MATCH($E43,Years,0))),0) -> 0 | Y43: =IFERROR($H43*M43 *INDEX($K$21:$T$21,,MATCH($F43,Years,0)) /IF($E43="Nominal",1/SUMPRODUCT($K43:$T43,1/$K$28:$T$28),INDEX($K$21:$T$21,,MATCH($E43,Years,0))),0) -> 0 | Z43: =IFERROR($H43*N43 *INDEX($K$21:$T$21,,MATCH($F43,Years,0)) /IF($E43="Nominal",1/SUMPRODUCT($K43:$T43,1/$K$28:$T$28),INDEX($K$21:$T$21,,MATCH($E43,Years,0))),0) -> 0 | AA43: =IFERROR($H43*O43 *INDEX($K$21:$T$21,,MATCH($F43,Years,0)) /IF($E43="Nominal",1/SUMPRODUCT($K43:$T43,1/$K$28:$T$28),INDEX($K$21:$T$21,,MATCH($E43,Years,0))),0) -> 0 | AB43: =IFERROR($H43*P43 *INDEX($K$21:$T$21,,MATCH($F43,Years,0)) /IF($E43="Nominal",1/SUMPRODUCT($K43:$T43,1/$K$28:$T$28),INDEX($K$21:$T$21,,MATCH($E43,Years,0))),0) -> 0 | AC43: =IFERROR($H43*Q43 *INDEX($K$21:$T$21,,MATCH($F43,Years,0)) /IF($E43="Nominal",1/SUMPRODUCT($K43:$T43,1/$K$28:$T$28),INDEX($K$21:$T$21,,MATCH($E43,Years,0))),0) -> 0 | AD43: =IFERROR($H43*R43 *INDEX($K$21:$T$21,,MATCH($F43,Years,0)) /IF($E43="Nominal",1/SUMPRODUCT($K43:$T43,1/$K$28:$T$28),INDEX($K$21:$T$21,,MATCH($E43,Years,0))),0) -> 0 | AE43: =IFERROR($H43*S43 *INDEX($K$21:$T$21,,MATCH($F43,Years,0)) /IF($E43="Nominal",1/SUMPRODUCT($K43:$T43,1/$K$28:$T$28),INDEX($K$21:$T$21,,MATCH($E43,Years,0))),0) -> 0 | AF43: =IFERROR($H43*T43 *INDEX($K$21:$T$21,,MATCH($F43,Years,0)) /IF($E43="Nominal",1/SUMPRODUCT($K43:$T43,1/$K$28:$T$28),INDEX($K$21:$T$21,,MATCH($E43,Years,0))),0) -> 0 | AG43: =SUM(W43:AF43) -> 0
A45: SIPS - Design and Construction
A46: Design, equipment procurement and installation works for SIPS | B46: Project Team Input | C46: $Millions | E46: 2023 | F46: =$F$39 -> 2024 | H46: 2.0212312 | I46: SIPS Control | N46: 0.1911988349 | O46: 0.778126792 | P46: 0.03067437312 | U46: =SUM(K46:T46) -> 1 | W46: =IFERROR($H46*K46 *INDEX($K$21:$T$21,,MATCH($F46,Years,0)) /IF($E46="Nominal",1/SUMPRODUCT($K46:$T46,1/$K$28:$T$28),INDEX($K$21:$T$21,,MATCH($E46,Years,0))),0) -> 0 | X46: =IFERROR($H46*L46 *INDEX($K$21:$T$21,,MATCH($F46,Years,0)) /IF($E46="Nominal",1/SUMPRODUCT($K46:$T46,1/$K$28:$T$28),INDEX($K$21:$T$21,,MATCH($E46,Years,0))),0) -> 0 | Y46: =IFERROR($H46*M46 *INDEX($K$21:$T$21,,MATCH($F46,Years,0)) /IF($E46="Nominal",1/SUMPRODUCT($K46:$T46,1/$K$28:$T$28),INDEX($K$21:$T$21,,MATCH($E46,Years,0))),0) -> 0 | Z46: =IFERROR($H46*N46 *INDEX($K$21:$T$21,,MATCH($F46,Years,0)) /IF($E46="Nominal",1/SUMPRODUCT($K46:$T46,1/$K$28:$T$28),INDEX($K$21:$T$21,,MATCH($E46,Years,0))),0) -> 0.4003695043 | AA46: =IFERROR($H46*O46 *INDEX($K$21:$T$21,,MATCH($F46,Years,0)) /IF($E46="Nominal",1/SUMPRODUCT($K46:$T46,1/$K$28:$T$28),INDEX($K$21:$T$21,,MATCH($E46,Years,0))),0) -> 1.629394019 | AB46: =IFERROR($H46*P46 *INDEX($K$21:$T$21,,MATCH($F46,Years,0)) /IF($E46="Nominal",1/SUMPRODUCT($K46:$T46,1/$K$28:$T$28),INDEX($K$21:$T$21,,MATCH($E46,Years,0))),0) -> 0.064232 | AC46: =IFERROR($H46*Q46 *INDEX($K$21:$T$21,,MATCH($F46,Years,0)) /IF($E46="Nominal",1/SUMPRODUCT($K46:$T46,1/$K$28:$T$28),INDEX($K$21:$T$21,,MATCH($E46,Years,0))),0) -> 0 | AD46: =IFERROR($H46*R46 *INDEX($K$21:$T$21,,MATCH($F46,Years,0)) /IF($E46="Nominal",1/SUMPRODUCT($K46:$T46,1/$K$28:$T$28),INDEX($K$21:$T$21,,MATCH($E46,Years,0))),0) -> 0 | AE46: =IFERROR($H46*S46 *INDEX($K$21:$T$21,,MATCH($F46,Years,0)) /IF($E46="Nominal",1/SUMPRODUCT($K46:$T46,1/$K$28:$T$28),INDEX($K$21:$T$21,,MATCH($E46,Years,0))),0) -> 0 | AF46: =IFERROR($H46*T46 *INDEX($K$21:$T$21,,MATCH($F46,Years,0)) /IF($E46="Nominal",1/SUMPRODUCT($K46:$T46,1/$K$28:$T$28),INDEX($K$21:$T$21,,MATCH($E46,Years,0))),0) -> 0 | AG46: =SUM(W46:AF46) -> 2.093995523
A47: Design, equipment procurement and installation works for SIPS | B47: Project Team Input | C47: $Millions | E47: 2023 | F47: =$F$39 -> 2024 | H47: 1.61885224 | I47: SIPS Control | N47: 0.09878041494 | O47: 0.9012195851 | P47: 0 | U47: =SUM(K47:T47) -> 1 | W47: =IFERROR($H47*K47 *INDEX($K$21:$T$21,,MATCH($F47,Years,0)) /IF($E47="Nominal",1/SUMPRODUCT($K47:$T47,1/$K$28:$T$28),INDEX($K$21:$T$21,,MATCH($E47,Years,0))),0) -> 0 | X47: =IFERROR($H47*L47 *INDEX($K$21:$T$21,,MATCH($F47,Years,0)) /IF($E47="Nominal",1/SUMPRODUCT($K47:$T47,1/$K$28:$T$28),INDEX($K$21:$T$21,,MATCH($E47,Years,0))),0) -> 0 | Y47: =IFERROR($H47*M47 *INDEX($K$21:$T$21,,MATCH($F47,Years,0)) /IF($E47="Nominal",1/SUMPRODUCT($K47:$T47,1/$K$28:$T$28),INDEX($K$21:$T$21,,MATCH($E47,Years,0))),0) -> 0 | Z47: =IFERROR($H47*N47 *INDEX($K$21:$T$21,,MATCH($F47,Years,0)) /IF($E47="Nominal",1/SUMPRODUCT($K47:$T47,1/$K$28:$T$28),INDEX($K$21:$T$21,,MATCH($E47,Years,0))),0) -> 0.1656676883 | AA47: =IFERROR($H47*O47 *INDEX($K$21:$T$21,,MATCH($F47,Years,0)) /IF($E47="Nominal",1/SUMPRODUCT($K47:$T47,1/$K$28:$T$28),INDEX($K$21:$T$21,,MATCH($E47,Years,0))),0) -> 1.511463232 | AB47: =IFERROR($H47*P47 *INDEX($K$21:$T$21,,MATCH($F47,Years,0)) /IF($E47="Nominal",1/SUMPRODUCT($K47:$T47,1/$K$28:$T$28),INDEX($K$21:$T$21,,MATCH($E47,Years,0))),0) -> 0 | AC47: =IFERROR($H47*Q47 *INDEX($K$21:$T$21,,MATCH($F47,Years,0)) /IF($E47="Nominal",1/SUMPRODUCT($K47:$T47,1/$K$28:$T$28),INDEX($K$21:$T$21,,MATCH($E47,Years,0))),0) -> 0 | AD47: =IFERROR($H47*R47 *INDEX($K$21:$T$21,,MATCH($F47,Years,0)) /IF($E47="Nominal",1/SUMPRODUCT($K47:$T47,1/$K$28:$T$28),INDEX($K$21:$T$21,,MATCH($E47,Years,0))),0) -> 0 | AE47: =IFERROR($H47*S47 *INDEX($K$21:$T$21,,MATCH($F47,Years,0)) /IF($E47="Nominal",1/SUMPRODUCT($K47:$T47,1/$K$28:$T$28),INDEX($K$21:$T$21,,MATCH($E47,Years,0))),0) -> 0 | AF47: =IFERROR($H47*T47 *INDEX($K$21:$T$21,,MATCH($F47,Years,0)) /IF($E47="Nominal",1/SUMPRODUCT($K47:$T47,1/$K$28:$T$28),INDEX($K$21:$T$21,,MATCH($E47,Years,0))),0) -> 0 | AG47: =SUM(W47:AF47) -> 1.677130921
A49: SIPS | Future PG Rounds
A50: =A46&" - Future paired generation" -> Design, equipment procurement and installation works for SIPS - Future paired generation | B50: Project Team Input | C50: $Millions | E50: 2023 | F50: =$F$39 -> 2024 | H50: 0 | I50: SIPS Control | O50: 0.4 | P50: 0.6 | U50: =SUM(K50:T50) -> 1 | W50: =IFERROR($H50*K50 *INDEX($K$21:$T$21,,MATCH($F50,Years,0)) /IF($E50="Nominal",1/SUMPRODUCT($K50:$T50,1/$K$28:$T$28),INDEX($K$21:$T$21,,MATCH($E50,Years,0))),0) -> 0 | X50: =IFERROR($H50*L50 *INDEX($K$21:$T$21,,MATCH($F50,Years,0)) /IF($E50="Nominal",1/SUMPRODUCT($K50:$T50,1/$K$28:$T$28),INDEX($K$21:$T$21,,MATCH($E50,Years,0))),0) -> 0 | Y50: =IFERROR($H50*M50 *INDEX($K$21:$T$21,,MATCH($F50,Years,0)) /IF($E50="Nominal",1/SUMPRODUCT($K50:$T50,1/$K$28:$T$28),INDEX($K$21:$T$21,,MATCH($E50,Years,0))),0) -> 0 | Z50: =IFERROR($H50*N50 *INDEX($K$21:$T$21,,MATCH($F50,Years,0)) /IF($E50="Nominal",1/SUMPRODUCT($K50:$T50,1/$K$28:$T$28),INDEX($K$21:$T$21,,MATCH($E50,Years,0))),0) -> 0 | AA50: =IFERROR($H50*O50 *INDEX($K$21:$T$21,,MATCH($F50,Years,0)) /IF($E50="Nominal",1/SUMPRODUCT($K50:$T50,1/$K$28:$T$28),INDEX($K$21:$T$21,,MATCH($E50,Years,0))),0) -> 0 | AB50: =IFERROR($H50*P50 *INDEX($K$21:$T$21,,MATCH($F50,Years,0)) /IF($E50="Nominal",1/SUMPRODUCT($K50:$T50,1/$K$28:$T$28),INDEX($K$21:$T$21,,MATCH($E50,Years,0))),0) -> 0 | AC50: =IFERROR($H50*Q50 *INDEX($K$21:$T$21,,MATCH($F50,Years,0)) /IF($E50="Nominal",1/SUMPRODUCT($K50:$T50,1/$K$28:$T$28),INDEX($K$21:$T$21,,MATCH($E50,Years,0))),0) -> 0 | AD50: =IFERROR($H50*R50 *INDEX($K$21:$T$21,,MATCH($F50,Years,0)) /IF($E50="Nominal",1/SUMPRODUCT($K50:$T50,1/$K$28:$T$28),INDEX($K$21:$T$21,,MATCH($E50,Years,0))),0) -> 0 | AE50: =IFERROR($H50*S50 *INDEX($K$21:$T$21,,MATCH($F50,Years,0)) /IF($E50="Nominal",1/SUMPRODUCT($K50:$T50,1/$K$28:$T$28),INDEX($K$21:$T$21,,MATCH($E50,Years,0))),0) -> 0 | AF50: =IFERROR($H50*T50 *INDEX($K$21:$T$21,,MATCH($F50,Years,0)) /IF($E50="Nominal",1/SUMPRODUCT($K50:$T50,1/$K$28:$T$28),INDEX($K$21:$T$21,,MATCH($E50,Years,0))),0) -> 0 | AG50: =SUM(W50:AF50) -> 0
A51: =A47&" - Future paired generation" -> Design, equipment procurement and installation works for SIPS - Future paired generation | B51: Project Team Input | C51: $Millions | E51: 2023 | F51: =$F$39 -> 2024 | H51: 0 | I51: SIPS Control | O51: 0.4 | P51: 0.6 | U51: =SUM(K51:T51) -> 1 | W51: =IFERROR($H51*K51 *INDEX($K$21:$T$21,,MATCH($F51,Years,0)) /IF($E51="Nominal",1/SUMPRODUCT($K51:$T51,1/$K$28:$T$28),INDEX($K$21:$T$21,,MATCH($E51,Years,0))),0) -> 0 | X51: =IFERROR($H51*L51 *INDEX($K$21:$T$21,,MATCH($F51,Years,0)) /IF($E51="Nominal",1/SUMPRODUCT($K51:$T51,1/$K$28:$T$28),INDEX($K$21:$T$21,,MATCH($E51,Years,0))),0) -> 0 | Y51: =IFERROR($H51*M51 *INDEX($K$21:$T$21,,MATCH($F51,Years,0)) /IF($E51="Nominal",1/SUMPRODUCT($K51:$T51,1/$K$28:$T$28),INDEX($K$21:$T$21,,MATCH($E51,Years,0))),0) -> 0 | Z51: =IFERROR($H51*N51 *INDEX($K$21:$T$21,,MATCH($F51,Years,0)) /IF($E51="Nominal",1/SUMPRODUCT($K51:$T51,1/$K$28:$T$28),INDEX($K$21:$T$21,,MATCH($E51,Years,0))),0) -> 0 | AA51: =IFERROR($H51*O51 *INDEX($K$21:$T$21,,MATCH($F51,Years,0)) /IF($E51="Nominal",1/SUMPRODUCT($K51:$T51,1/$K$28:$T$28),INDEX($K$21:$T$21,,MATCH($E51,Years,0))),0) -> 0 | AB51: =IFERROR($H51*P51 *INDEX($K$21:$T$21,,MATCH($F51,Years,0)) /IF($E51="Nominal",1/SUMPRODUCT($K51:$T51,1/$K$28:$T$28),INDEX($K$21:$T$21,,MATCH($E51,Years,0))),0) -> 0 | AC51: =IFERROR($H51*Q51 *INDEX($K$21:$T$21,,MATCH($F51,Years,0)) /IF($E51="Nominal",1/SUMPRODUCT($K51:$T51,1/$K$28:$T$28),INDEX($K$21:$T$21,,MATCH($E51,Years,0))),0) -> 0 | AD51: =IFERROR($H51*R51 *INDEX($K$21:$T$21,,MATCH($F51,Years,0)) /IF($E51="Nominal",1/SUMPRODUCT($K51:$T51,1/$K$28:$T$28),INDEX($K$21:$T$21,,MATCH($E51,Years,0))),0) -> 0 | AE51: =IFERROR($H51*S51 *INDEX($K$21:$T$21,,MATCH($F51,Years,0)) /IF($E51="Nominal",1/SUMPRODUCT($K51:$T51,1/$K$28:$T$28),INDEX($K$21:$T$21,,MATCH($E51,Years,0))),0) -> 0 | AF51: =IFERROR($H51*T51 *INDEX($K$21:$T$21,,MATCH($F51,Years,0)) /IF($E51="Nominal",1/SUMPRODUCT($K51:$T51,1/$K$28:$T$28),INDEX($K$21:$T$21,,MATCH($E51,Years,0))),0) -> 0 | AG51: =SUM(W51:AF51) -> 0
A53: Other construction costs
A54: =A39 -> Transmission lines uprating - Lines 39, 3L/4 & 5 - Transmission Towers | B54: Project Team Input | C54: $Millions | E54: 2023 | F54: =$F$39 -> 2024 | H54: 0.01 | I54: =I39 -> Transmission Lines - Transmission Towers | P54: 1 | U54: =SUM(K54:T54) -> 1 | W54: =IFERROR($H54*K54 *INDEX($K$21:$T$21,,MATCH($F54,Years,0)) /IF($E54="Nominal",1/SUMPRODUCT($K54:$T54,1/$K$28:$T$28),INDEX($K$21:$T$21,,MATCH($E54,Years,0))),0) -> 0 | X54: =IFERROR($H54*L54 *INDEX($K$21:$T$21,,MATCH($F54,Years,0)) /IF($E54="Nominal",1/SUMPRODUCT($K54:$T54,1/$K$28:$T$28),INDEX($K$21:$T$21,,MATCH($E54,Years,0))),0) -> 0 | Y54: =IFERROR($H54*M54 *INDEX($K$21:$T$21,,MATCH($F54,Years,0)) /IF($E54="Nominal",1/SUMPRODUCT($K54:$T54,1/$K$28:$T$28),INDEX($K$21:$T$21,,MATCH($E54,Years,0))),0) -> 0 | Z54: =IFERROR($H54*N54 *INDEX($K$21:$T$21,,MATCH($F54,Years,0)) /IF($E54="Nominal",1/SUMPRODUCT($K54:$T54,1/$K$28:$T$28),INDEX($K$21:$T$21,,MATCH($E54,Years,0))),0) -> 0 | AA54: =IFERROR($H54*O54 *INDEX($K$21:$T$21,,MATCH($F54,Years,0)) /IF($E54="Nominal",1/SUMPRODUCT($K54:$T54,1/$K$28:$T$28),INDEX($K$21:$T$21,,MATCH($E54,Years,0))),0) -> 0 | AB54: =IFERROR($H54*P54 *INDEX($K$21:$T$21,,MATCH($F54,Years,0)) /IF($E54="Nominal",1/SUMPRODUCT($K54:$T54,1/$K$28:$T$28),INDEX($K$21:$T$21,,MATCH($E54,Years,0))),0) -> 0.01036 | AC54: =IFERROR($H54*Q54 *INDEX($K$21:$T$21,,MATCH($F54,Years,0)) /IF($E54="Nominal",1/SUMPRODUCT($K54:$T54,1/$K$28:$T$28),INDEX($K$21:$T$21,,MATCH($E54,Years,0))),0) -> 0 | AD54: =IFERROR($H54*R54 *INDEX($K$21:$T$21,,MATCH($F54,Years,0)) /IF($E54="Nominal",1/SUMPRODUCT($K54:$T54,1/$K$28:$T$28),INDEX($K$21:$T$21,,MATCH($E54,Years,0))),0) -> 0 | AE54: =IFERROR($H54*S54 *INDEX($K$21:$T$21,,MATCH($F54,Years,0)) /IF($E54="Nominal",1/SUMPRODUCT($K54:$T54,1/$K$28:$T$28),INDEX($K$21:$T$21,,MATCH($E54,Years,0))),0) -> 0 | AF54: =IFERROR($H54*T54 *INDEX($K$21:$T$21,,MATCH($F54,Years,0)) /IF($E54="Nominal",1/SUMPRODUCT($K54:$T54,1/$K$28:$T$28),INDEX($K$21:$T$21,,MATCH($E54,Years,0))),0) -> 0 | AG54: =SUM(W54:AF54) -> 0.01036
A55: =A40 -> Transmission lines uprating - Lines 39, 3L/4 & 5 - Transmission tower support structures | B55: Project Team Input | C55: $Millions | E55: =E54 -> 2023 | F55: =$F$39 -> 2024 | H55: 0.068959 | I55: =I40 -> Transmission Lines - Transmission tower support structures | P55: 1 | U55: =SUM(K55:T55) -> 1 | W55: =IFERROR($H55*K55 *INDEX($K$21:$T$21,,MATCH($F55,Years,0)) /IF($E55="Nominal",1/SUMPRODUCT($K55:$T55,1/$K$28:$T$28),INDEX($K$21:$T$21,,MATCH($E55,Years,0))),0) -> 0 | X55: =IFERROR($H55*L55 *INDEX($K$21:$T$21,,MATCH($F55,Years,0)) /IF($E55="Nominal",1/SUMPRODUCT($K55:$T55,1/$K$28:$T$28),INDEX($K$21:$T$21,,MATCH($E55,Years,0))),0) -> 0 | Y55: =IFERROR($H55*M55 *INDEX($K$21:$T$21,,MATCH($F55,Years,0)) /IF($E55="Nominal",1/SUMPRODUCT($K55:$T55,1/$K$28:$T$28),INDEX($K$21:$T$21,,MATCH($E55,Years,0))),0) -> 0 | Z55: =IFERROR($H55*N55 *INDEX($K$21:$T$21,,MATCH($F55,Years,0)) /IF($E55="Nominal",1/SUMPRODUCT($K55:$T55,1/$K$28:$T$28),INDEX($K$21:$T$21,,MATCH($E55,Years,0))),0) -> 0 | AA55: =IFERROR($H55*O55 *INDEX($K$21:$T$21,,MATCH($F55,Years,0)) /IF($E55="Nominal",1/SUMPRODUCT($K55:$T55,1/$K$28:$T$28),INDEX($K$21:$T$21,,MATCH($E55,Years,0))),0) -> 0 | AB55: =IFERROR($H55*P55 *INDEX($K$21:$T$21,,MATCH($F55,Years,0)) /IF($E55="Nominal",1/SUMPRODUCT($K55:$T55,1/$K$28:$T$28),INDEX($K$21:$T$21,,MATCH($E55,Years,0))),0) -> 0.071441524 | AC55: =IFERROR($H55*Q55 *INDEX($K$21:$T$21,,MATCH($F55,Years,0)) /IF($E55="Nominal",1/SUMPRODUCT($K55:$T55,1/$K$28:$T$28),INDEX($K$21:$T$21,,MATCH($E55,Years,0))),0) -> 0 | AD55: =IFERROR($H55*R55 *INDEX($K$21:$T$21,,MATCH($F55,Years,0)) /IF($E55="Nominal",1/SUMPRODUCT($K55:$T55,1/$K$28:$T$28),INDEX($K$21:$T$21,,MATCH($E55,Years,0))),0) -> 0 | AE55: =IFERROR($H55*S55 *INDEX($K$21:$T$21,,MATCH($F55,Years,0)) /IF($E55="Nominal",1/SUMPRODUCT($K55:$T55,1/$K$28:$T$28),INDEX($K$21:$T$21,,MATCH($E55,Years,0))),0) -> 0 | AF55: =IFERROR($H55*T55 *INDEX($K$21:$T$21,,MATCH($F55,Years,0)) /IF($E55="Nominal",1/SUMPRODUCT($K55:$T55,1/$K$28:$T$28),INDEX($K$21:$T$21,,MATCH($E55,Years,0))),0) -> 0 | AG55: =SUM(W55:AF55) -> 0.071441524
A56: =A41 -> Substation uprating - Substation switchbays | B56: Project Team Input | C56: $Millions | E56: =E55 -> 2023 | F56: =$F$39 -> 2024 | H56: 1.06231 | I56: =I41 -> Substations - Substation switchbays | P56: 0.4706724026 | Q56: 0.5293275974 | U56: =SUM(K56:T56) -> 1 | W56: =IFERROR($H56*K56 *INDEX($K$21:$T$21,,MATCH($F56,Years,0)) /IF($E56="Nominal",1/SUMPRODUCT($K56:$T56,1/$K$28:$T$28),INDEX($K$21:$T$21,,MATCH($E56,Years,0))),0) -> 0 | X56: =IFERROR($H56*L56 *INDEX($K$21:$T$21,,MATCH($F56,Years,0)) /IF($E56="Nominal",1/SUMPRODUCT($K56:$T56,1/$K$28:$T$28),INDEX($K$21:$T$21,,MATCH($E56,Years,0))),0) -> 0 | Y56: =IFERROR($H56*M56 *INDEX($K$21:$T$21,,MATCH($F56,Years,0)) /IF($E56="Nominal",1/SUMPRODUCT($K56:$T56,1/$K$28:$T$28),INDEX($K$21:$T$21,,MATCH($E56,Years,0))),0) -> 0 | Z56: =IFERROR($H56*N56 *INDEX($K$21:$T$21,,MATCH($F56,Years,0)) /IF($E56="Nominal",1/SUMPRODUCT($K56:$T56,1/$K$28:$T$28),INDEX($K$21:$T$21,,MATCH($E56,Years,0))),0) -> 0 | AA56: =IFERROR($H56*O56 *INDEX($K$21:$T$21,,MATCH($F56,Years,0)) /IF($E56="Nominal",1/SUMPRODUCT($K56:$T56,1/$K$28:$T$28),INDEX($K$21:$T$21,,MATCH($E56,Years,0))),0) -> 0 | AB56: =IFERROR($H56*P56 *INDEX($K$21:$T$21,,MATCH($F56,Years,0)) /IF($E56="Nominal",1/SUMPRODUCT($K56:$T56,1/$K$28:$T$28),INDEX($K$21:$T$21,,MATCH($E56,Years,0))),0) -> 0.518 | AC56: =IFERROR($H56*Q56 *INDEX($K$21:$T$21,,MATCH($F56,Years,0)) /IF($E56="Nominal",1/SUMPRODUCT($K56:$T56,1/$K$28:$T$28),INDEX($K$21:$T$21,,MATCH($E56,Years,0))),0) -> 0.58255316 | AD56: =IFERROR($H56*R56 *INDEX($K$21:$T$21,,MATCH($F56,Years,0)) /IF($E56="Nominal",1/SUMPRODUCT($K56:$T56,1/$K$28:$T$28),INDEX($K$21:$T$21,,MATCH($E56,Years,0))),0) -> 0 | AE56: =IFERROR($H56*S56 *INDEX($K$21:$T$21,,MATCH($F56,Years,0)) /IF($E56="Nominal",1/SUMPRODUCT($K56:$T56,1/$K$28:$T$28),INDEX($K$21:$T$21,,MATCH($E56,Years,0))),0) -> 0 | AF56: =IFERROR($H56*T56 *INDEX($K$21:$T$21,,MATCH($F56,Years,0)) /IF($E56="Nominal",1/SUMPRODUCT($K56:$T56,1/$K$28:$T$28),INDEX($K$21:$T$21,,MATCH($E56,Years,0))),0) -> 0 | AG56: =SUM(W56:AF56) -> 1.10055316
A57: =A42 -> Secondary systems uprating | B57: Project Team Input | C57: $Millions | E57: =E56 -> 2023 | F57: =$F$39 -> 2024 | H57: 1 | I57: SIPS Control | P57: 1 | U57: =SUM(K57:T57) -> 1 | W57: =IFERROR($H57*K57 *INDEX($K$21:$T$21,,MATCH($F57,Years,0)) /IF($E57="Nominal",1/SUMPRODUCT($K57:$T57,1/$K$28:$T$28),INDEX($K$21:$T$21,,MATCH($E57,Years,0))),0) -> 0 | X57: =IFERROR($H57*L57 *INDEX($K$21:$T$21,,MATCH($F57,Years,0)) /IF($E57="Nominal",1/SUMPRODUCT($K57:$T57,1/$K$28:$T$28),INDEX($K$21:$T$21,,MATCH($E57,Years,0))),0) -> 0 | Y57: =IFERROR($H57*M57 *INDEX($K$21:$T$21,,MATCH($F57,Years,0)) /IF($E57="Nominal",1/SUMPRODUCT($K57:$T57,1/$K$28:$T$28),INDEX($K$21:$T$21,,MATCH($E57,Years,0))),0) -> 0 | Z57: =IFERROR($H57*N57 *INDEX($K$21:$T$21,,MATCH($F57,Years,0)) /IF($E57="Nominal",1/SUMPRODUCT($K57:$T57,1/$K$28:$T$28),INDEX($K$21:$T$21,,MATCH($E57,Years,0))),0) -> 0 | AA57: =IFERROR($H57*O57 *INDEX($K$21:$T$21,,MATCH($F57,Years,0)) /IF($E57="Nominal",1/SUMPRODUCT($K57:$T57,1/$K$28:$T$28),INDEX($K$21:$T$21,,MATCH($E57,Years,0))),0) -> 0 | AB57: =IFERROR($H57*P57 *INDEX($K$21:$T$21,,MATCH($F57,Years,0)) /IF($E57="Nominal",1/SUMPRODUCT($K57:$T57,1/$K$28:$T$28),INDEX($K$21:$T$21,,MATCH($E57,Years,0))),0) -> 1.036 | AC57: =IFERROR($H57*Q57 *INDEX($K$21:$T$21,,MATCH($F57,Years,0)) /IF($E57="Nominal",1/SUMPRODUCT($K57:$T57,1/$K$28:$T$28),INDEX($K$21:$T$21,,MATCH($E57,Years,0))),0) -> 0 | AD57: =IFERROR($H57*R57 *INDEX($K$21:$T$21,,MATCH($F57,Years,0)) /IF($E57="Nominal",1/SUMPRODUCT($K57:$T57,1/$K$28:$T$28),INDEX($K$21:$T$21,,MATCH($E57,Years,0))),0) -> 0 | AE57: =IFERROR($H57*S57 *INDEX($K$21:$T$21,,MATCH($F57,Years,0)) /IF($E57="Nominal",1/SUMPRODUCT($K57:$T57,1/$K$28:$T$28),INDEX($K$21:$T$21,,MATCH($E57,Years,0))),0) -> 0 | AF57: =IFERROR($H57*T57 *INDEX($K$21:$T$21,,MATCH($F57,Years,0)) /IF($E57="Nominal",1/SUMPRODUCT($K57:$T57,1/$K$28:$T$28),INDEX($K$21:$T$21,,MATCH($E57,Years,0))),0) -> 0 | AG57: =SUM(W57:AF57) -> 1.036
A58: =A43 -> Secondary systems uprating | B58: Project Team Input | C58: $Millions | E58: =E57 -> 2023 | F58: =$F$39 -> 2024 | H58: 0.225 | I58: SIPS Control | P58: 1 | U58: =SUM(K58:T58) -> 1 | W58: =IFERROR($H58*K58 *INDEX($K$21:$T$21,,MATCH($F58,Years,0)) /IF($E58="Nominal",1/SUMPRODUCT($K58:$T58,1/$K$28:$T$28),INDEX($K$21:$T$21,,MATCH($E58,Years,0))),0) -> 0 | X58: =IFERROR($H58*L58 *INDEX($K$21:$T$21,,MATCH($F58,Years,0)) /IF($E58="Nominal",1/SUMPRODUCT($K58:$T58,1/$K$28:$T$28),INDEX($K$21:$T$21,,MATCH($E58,Years,0))),0) -> 0 | Y58: =IFERROR($H58*M58 *INDEX($K$21:$T$21,,MATCH($F58,Years,0)) /IF($E58="Nominal",1/SUMPRODUCT($K58:$T58,1/$K$28:$T$28),INDEX($K$21:$T$21,,MATCH($E58,Years,0))),0) -> 0 | Z58: =IFERROR($H58*N58 *INDEX($K$21:$T$21,,MATCH($F58,Years,0)) /IF($E58="Nominal",1/SUMPRODUCT($K58:$T58,1/$K$28:$T$28),INDEX($K$21:$T$21,,MATCH($E58,Years,0))),0) -> 0 | AA58: =IFERROR($H58*O58 *INDEX($K$21:$T$21,,MATCH($F58,Years,0)) /IF($E58="Nominal",1/SUMPRODUCT($K58:$T58,1/$K$28:$T$28),INDEX($K$21:$T$21,,MATCH($E58,Years,0))),0) -> 0 | AB58: =IFERROR($H58*P58 *INDEX($K$21:$T$21,,MATCH($F58,Years,0)) /IF($E58="Nominal",1/SUMPRODUCT($K58:$T58,1/$K$28:$T$28),INDEX($K$21:$T$21,,MATCH($E58,Years,0))),0) -> 0.2331 | AC58: =IFERROR($H58*Q58 *INDEX($K$21:$T$21,,MATCH($F58,Years,0)) /IF($E58="Nominal",1/SUMPRODUCT($K58:$T58,1/$K$28:$T$28),INDEX($K$21:$T$21,,MATCH($E58,Years,0))),0) -> 0 | AD58: =IFERROR($H58*R58 *INDEX($K$21:$T$21,,MATCH($F58,Years,0)) /IF($E58="Nominal",1/SUMPRODUCT($K58:$T58,1/$K$28:$T$28),INDEX($K$21:$T$21,,MATCH($E58,Years,0))),0) -> 0 | AE58: =IFERROR($H58*S58 *INDEX($K$21:$T$21,,MATCH($F58,Years,0)) /IF($E58="Nominal",1/SUMPRODUCT($K58:$T58,1/$K$28:$T$28),INDEX($K$21:$T$21,,MATCH($E58,Years,0))),0) -> 0 | AF58: =IFERROR($H58*T58 *INDEX($K$21:$T$21,,MATCH($F58,Years,0)) /IF($E58="Nominal",1/SUMPRODUCT($K58:$T58,1/$K$28:$T$28),INDEX($K$21:$T$21,,MATCH($E58,Years,0))),0) -> 0 | AG58: =SUM(W58:AF58) -> 0.2331
H60: =SUM(H39:H58) -> 183.9281868 | I60: ◄ Notional sum with various dollar basis for cross check only | V60: Total | W60: =SUM(W39:W58) -> 0 | X60: 0 | Y60: 0 | Z60: 0.5660371926 | AA60: 59.28008162 | AB60: 111.8815258 | AC60: 11.49691026 | AD60: 0 | AE60: 0 | AF60: 0 | AG60: 183.2245549
A62: Direct Non-Labour Costs | By Capex Category | W62: ="Expenditure (June "&F39&" dollars)" -> Expenditure (June 2024 dollars)
A63: Category | B63: Source | C63: Units | W63: =K$37 -> 2020 | X63: 2021 | Y63: 2022 | Z63: 2023 | AA63: 2024 | AB63: 2025 | AC63: 2026 | AD63: 2027 | AE63: 2028 | AF63: 2029 | AG63: Total
A64: =A160 -> Transmission Lines - Transmission Towers | B64: Calculated | C64: $Millions | W64: =SUM(W$39:W$58*($I$39:$I$58=$A64)) -> 0 | X64: =SUM(X$39:X$58*($I$39:$I$58=$A64)) -> 0 | Y64: =SUM(Y$39:Y$58*($I$39:$I$58=$A64)) -> 0 | Z64: =SUM(Z$39:Z$58*($I$39:$I$58=$A64)) -> 0 | AA64: =SUM(AA$39:AA$58*($I$39:$I$58=$A64)) -> 2.273634265 | AB64: =SUM(AB$39:AB$58*($I$39:$I$58=$A64)) -> 4.334944394 | AC64: =SUM(AC$39:AC$58*($I$39:$I$58=$A64)) -> 0 | AD64: =SUM(AD$39:AD$58*($I$39:$I$58=$A64)) -> 0 | AE64: =SUM(AE$39:AE$58*($I$39:$I$58=$A64)) -> 0 | AF64: =SUM(AF$39:AF$58*($I$39:$I$58=$A64)) -> 0 | AG64: =SUM(W64:AF64) -> 6.608578659
A65: Transmission Lines - Transmission tower support structures | B65: Calculated | C65: $Millions | W65: =SUM(W$39:W$58*($I$39:$I$58=$A65)) -> 0 | X65: =SUM(X$39:X$58*($I$39:$I$58=$A65)) -> 0 | Y65: =SUM(Y$39:Y$58*($I$39:$I$58=$A65)) -> 0 | Z65: =SUM(Z$39:Z$58*($I$39:$I$58=$A65)) -> 0 | AA65: =SUM(AA$39:AA$58*($I$39:$I$58=$A65)) -> 19.42519063 | AB65: =SUM(AB$39:AB$58*($I$39:$I$58=$A65)) -> 43.72757694 | AC65: =SUM(AC$39:AC$58*($I$39:$I$58=$A65)) -> 0 | AD65: =SUM(AD$39:AD$58*($I$39:$I$58=$A65)) -> 0 | AE65: =SUM(AE$39:AE$58*($I$39:$I$58=$A65)) -> 0 | AF65: =SUM(AF$39:AF$58*($I$39:$I$58=$A65)) -> 0 | AG65: =SUM(W65:AF65) -> 63.15276757
A66: Transmission Lines - Conductors | B66: Calculated | C66: $Millions | W66: =SUM(W$39:W$58*($I$39:$I$58=$A66)) -> 0 | X66: =SUM(X$39:X$58*($I$39:$I$58=$A66)) -> 0 | Y66: =SUM(Y$39:Y$58*($I$39:$I$58=$A66)) -> 0 | Z66: =SUM(Z$39:Z$58*($I$39:$I$58=$A66)) -> 0 | AA66: =SUM(AA$39:AA$58*($I$39:$I$58=$A66)) -> 0 | AB66: =SUM(AB$39:AB$58*($I$39:$I$58=$A66)) -> 0 | AC66: =SUM(AC$39:AC$58*($I$39:$I$58=$A66)) -> 0 | AD66: =SUM(AD$39:AD$58*($I$39:$I$58=$A66)) -> 0 | AE66: =SUM(AE$39:AE$58*($I$39:$I$58=$A66)) -> 0 | AF66: =SUM(AF$39:AF$58*($I$39:$I$58=$A66)) -> 0 | AG66: 0
A67: Transmission Lines - Transmission line life extension | B67: Calculated | C67: $Millions | W67: =SUM(W$39:W$58*($I$39:$I$58=$A67)) -> 0 | X67: =SUM(X$39:X$58*($I$39:$I$58=$A67)) -> 0 | Y67: =SUM(Y$39:Y$58*($I$39:$I$58=$A67)) -> 0 | Z67: =SUM(Z$39:Z$58*($I$39:$I$58=$A67)) -> 0 | AA67: =SUM(AA$39:AA$58*($I$39:$I$58=$A67)) -> 0 | AB67: =SUM(AB$39:AB$58*($I$39:$I$58=$A67)) -> 0 | AC67: =SUM(AC$39:AC$58*($I$39:$I$58=$A67)) -> 0 | AD67: =SUM(AD$39:AD$58*($I$39:$I$58=$A67)) -> 0 | AE67: =SUM(AE$39:AE$58*($I$39:$I$58=$A67)) -> 0 | AF67: =SUM(AF$39:AF$58*($I$39:$I$58=$A67)) -> 0 | AG67: 0
A68: Underground cables - Transmission cables | B68: Calculated | C68: $Millions | W68: =SUM(W$39:W$58*($I$39:$I$58=$A68)) -> 0 | X68: =SUM(X$39:X$58*($I$39:$I$58=$A68)) -> 0 | Y68: =SUM(Y$39:Y$58*($I$39:$I$58=$A68)) -> 0 | Z68: =SUM(Z$39:Z$58*($I$39:$I$58=$A68)) -> 0 | AA68: =SUM(AA$39:AA$58*($I$39:$I$58=$A68)) -> 0 | AB68: =SUM(AB$39:AB$58*($I$39:$I$58=$A68)) -> 0 | AC68: =SUM(AC$39:AC$58*($I$39:$I$58=$A68)) -> 0 | AD68: =SUM(AD$39:AD$58*($I$39:$I$58=$A68)) -> 0 | AE68: =SUM(AE$39:AE$58*($I$39:$I$58=$A68)) -> 0 | AF68: =SUM(AF$39:AF$58*($I$39:$I$58=$A68)) -> 0 | AG68: 0
A69: Substations - Substation switchbays | B69: Calculated | C69: $Millions | W69: =SUM(W$39:W$58*($I$39:$I$58=$A69)) -> 0 | X69: =SUM(X$39:X$58*($I$39:$I$58=$A69)) -> 0 | Y69: =SUM(Y$39:Y$58*($I$39:$I$58=$A69)) -> 0 | Z69: =SUM(Z$39:Z$58*($I$39:$I$58=$A69)) -> 0 | AA69: =SUM(AA$39:AA$58*($I$39:$I$58=$A69)) -> 34.44039948 | AB69: =SUM(AB$39:AB$58*($I$39:$I$58=$A69)) -> 62.4856725 | AC69: =SUM(AC$39:AC$58*($I$39:$I$58=$A69)) -> 11.49691026 | AD69: =SUM(AD$39:AD$58*($I$39:$I$58=$A69)) -> 0 | AE69: =SUM(AE$39:AE$58*($I$39:$I$58=$A69)) -> 0 | AF69: =SUM(AF$39:AF$58*($I$39:$I$58=$A69)) -> 0 | AG69: 108.4229822
A70: Substations - Substation power transformers | B70: Calculated | C70: $Millions | W70: =SUM(W$39:W$58*($I$39:$I$58=$A70)) -> 0 | X70: =SUM(X$39:X$58*($I$39:$I$58=$A70)) -> 0 | Y70: =SUM(Y$39:Y$58*($I$39:$I$58=$A70)) -> 0 | Z70: =SUM(Z$39:Z$58*($I$39:$I$58=$A70)) -> 0 | AA70: =SUM(AA$39:AA$58*($I$39:$I$58=$A70)) -> 0 | AB70: =SUM(AB$39:AB$58*($I$39:$I$58=$A70)) -> 0 | AC70: =SUM(AC$39:AC$58*($I$39:$I$58=$A70)) -> 0 | AD70: =SUM(AD$39:AD$58*($I$39:$I$58=$A70)) -> 0 | AE70: =SUM(AE$39:AE$58*($I$39:$I$58=$A70)) -> 0 | AF70: =SUM(AF$39:AF$58*($I$39:$I$58=$A70)) -> 0 | AG70: 0
A71: Substations - Substation reactive plant | B71: Calculated | C71: $Millions | W71: =SUM(W$39:W$58*($I$39:$I$58=$A71)) -> 0 | X71: =SUM(X$39:X$58*($I$39:$I$58=$A71)) -> 0 | Y71: =SUM(Y$39:Y$58*($I$39:$I$58=$A71)) -> 0 | Z71: =SUM(Z$39:Z$58*($I$39:$I$58=$A71)) -> 0 | AA71: =SUM(AA$39:AA$58*($I$39:$I$58=$A71)) -> 0 | AB71: =SUM(AB$39:AB$58*($I$39:$I$58=$A71)) -> 0 | AC71: =SUM(AC$39:AC$58*($I$39:$I$58=$A71)) -> 0 | AD71: =SUM(AD$39:AD$58*($I$39:$I$58=$A71)) -> 0 | AE71: =SUM(AE$39:AE$58*($I$39:$I$58=$A71)) -> 0 | AF71: =SUM(AF$39:AF$58*($I$39:$I$58=$A71)) -> 0 | AG71: 0
A72: Secondary Systems - Scada, network control and protection systems | B72: Calculated | C72: $Millions | W72: =SUM(W$39:W$58*($I$39:$I$58=$A72)) -> 0 | X72: =SUM(X$39:X$58*($I$39:$I$58=$A72)) -> 0 | Y72: =SUM(Y$39:Y$58*($I$39:$I$58=$A72)) -> 0 | Z72: =SUM(Z$39:Z$58*($I$39:$I$58=$A72)) -> 0 | AA72: =SUM(AA$39:AA$58*($I$39:$I$58=$A72)) -> 0 | AB72: =SUM(AB$39:AB$58*($I$39:$I$58=$A72)) -> 0 | AC72: =SUM(AC$39:AC$58*($I$39:$I$58=$A72)) -> 0 | AD72: =SUM(AD$39:AD$58*($I$39:$I$58=$A72)) -> 0 | AE72: =SUM(AE$39:AE$58*($I$39:$I$58=$A72)) -> 0 | AF72: =SUM(AF$39:AF$58*($I$39:$I$58=$A72)) -> 0 | AG72: 0
A73: Communications (short life) - Scada, network control and protection systems | B73: Calculated | C73: $Millions | W73: =SUM(W$39:W$58*($I$39:$I$58=$A73)) -> 0 | X73: =SUM(X$39:X$58*($I$39:$I$58=$A73)) -> 0 | Y73: =SUM(Y$39:Y$58*($I$39:$I$58=$A73)) -> 0 | Z73: =SUM(Z$39:Z$58*($I$39:$I$58=$A73)) -> 0 | AA73: =SUM(AA$39:AA$58*($I$39:$I$58=$A73)) -> 0 | AB73: =SUM(AB$39:AB$58*($I$39:$I$58=$A73)) -> 0 | AC73: =SUM(AC$39:AC$58*($I$39:$I$58=$A73)) -> 0 | AD73: =SUM(AD$39:AD$58*($I$39:$I$58=$A73)) -> 0 | AE73: =SUM(AE$39:AE$58*($I$39:$I$58=$A73)) -> 0 | AF73: =SUM(AF$39:AF$58*($I$39:$I$58=$A73)) -> 0 | AG73: 0
A74: SIPS Control | B74: Calculated | C74: $Millions | W74: =SUM(W$39:W$58*($I$39:$I$58=$A74)) -> 0 | X74: =SUM(X$39:X$58*($I$39:$I$58=$A74)) -> 0 | Y74: =SUM(Y$39:Y$58*($I$39:$I$58=$A74)) -> 0 | Z74: =SUM(Z$39:Z$58*($I$39:$I$58=$A74)) -> 0.5660371926 | AA74: =SUM(AA$39:AA$58*($I$39:$I$58=$A74)) -> 3.140857251 | AB74: =SUM(AB$39:AB$58*($I$39:$I$58=$A74)) -> 1.333332 | AC74: =SUM(AC$39:AC$58*($I$39:$I$58=$A74)) -> 0 | AD74: =SUM(AD$39:AD$58*($I$39:$I$58=$A74)) -> 0 | AE74: =SUM(AE$39:AE$58*($I$39:$I$58=$A74)) -> 0 | AF74: =SUM(AF$39:AF$58*($I$39:$I$58=$A74)) -> 0 | AG74: =SUM(W74:AF74) -> 5.040226444
A75: =A171 -> Synchronous condensers | B75: Calculated | C75: $Millions | W75: =SUM(W$39:W$58*($I$39:$I$58=$A75)) -> 0 | X75: =SUM(X$39:X$58*($I$39:$I$58=$A75)) -> 0 | Y75: =SUM(Y$39:Y$58*($I$39:$I$58=$A75)) -> 0 | Z75: =SUM(Z$39:Z$58*($I$39:$I$58=$A75)) -> 0 | AA75: =SUM(AA$39:AA$58*($I$39:$I$58=$A75)) -> 0 | AB75: =SUM(AB$39:AB$58*($I$39:$I$58=$A75)) -> 0 | AC75: =SUM(AC$39:AC$58*($I$39:$I$58=$A75)) -> 0 | AD75: =SUM(AD$39:AD$58*($I$39:$I$58=$A75)) -> 0 | AE75: =SUM(AE$39:AE$58*($I$39:$I$58=$A75)) -> 0 | AF75: =SUM(AF$39:AF$58*($I$39:$I$58=$A75)) -> 0 | AG75: 0
A76: Other - Leasehold land and property | B76: Calculated | C76: $Millions | W76: =SUM(W$39:W$58*($I$39:$I$58=$A76)) -> 0 | X76: =SUM(X$39:X$58*($I$39:$I$58=$A76)) -> 0 | Y76: =SUM(Y$39:Y$58*($I$39:$I$58=$A76)) -> 0 | Z76: =SUM(Z$39:Z$58*($I$39:$I$58=$A76)) -> 0 | AA76: =SUM(AA$39:AA$58*($I$39:$I$58=$A76)) -> 0 | AB76: =SUM(AB$39:AB$58*($I$39:$I$58=$A76)) -> 0 | AC76: =SUM(AC$39:AC$58*($I$39:$I$58=$A76)) -> 0 | AD76: =SUM(AD$39:AD$58*($I$39:$I$58=$A76)) -> 0 | AE76: =SUM(AE$39:AE$58*($I$39:$I$58=$A76)) -> 0 | AF76: =SUM(AF$39:AF$58*($I$39:$I$58=$A76)) -> 0 | AG76: 0
A77: Other - Land and Easements | B77: Calculated | C77: $Millions | W77: =SUM(W$39:W$58*($I$39:$I$58=$A77)) -> 0 | X77: =SUM(X$39:X$58*($I$39:$I$58=$A77)) -> 0 | Y77: =SUM(Y$39:Y$58*($I$39:$I$58=$A77)) -> 0 | Z77: =SUM(Z$39:Z$58*($I$39:$I$58=$A77)) -> 0 | AA77: =SUM(AA$39:AA$58*($I$39:$I$58=$A77)) -> 0 | AB77: =SUM(AB$39:AB$58*($I$39:$I$58=$A77)) -> 0 | AC77: =SUM(AC$39:AC$58*($I$39:$I$58=$A77)) -> 0 | AD77: =SUM(AD$39:AD$58*($I$39:$I$58=$A77)) -> 0 | AE77: =SUM(AE$39:AE$58*($I$39:$I$58=$A77)) -> 0 | AF77: =SUM(AF$39:AF$58*($I$39:$I$58=$A77)) -> 0 | AG77: 0
A78: Other - Buildings capital works | B78: Calculated | C78: $Millions | W78: =SUM(W$39:W$58*($I$39:$I$58=$A78)) -> 0 | X78: =SUM(X$39:X$58*($I$39:$I$58=$A78)) -> 0 | Y78: =SUM(Y$39:Y$58*($I$39:$I$58=$A78)) -> 0 | Z78: =SUM(Z$39:Z$58*($I$39:$I$58=$A78)) -> 0 | AA78: =SUM(AA$39:AA$58*($I$39:$I$58=$A78)) -> 0 | AB78: =SUM(AB$39:AB$58*($I$39:$I$58=$A78)) -> 0 | AC78: =SUM(AC$39:AC$58*($I$39:$I$58=$A78)) -> 0 | AD78: =SUM(AD$39:AD$58*($I$39:$I$58=$A78)) -> 0 | AE78: =SUM(AE$39:AE$58*($I$39:$I$58=$A78)) -> 0 | AF78: =SUM(AF$39:AF$58*($I$39:$I$58=$A78)) -> 0 | AG78: 0
A79: Non-network - Business IT | B79: Calculated | C79: $Millions | W79: =SUM(W$39:W$58*($I$39:$I$58=$A79)) -> 0 | X79: =SUM(X$39:X$58*($I$39:$I$58=$A79)) -> 0 | Y79: =SUM(Y$39:Y$58*($I$39:$I$58=$A79)) -> 0 | Z79: =SUM(Z$39:Z$58*($I$39:$I$58=$A79)) -> 0 | AA79: =SUM(AA$39:AA$58*($I$39:$I$58=$A79)) -> 0 | AB79: =SUM(AB$39:AB$58*($I$39:$I$58=$A79)) -> 0 | AC79: =SUM(AC$39:AC$58*($I$39:$I$58=$A79)) -> 0 | AD79: =SUM(AD$39:AD$58*($I$39:$I$58=$A79)) -> 0 | AE79: =SUM(AE$39:AE$58*($I$39:$I$58=$A79)) -> 0 | AF79: =SUM(AF$39:AF$58*($I$39:$I$58=$A79)) -> 0 | AG79: 0
A80: Non-network - Minor Plant, Motor Vehicles & Mobile Plant | B80: Calculated | C80: $Millions | W80: =SUM(W$39:W$58*($I$39:$I$58=$A80)) -> 0 | X80: =SUM(X$39:X$58*($I$39:$I$58=$A80)) -> 0 | Y80: =SUM(Y$39:Y$58*($I$39:$I$58=$A80)) -> 0 | Z80: =SUM(Z$39:Z$58*($I$39:$I$58=$A80)) -> 0 | AA80: =SUM(AA$39:AA$58*($I$39:$I$58=$A80)) -> 0 | AB80: =SUM(AB$39:AB$58*($I$39:$I$58=$A80)) -> 0 | AC80: =SUM(AC$39:AC$58*($I$39:$I$58=$A80)) -> 0 | AD80: =SUM(AD$39:AD$58*($I$39:$I$58=$A80)) -> 0 | AE80: =SUM(AE$39:AE$58*($I$39:$I$58=$A80)) -> 0 | AF80: =SUM(AF$39:AF$58*($I$39:$I$58=$A80)) -> 0 | AG80: 0
A81: Non-network - Buildings | B81: Calculated | C81: $Millions | W81: =SUM(W$39:W$58*($I$39:$I$58=$A81)) -> 0 | X81: =SUM(X$39:X$58*($I$39:$I$58=$A81)) -> 0 | Y81: =SUM(Y$39:Y$58*($I$39:$I$58=$A81)) -> 0 | Z81: =SUM(Z$39:Z$58*($I$39:$I$58=$A81)) -> 0 | AA81: =SUM(AA$39:AA$58*($I$39:$I$58=$A81)) -> 0 | AB81: =SUM(AB$39:AB$58*($I$39:$I$58=$A81)) -> 0 | AC81: =SUM(AC$39:AC$58*($I$39:$I$58=$A81)) -> 0 | AD81: =SUM(AD$39:AD$58*($I$39:$I$58=$A81)) -> 0 | AE81: =SUM(AE$39:AE$58*($I$39:$I$58=$A81)) -> 0 | AF81: =SUM(AF$39:AF$58*($I$39:$I$58=$A81)) -> 0 | AG81: 0
A82: Non-network - In-house software | B82: Calculated | C82: $Millions | W82: =SUM(W$39:W$58*($I$39:$I$58=$A82)) -> 0 | X82: =SUM(X$39:X$58*($I$39:$I$58=$A82)) -> 0 | Y82: =SUM(Y$39:Y$58*($I$39:$I$58=$A82)) -> 0 | Z82: =SUM(Z$39:Z$58*($I$39:$I$58=$A82)) -> 0 | AA82: =SUM(AA$39:AA$58*($I$39:$I$58=$A82)) -> 0 | AB82: =SUM(AB$39:AB$58*($I$39:$I$58=$A82)) -> 0 | AC82: =SUM(AC$39:AC$58*($I$39:$I$58=$A82)) -> 0 | AD82: =SUM(AD$39:AD$58*($I$39:$I$58=$A82)) -> 0 | AE82: =SUM(AE$39:AE$58*($I$39:$I$58=$A82)) -> 0 | AF82: =SUM(AF$39:AF$58*($I$39:$I$58=$A82)) -> 0 | AG82: 0
V84: Total | W84: =SUM(W64:W82) -> 0 | X84: 0 | Y84: 0 | Z84: 0.5660371926 | AA84: 59.28008162 | AB84: 111.8815258 | AC84: =SUM(AC64:AC82) -> 11.49691026 | AD84: =SUM(AD64:AD82) -> 0 | AE84: =SUM(AE64:AE82) -> 0 | AF84: =SUM(AF64:AF82) -> 0 | AG84: 183.2245549
A87: Labour Costs
A89: Labour Costs | E89: Conversion | H89: Mapping | K89: ="Expenditure (June "&E91&" dollars, unescalated)" -> Expenditure (June 2023 dollars, unescalated)
A90: Component | B90: Source | C90: Units | E90: Dollar Yr | F90: Escalation Yr | K90: =K20 -> 2020 | L90: 2021 | M90: 2022 | N90: 2023 | O90: 2024 | P90: 2025 | Q90: 2026 | R90: 2027 | S90: 2028 | T90: 2029 | U90: Total
A91: Actuals (to 31 March 2023) | E91: 2023 | F91: 2023
A92: Labour - Project Management | B92: Transgrid | C92: $Millions | H92: Project Management | N92: c-i-c | U92: c-i-c
A93: Labour - SIPS Control Implementation | B93: Transgrid | C93: $Millions | H93: SIPS Control Implementation | N93: c-i-c | U93: c-i-c
A94: Labour - Other Support & Corporate Roles | B94: Transgrid | C94: $Millions | H94: Other Support & Corporate Roles | N94: c-i-c | U94: c-i-c
A95: Labour - Transaction Procurement Support | B95: Transgrid | C95: $Millions | H95: Transaction Procurement Support | N95: c-i-c | U95: c-i-c
A96: Labour - Regulatory Approvals | B96: Transgrid | C96: $Millions | H96: Regulatory Approvals | N96: c-i-c | U96: c-i-c
A97: Labour - Community and Stakeholder Engagement | B97: Transgrid | C97: $Millions | H97: Community and Stakeholder Engagement | N97: c-i-c | U97: c-i-c
A98: Labour - Environment | B98: Transgrid | C98: $Millions | H98: Environment | N98: c-i-c | U98: c-i-c
A99: Labour - Procurement | B99: Transgrid | C99: $Millions | H99: Transaction Procurement Support | N99: c-i-c | U99: c-i-c
A100: Forecasts (from 1 April 2023)
A101: =A92 -> Labour - Project Management | B101: Transgrid | C101: $Millions | H101: Project Management | N101: c-i-c | O101: c-i-c | P101: c-i-c | Q101: c-i-c | U101: c-i-c
A102: Labour - SIPS Control Implementation | B102: Transgrid | C102: $Millions | H102: SIPS Control Implementation | N102: c-i-c | O102: c-i-c | P102: c-i-c | Q102: c-i-c | U102: c-i-c
A103: =A94 -> Labour - Other Support & Corporate Roles | B103: Transgrid | C103: $Millions | H103: Other Support & Corporate Roles | N103: c-i-c | O103: c-i-c | P103: c-i-c | Q103: c-i-c | U103: c-i-c
A104: =A95 -> Labour - Transaction Procurement Support | B104: Transgrid | C104: $Millions | H104: Transaction Procurement Support | N104: c-i-c | O104: c-i-c | P104: c-i-c | Q104: c-i-c | U104: c-i-c
A105: =A96 -> Labour - Regulatory Approvals | B105: Transgrid | C105: $Millions | H105: Regulatory Approvals | N105: c-i-c | O105: c-i-c | P105: c-i-c | Q105: c-i-c | U105: c-i-c
A106: =A97 -> Labour - Community and Stakeholder Engagement | B106: Transgrid | C106: $Millions | H106: Community and Stakeholder Engagement | N106: c-i-c | O106: c-i-c | P106: c-i-c | Q106: c-i-c | U106: c-i-c
A107: =A98 -> Labour - Environment | B107: Transgrid | C107: $Millions | H107: Environment | N107: c-i-c | O107: c-i-c | P107: c-i-c | Q107: c-i-c | U107: c-i-c
A108: Labour - Procurement | B108: Transgrid | C108: $Millions | H108: Transaction Procurement Support | N108: c-i-c | O108: c-i-c | P108: c-i-c | Q108: c-i-c | U108: c-i-c
A109: Total
A110: Labour | B110: Transgrid | C110: $Millions | K110: =SUM(K92:K99,K101:K108) -> 0 | L110: =SUM(L92:L99,L101:L108) -> 0 | M110: =SUM(M92:M99,M101:M108) -> 0 | N110: 4.748982628 | O110: 19.46041057 | P110: 12.30824704 | Q110: 1.090939098 | R110: 0 | S110: 0 | T110: 0 | U110: 37.60857934
A112: Note: Direct labour costs for each year are pro-rated across escalated capex by asset class for that year | J112: Total | K112: =K110 -> 0 | L112: 0 | M112: 0 | N112: 4.748982628 | O112: 19.46041057 | P112: 12.30824704 | Q112: 1.090939098 | R112: 0 | S112: 0 | T112: 0 | U112: =SUM(K112:T112) -> 37.60857934
J113: ="Actuals ("&$A$8&")" -> Actuals (Real $2024) | K113: =SUM(K92:K99)*K$23 -> 0 | L113: =SUM(L92:L99)*L$23 -> 0 | M113: =SUM(M92:M99)*M$23 -> 0 | N113: 1.519620623 | O113: 0 | P113: 0 | Q113: 0 | R113: 0 | S113: 0 | T113: 0 | U113: 1.519620623
J114: ="Forecast ("&$A$8&")" -> Forecast (Real $2024) | K114: =SUM(K101:K108)*K$23 -> 0 | L114: =SUM(L101:L108)*L$23 -> 0 | M114: =SUM(M101:M108)*M$23 -> 0 | N114: 3.40032538 | O114: 20.16098535 | P114: 12.75134393 | Q114: 1.130212905 | R114: 0 | S114: 0 | T114: 0 | U114: 37.44286757
J115: ="Total ("&$A$8&")" -> Total (Real $2024) | K115: =K112*K$23 -> 0 | L115: 0 | M115: 0 | N115: 4.919946003 | O115: 20.16098535 | P115: 12.75134393 | Q115: 1.130212905 | R115: 0 | S115: 0 | T115: 0 | U115: =SUM(K115:T115) -> 38.96248819
J116: ="Total including escalation ("&$A$8&")" -> Total including escalation (Real $2024) | K116: =K115*K$22/INDEX(Inputs!$K$22:$T$22,MATCH(Inputs!$F$91,Years,0)) -> 0 | L116: =L115*L$22/INDEX(Inputs!$K$22:$T$22,MATCH(Inputs!$F$91,Years,0)) -> 0 | M116: =M115*M$22/INDEX(Inputs!$K$22:$T$22,MATCH(Inputs!$F$91,Years,0)) -> 0 | N116: =N115*N$22/INDEX(Inputs!$K$22:$T$22,MATCH(Inputs!$F$91,Years,0)) -> 4.919946003 | O116: =O115*O$22/INDEX(Inputs!$K$22:$T$22,MATCH(Inputs!$F$91,Years,0)) -> 20.23970707 | P116: =P115*P$22/INDEX(Inputs!$K$22:$T$22,MATCH(Inputs!$F$91,Years,0)) -> 12.96852735 | Q116: =Q115*Q$22/INDEX(Inputs!$K$22:$T$22,MATCH(Inputs!$F$91,Years,0)) -> 1.162735119 | R116: =R115*R$22/INDEX(Inputs!$K$22:$T$22,MATCH(Inputs!$F$91,Years,0)) -> 0 | S116: =S115*S$22/INDEX(Inputs!$K$22:$T$22,MATCH(Inputs!$F$91,Years,0)) -> 0 | T116: =T115*T$22/INDEX(Inputs!$K$22:$T$22,MATCH(Inputs!$F$91,Years,0)) -> 0 | U116: =SUM(K116:T116) -> 39.29091555
A118: Indirect Non-Labour Costs
A120: Indirect Costs | E120: Conversion | H120: Mapping | K120: ="Expenditure (June "&E122&" dollars, unescalated)" -> Expenditure (June 2023 dollars, unescalated)
A121: Component | B121: Source | C121: Units | E121: Dollar Year | K121: =K$20 -> 2020 | L121: =L$20 -> 2021 | M121: 2022 | N121: 2023 | O121: 2024 | P121: 2025 | Q121: 2026 | R121: 2027 | S121: 2028 | T121: 2029 | U121: Total
A122: =A91 -> Actuals (to 31 March 2023) | E122: 2023
A123: Non Labour - Proportion of labour and labour-related costs | B123: Transgrid | C123: $Millions | H123: Other Support & Corporate Roles | N123: c-i-c | U123: c-i-c
A124: Non Labour - Project Management | B124: Transgrid | C124: $Millions | H124: Project Management | N124: c-i-c | U124: c-i-c
A125: Non Labour - SIPS Control Implementation | B125: Transgrid | C125: $Millions | H125: SIPS Control Implementation | N125: c-i-c | U125: c-i-c
A126: Non Labour - Other Support & Corporate Roles | B126: Transgrid | C126: $Millions | H126: Other Support & Corporate Roles | N126: c-i-c | U126: c-i-c
A127: Non Labour - Regulatory Approvals and Other Support Costs | B127: Transgrid | C127: $Millions | H127: Regulatory Approvals | N127: c-i-c | U127: c-i-c
A128: Non Labour - Community and Stakeholder Engagement | B128: Transgrid | C128: $Millions | H128: Community and Stakeholder Engagement | N128: c-i-c | U128: c-i-c
A129: Non Labour - Land and Environment | B129: Transgrid | C129: $Millions | H129: Environment | N129: c-i-c | U129: c-i-c
A130: Non Labour - Procurement | B130: Transgrid | C130: $Millions | H130: Transaction Procurement Support | N130: c-i-c | U130: c-i-c
A131: Non Labour - Transaction Procurement Support | B131: Transgrid | C131: $Millions | H131: Transaction Procurement Support | N131: c-i-c | U131: c-i-c
A132: =A100 -> Forecasts (from 1 April 2023)
A133: =A123 -> Non Labour - Proportion of labour and labour-related costs | B133: Transgrid | C133: $Millions | H133: =H123 -> Other Support & Corporate Roles | N133: c-i-c | O133: c-i-c | P133: c-i-c | Q133: c-i-c | U133: c-i-c
A134: =A124 -> Non Labour - Project Management | B134: Transgrid | C134: $Millions | H134: =H124 -> Project Management | N134: c-i-c | O134: c-i-c | P134: c-i-c | Q134: c-i-c | U134: c-i-c
A135: Non Labour - SIPS Control Implementation | B135: Transgrid | C135: $Millions | H135: SIPS Control Implementation | N135: c-i-c | O135: c-i-c | P135: c-i-c | Q135: c-i-c | U135: c-i-c
A136: =A126 -> Non Labour - Other Support & Corporate Roles | B136: Transgrid | C136: $Millions | H136: Other Support & Corporate Roles | N136: c-i-c | O136: c-i-c | P136: c-i-c | Q136: c-i-c | U136: c-i-c
A137: Non Labour - Regulatory Approvals and Other Support Costs | B137: Transgrid | C137: $Millions | H137: Regulatory Approvals | N137: c-i-c | O137: c-i-c | P137: c-i-c | Q137: c-i-c | U137: c-i-c
A138: Non Labour - Community and Stakeholder Engagement | B138: Transgrid | C138: $Millions | H138: Community and Stakeholder Engagement | N138: c-i-c | O138: c-i-c | P138: c-i-c | Q138: c-i-c | U138: c-i-c
A139: Non Labour - Land and Environment | B139: Transgrid | C139: $Millions | H139: Environment | N139: c-i-c | O139: c-i-c | P139: c-i-c | Q139: c-i-c | U139: c-i-c
A140: Non Labour - Procurement | B140: Transgrid | C140: $Millions | H140: Transaction Procurement Support | N140: c-i-c | O140: c-i-c | P140: c-i-c | Q140: c-i-c | U140: c-i-c
A141: Non Labour - Transaction Procurement Support | B141: Transgrid | C141: $Millions | H141: Transaction Procurement Support | N141: c-i-c | O141: c-i-c | P141: c-i-c | Q141: c-i-c | U141: c-i-c
A142: =A109 -> Total
A143: Non-Labour | B143: Transgrid | C143: $Millions | K143: =SUM(K123:K131,K133:K141) -> 0 | L143: =SUM(L123:L131,L133:L141) -> 0 | M143: =SUM(M123:M131,M133:M141) -> 0 | N143: 5.739571839 | O143: 12.60849664 | P143: 6.164614417 | Q143: 0.5860907576 | R143: 0 | S143: 0 | T143: 0 | U143: 25.09877365
A145: Note: Indirect costs for each year are pro-rated across escalated capex (including direct labour costs) by asset class for that year | J145: Total | K145: =K143 -> 0 | L145: =L143 -> 0 | M145: 0 | N145: 5.739571839 | O145: 12.60849664 | P145: 6.164614417 | Q145: 0.5860907576 | R145: 0 | S145: 0 | T145: 0 | U145: =SUM(K145:T145) -> 25.09877365
J146: ="Actuals ("&$A$8&")" -> Actuals (Real $2024) | K146: =SUM(K123:K131)*K$23 -> 0 | L146: =SUM(L123:L131)*L$23 -> 0 | M146: =SUM(M123:M131)*M$23 -> 0 | N146: 2.801240594 | O146: 0 | P146: 0 | Q146: 0 | R146: 0 | S146: 0 | T146: 0 | U146: 2.801240594
J147: ="Forecast ("&$A$8&")" -> Forecast (Real $2024) | K147: =SUM(K133:K141)*K$23 -> 0 | L147: =SUM(L133:L141)*L$23 -> 0 | M147: =SUM(M133:M141)*M$23 -> 0 | N147: 3.144955832 | O147: 13.06240252 | P147: 6.386540536 | Q147: 0.6071900249 | R147: 0 | S147: 0 | T147: 0 | U147: 23.20108891
J148: ="Total ("&$A$8&")" -> Total (Real $2024) | K148: =K145*K$23 -> 0 | L148: =L145*L$23 -> 0 | M148: 0 | N148: 5.946196425 | O148: 13.06240252 | P148: 6.386540536 | Q148: 0.6071900249 | R148: 0 | S148: 0 | T148: 0 | U148: =SUM(K148:T148) -> 26.0023295
A150: Equity Raising Costs (Used in Output|Tables and Charts)
A152: Equity Raising Costs | E152: Conversion | K152: ="Expenditure (June "&E154&" dollars, unescalated)" -> Expenditure (June 2024 dollars, unescalated)
A153: Component | B153: Source | C153: Units | E153: Dollar Year | K153: =K$20 -> 2020 | L153: 2021 | M153: 2022 | N153: 2023 | O153: 2024 | P153: 2025 | Q153: 2026 | R153: 2027 | S153: 2028 | T153: 2029 | U153: Total
A154: Equity Raising Cost Allowance From PTRM | B154: Transgrid | C154: $Millions | E154: =$O$20 -> 2024 | P154: 0.6765261571 | Q154: 0 | R154: 0 | S154: 0 | T154: 0 | U154: =SUM(K154:T154) -> 0.6765261571
A156: Lookup tables and mapping
A158: Capex input template | B158: =$A$180 -> PTRM and RFM models | C158: Regulatory Information Notice
A159: Categories | B159: =$A$181 -> RAB Asset Classes | C159: Network and Non Network Categories
A160: Transmission Lines - Transmission Towers | B160: =$A$182 -> Transmission Lines | C160: =A199 -> Transmission Towers
A161: Transmission Lines - Transmission tower support structures | B161: =$A$182 -> Transmission Lines | C161: =A200 -> Transmission tower support structures
A162: Transmission Lines - Conductors | B162: =$A$182 -> Transmission Lines | C162: =A201 -> Conductors
A163: Transmission Lines - Transmission line life extension | B163: =$A$190 -> Transmission Line Life Extension | C163: =A202 -> Transmission cables
A164: Underground cables - Transmission cables | B164: =$A$183 -> Underground Cables | C164: =A202 -> Transmission cables
A165: Substations - Substation switchbays | B165: =$A$184 -> Substations | C165: =A203 -> Substation switchbays
A166: Substations - Substation power transformers | B166: =$A$184 -> Substations | C166: =A204 -> Substation power transformers
A167: Substations - Substation reactive plant | B167: =$A$184 -> Substations | C167: =A205 -> Substation reactive plant
A168: Secondary Systems - Scada, network control and protection systems | B168: =$A$185 -> Secondary Systems | C168: =A206 -> Scada, network control and protection systems
A169: Communications (short life) - Scada, network control and protection systems | B169: =$A$186 -> Communications (short life) | C169: =$A$206 -> Scada, network control and protection systems
A170: SIPS Control | B170: =$A$187 -> SIPS Control | C170: =$A$206 -> Scada, network control and protection systems
A171: Synchronous condensers | B171: =A192 -> Synchronous Condensers | C171: =$A$207 -> Other network
A172: Other - Leasehold land and property | B172: =A193 -> Leasehold Land and Property | C172: =A210 -> Buildings and Property
A173: Other - Land and Easements | B173: =A191 -> Land and Easements | C173: =A211 -> Other non network
A174: Other - Buildings capital works | B174: =A194 -> Buildings - capital works | C174: =A210 -> Buildings and Property
A175: Non-network - Business IT | B175: =A188 -> Business IT | C175: =A208 -> IT & Communications
A176: Non-network - Minor Plant, Motor Vehicles & Mobile Plant | B176: =A189 -> Minor Plant, Motor Vehicles & Mobile Plant | C176: =A211 -> Other non network
A177: Non-network - Buildings | B177: =A194 -> Buildings - capital works | C177: =A210 -> Buildings and Property
A178: Non-network - In-house software | B178: =A195 -> In-house software | C178: =A208 -> IT & Communications
A180: PTRM and RFM models
A181: RAB Asset Classes
A182: Transmission Lines
A183: Underground Cables
A184: Substations
A185: Secondary Systems
A186: Communications (short life)
A187: SIPS Control
A188: Business IT
A189: Minor Plant, Motor Vehicles & Mobile Plant
A190: Transmission Line Life Extension
A191: Land and Easements
A192: Synchronous Condensers
A193: Leasehold Land and Property
A194: Buildings - capital works
A195: In-house software
A197: Regulatory Information Notice
A198: Network and Non Network Categories
A199: Transmission Towers
A200: Transmission tower support structures
A201: Conductors
A202: Transmission cables
A203: Substation switchbays
A204: Substation power transformers
A205: Substation reactive plant
A206: Scada, network control and protection systems
A207: Other network
A208: IT & Communications
A209: Motor Vehicles
A210: Buildings and Property
A211: Other non network
A213: End

Sheet Calculations
A1: Calculations | E1: =Inputs!$A$8 -> Real $2024
B3: Incremental Capital Expenditure (Excluding Equity Raising Costs) by Capex Category | O3: Total | Q3: Mapping | R3: Mapping
B4: Capex category | C4: Dollar basis | D4: Units | E4: =Inputs!K$20 -> 2020 | F4: =Inputs!L$20 -> 2021 | G4: =Inputs!M$20 -> 2022 | H4: =Inputs!N$20 -> 2023 | I4: =Inputs!O$20 -> 2024 | J4: =Inputs!P$20 -> 2025 | K4: =Inputs!Q$20 -> 2026 | L4: =Inputs!R$20 -> 2027 | M4: =Inputs!S$20 -> 2028 | N4: =Inputs!T$20 -> 2029 | Q4: RAB Asset Class | R4: RIN Network and Non network
B6: Direct Non-Labour Costs
B7: =Inputs!$A$160 -> Transmission Lines - Transmission Towers | C7: =Inputs!$A$8 -> Real $2024 | D7: $Million | E7: 0 | F7: 0 | G7: 0 | H7: 0 | I7: 2.273634265 | J7: 4.334944394 | K7: 0 | L7: 0 | M7: 0 | N7: 0 | O7: =SUM(E7:N7) -> 6.608578659 | Q7: =Inputs!B160 -> Transmission Lines | R7: =Inputs!C160 -> Transmission Towers
B8: =Inputs!$A$161 -> Transmission Lines - Transmission tower support structures | C8: =Inputs!$A$8 -> Real $2024 | D8: $Million | E8: 0 | F8: 0 | G8: 0 | H8: 0 | I8: 19.42519063 | J8: 43.72757694 | K8: 0 | L8: 0 | M8: 0 | N8: 0 | O8: =SUM(E8:N8) -> 63.15276757 | Q8: =Inputs!B161 -> Transmission Lines | R8: =Inputs!C161 -> Transmission tower support structures
B9: =Inputs!$A$162 -> Transmission Lines - Conductors | C9: =Inputs!$A$8 -> Real $2024 | D9: $Million | E9: 0 | F9: 0 | G9: 0 | H9: 0 | I9: 0 | J9: 0 | K9: 0 | L9: 0 | M9: 0 | N9: 0 | O9: =SUM(E9:N9) -> 0 | Q9: =Inputs!B162 -> Transmission Lines | R9: =Inputs!C162 -> Conductors
B10: =Inputs!$A$163 -> Transmission Lines - Transmission line life extension | C10: =Inputs!$A$8 -> Real $2024 | D10: $Million | E10: 0 | F10: 0 | G10: 0 | H10: 0 | I10: 0 | J10: 0 | K10: 0 | L10: 0 | M10: 0 | N10: 0 | O10: =SUM(E10:N10) -> 0 | Q10: =Inputs!B163 -> Transmission Line Life Extension | R10: =Inputs!C163 -> Transmission cables
B11: =Inputs!$A$164 -> Underground cables - Transmission cables | C11: =Inputs!$A$8 -> Real $2024 | D11: $Million | E11: 0 | F11: 0 | G11: 0 | H11: 0 | I11: 0 | J11: 0 | K11: 0 | L11: 0 | M11: 0 | N11: 0 | O11: 0 | Q11: =Inputs!B164 -> Underground Cables | R11: =Inputs!C164 -> Transmission cables
B12: =Inputs!$A$165 -> Substations - Substation switchbays | C12: =Inputs!$A$8 -> Real $2024 | D12: $Million | E12: 0 | F12: 0 | G12: 0 | H12: 0 | I12: 34.44039948 | J12: 62.4856725 | K12: 11.49691026 | L12: 0 | M12: 0 | N12: 0 | O12: 108.4229822 | Q12: =Inputs!B165 -> Substations | R12: =Inputs!C165 -> Substation switchbays
B13: =Inputs!$A$166 -> Substations - Substation power transformers | C13: =Inputs!$A$8 -> Real $2024 | D13: $Million | E13: 0 | F13: 0 | G13: 0 | H13: 0 | I13: 0 | J13: 0 | K13: 0 | L13: 0 | M13: 0 | N13: 0 | O13: 0 | Q13: =Inputs!B166 -> Substations | R13: =Inputs!C166 -> Substation power transformers
B14: =Inputs!$A$167 -> Substations - Substation reactive plant | C14: =Inputs!$A$8 -> Real $2024 | D14: $Million | E14: 0 | F14: 0 | G14: 0 | H14: 0 | I14: 0 | J14: 0 | K14: 0 | L14: 0 | M14: 0 | N14: 0 | O14: 0 | Q14: =Inputs!B167 -> Substations | R14: =Inputs!C167 -> Substation reactive plant
B15: =Inputs!$A$168 -> Secondary Systems - Scada, network control and protection systems | C15: =Inputs!$A$8 -> Real $2024 | D15: $Million | E15: 0 | F15: 0 | G15: 0 | H15: 0 | I15: 0 | J15: 0 | K15: 0 | L15: 0 | M15: 0 | N15: 0 | O15: 0 | Q15: =Inputs!B168 -> Secondary Systems | R15: =Inputs!C168 -> Scada, network control and protection systems
B16: =Inputs!$A$169 -> Communications (short life) - Scada, network control and protection systems | C16: =Inputs!$A$8 -> Real $2024 | D16: $Million | E16: 0 | F16: 0 | G16: 0 | H16: 0 | I16: 0 | J16: 0 | K16: 0 | L16: 0 | M16: 0 | N16: 0 | O16: 0 | Q16: =Inputs!B169 -> Communications (short life) | R16: =Inputs!C169 -> Scada, network control and protection systems
B17: =Inputs!$A$170 -> SIPS Control | C17: =Inputs!$A$8 -> Real $2024 | D17: $Million | E17: 0 | F17: 0 | G17: 0 | H17: 0.5660371926 | I17: 3.140857251 | J17: 1.333332 | K17: 0 | L17: 0 | M17: 0 | N17: 0 | O17: =SUM(E17:N17) -> 5.040226444 | Q17: =Inputs!B170 -> SIPS Control | R17: =Inputs!C170 -> Scada, network control and protection systems
B18: =Inputs!$A$171 -> Synchronous condensers | C18: =Inputs!$A$8 -> Real $2024 | D18: $Million | E18: 0 | F18: 0 | G18: 0 | H18: 0 | I18: 0 | J18: 0 | K18: 0 | L18: 0 | M18: 0 | N18: 0 | O18: 0 | Q18: =Inputs!B171 -> Synchronous Condensers | R18: =Inputs!C171 -> Other network
B19: =Inputs!$A$172 -> Other - Leasehold land and property | C19: =Inputs!$A$8 -> Real $2024 | D19: $Million | E19: 0 | F19: 0 | G19: 0 | H19: 0 | I19: 0 | J19: 0 | K19: 0 | L19: 0 | M19: 0 | N19: 0 | O19: 0 | Q19: =Inputs!B172 -> Leasehold Land and Property | R19: =Inputs!C172 -> Buildings and Property
B20: =Inputs!$A$173 -> Other - Land and Easements | C20: =Inputs!$A$8 -> Real $2024 | D20: $Million | E20: 0 | F20: 0 | G20: 0 | H20: 0 | I20: 0 | J20: 0 | K20: 0 | L20: 0 | M20: 0 | N20: 0 | O20: 0 | Q20: =Inputs!B173 -> Land and Easements | R20: =Inputs!C173 -> Other non network
B21: =Inputs!$A$174 -> Other - Buildings capital works | C21: =Inputs!$A$8 -> Real $2024 | D21: $Million | E21: 0 | F21: 0 | G21: 0 | H21: 0 | I21: 0 | J21: 0 | K21: 0 | L21: 0 | M21: 0 | N21: 0 | O21: 0 | Q21: =Inputs!B174 -> Buildings - capital works | R21: =Inputs!C174 -> Buildings and Property
B22: =Inputs!$A$175 -> Non-network - Business IT | C22: =Inputs!$A$8 -> Real $2024 | D22: $Million | E22: 0 | F22: 0 | G22: 0 | H22: 0 | I22: 0 | J22: 0 | K22: 0 | L22: 0 | M22: 0 | N22: 0 | O22: 0 | Q22: =Inputs!B175 -> Business IT | R22: =Inputs!C175 -> IT & Communications
B23: =Inputs!$A$176 -> Non-network - Minor Plant, Motor Vehicles & Mobile Plant | C23: =Inputs!$A$8 -> Real $2024 | D23: $Million | E23: 0 | F23: 0 | G23: 0 | H23: 0 | I23: 0 | J23: 0 | K23: 0 | L23: 0 | M23: 0 | N23: 0 | O23: 0 | Q23: =Inputs!B176 -> Minor Plant, Motor Vehicles & Mobile Plant | R23: =Inputs!C176 -> Other non network
B24: =Inputs!$A$177 -> Non-network - Buildings | C24: =Inputs!$A$8 -> Real $2024 | D24: $Million | E24: 0 | F24: 0 | G24: 0 | H24: 0 | I24: 0 | J24: 0 | K24: 0 | L24: 0 | M24: 0 | N24: 0 | O24: 0 | Q24: =Inputs!B177 -> Buildings - capital works | R24: =Inputs!C177 -> Buildings and Property
B25: =Inputs!$A$178 -> Non-network - In-house software | C25: =Inputs!$A$8 -> Real $2024 | D25: $Million | E25: 0 | F25: 0 | G25: 0 | H25: 0 | I25: 0 | J25: 0 | K25: 0 | L25: 0 | M25: 0 | N25: 0 | O25: 0 | Q25: =Inputs!B178 -> In-house software | R25: =Inputs!C178 -> IT & Communications
B26: Sub-Total | C26: =Inputs!$A$8 -> Real $2024 | D26: $Million | E26: =SUM(E7:E25) -> 0 | F26: 0 | G26: 0 | H26: 0.5660371926 | I26: 59.28008162 | J26: 111.8815258 | K26: 11.49691026 | L26: 0 | M26: 0 | N26: 0 | O26: 183.2245549
B28: Labour Costs | T28: ← This value is pro-rated over the escalated capital forecast by year and asset class
B29: =Inputs!$A$160 -> Transmission Lines - Transmission Towers | C29: =Inputs!$A$8 -> Real $2024 | D29: $Million | E29: 0 | F29: 0 | G29: 0 | H29: 0.1522821505 | I29: 0.5928481892 | J29: 0.4646802506 | K29: 0 | L29: 0 | M29: 0 | N29: 0 | O29: =SUM(E29:N29) -> 1.20981059 | Q29: =Q7 -> Transmission Lines | R29: Transmission Towers
B30: =Inputs!$A$161 -> Transmission Lines - Transmission tower support structures | C30: =Inputs!$A$8 -> Real $2024 | D30: $Million | E30: 0 | F30: 0 | G30: 0 | H30: 1.455235649 | I30: 5.065101835 | J30: 4.687336114 | K30: 0 | L30: 0 | M30: 0 | N30: 0 | O30: =SUM(E30:N30) -> 11.2076736 | Q30: Transmission Lines | R30: Transmission tower support structures
B31: =Inputs!$A$162 -> Transmission Lines - Conductors | C31: =Inputs!$A$8 -> Real $2024 | D31: $Million | E31: 0 | F31: 0 | G31: 0 | H31: 0 | I31: 0 | J31: 0 | K31: 0 | L31: 0 | M31: 0 | N31: 0 | O31: 0 | Q31: Transmission Lines | R31: Conductors
B32: =Inputs!$A$163 -> Transmission Lines - Transmission line life extension | C32: =Inputs!$A$8 -> Real $2024 | D32: $Million | E32: 0 | F32: 0 | G32: 0 | H32: 0 | I32: 0 | J32: 0 | K32: 0 | L32: 0 | M32: 0 | N32: 0 | O32: 0 | Q32: Transmission Line Life Extension | R32: Transmission cables
B33: =Inputs!$A$164 -> Underground cables - Transmission cables | C33: =Inputs!$A$8 -> Real $2024 | D33: $Million | E33: 0 | F33: 0 | G33: 0 | H33: 0 | I33: 0 | J33: 0 | K33: 0 | L33: 0 | M33: 0 | N33: 0 | O33: 0 | Q33: Underground Cables | R33: Transmission cables
B34: =Inputs!$A$165 -> Substations - Substation switchbays | C34: =Inputs!$A$8 -> Real $2024 | D34: $Million | E34: 0 | F34: 0 | G34: 0 | H34: 2.498401813 | I34: 8.980304695 | J34: 6.698092368 | K34: 1.162735119 | L34: 0 | M34: 0 | N34: 0 | O34: 19.33953399 | Q34: Substations | R34: Substation switchbays
B35: =Inputs!$A$166 -> Substations - Substation power transformers | C35: =Inputs!$A$8 -> Real $2024 | D35: $Million | E35: 0 | F35: 0 | G35: 0 | H35: 0 | I35: 0 | J35: 0 | K35: 0 | L35: 0 | M35: 0 | N35: 0 | O35: 0 | Q35: Substations | R35: Substation power transformers
B36: =Inputs!$A$167 -> Substations - Substation reactive plant | C36: =Inputs!$A$8 -> Real $2024 | D36: $Million | E36: 0 | F36: 0 | G36: 0 | H36: 0 | I36: 0 | J36: 0 | K36: 0 | L36: 0 | M36: 0 | N36: 0 | O36: 0 | Q36: Substations | R36: Substation reactive plant
B37: =Inputs!$A$168 -> Secondary Systems - Scada, network control and protection systems | C37: =Inputs!$A$8 -> Real $2024 | D37: $Million | E37: 0 | F37: 0 | G37: 0 | H37: 0 | I37: 0 | J37: 0 | K37: 0 | L37: 0 | M37: 0 | N37: 0 | O37: 0 | Q37: Secondary Systems | R37: Scada, network control and protection systems
B38: =Inputs!$A$169 -> Communications (short life) - Scada, network control and protection systems | C38: =Inputs!$A$8 -> Real $2024 | D38: $Million | E38: 0 | F38: 0 | G38: 0 | H38: 0 | I38: 0 | J38: 0 | K38: 0 | L38: 0 | M38: 0 | N38: 0 | O38: 0 | Q38: Communications (short life) | R38: Scada, network control and protection systems
B39: =Inputs!$A$170 -> SIPS Control | C39: =Inputs!$A$8 -> Real $2024 | D39: $Million | E39: 0 | F39: 0 | G39: 0 | H39: 0.8140263902 | I39: 5.601452355 | J39: 1.118418617 | K39: 0 | L39: 0 | M39: 0 | N39: 0 | O39: =SUM(E39:N39) -> 7.533897363 | Q39: SIPS Control | R39: Scada, network control and protection systems
B40: =Inputs!$A$171 -> Synchronous condensers | C40: =Inputs!$A$8 -> Real $2024 | D40: $Million | E40: 0 | F40: 0 | G40: 0 | H40: 0 | I40: 0 | J40: 0 | K40: 0 | L40: 0 | M40: 0 | N40: 0 | O40: 0 | Q40: Synchronous Condensers | R40: Other network
B41: =Inputs!$A$172 -> Other - Leasehold land and property | C41: =Inputs!$A$8 -> Real $2024 | D41: $Million | E41: 0 | F41: 0 | G41: 0 | H41: 0 | I41: 0 | J41: 0 | K41: 0 | L41: 0 | M41: 0 | N41: 0 | O41: 0 | Q41: Leasehold Land and Property | R41: Buildings and Property
B42: =Inputs!$A$173 -> Other - Land and Easements | C42: =Inputs!$A$8 -> Real $2024 | D42: $Million | E42: 0 | F42: 0 | G42: 0 | H42: 0 | I42: 0 | J42: 0 | K42: 0 | L42: 0 | M42: 0 | N42: 0 | O42: 0 | Q42: Land and Easements | R42: Other non network
B43: =Inputs!$A$174 -> Other - Buildings capital works | C43: =Inputs!$A$8 -> Real $2024 | D43: $Million | E43: 0 | F43: 0 | G43: 0 | H43: 0 | I43: 0 | J43: 0 | K43: 0 | L43: 0 | M43: 0 | N43: 0 | O43: 0 | Q43: Buildings - capital works | R43: Buildings and Property
B44: =Inputs!$A$175 -> Non-network - Business IT | C44: =Inputs!$A$8 -> Real $2024 | D44: $Million | E44: 0 | F44: 0 | G44: 0 | H44: 0 | I44: 0 | J44: 0 | K44: 0 | L44: 0 | M44: 0 | N44: 0 | O44: 0 | Q44: Business IT | R44: IT & Communications
B45: =Inputs!$A$176 -> Non-network - Minor Plant, Motor Vehicles & Mobile Plant | C45: =Inputs!$A$8 -> Real $2024 | D45: $Million | E45: 0 | F45: 0 | G45: 0 | H45: 0 | I45: 0 | J45: 0 | K45: 0 | L45: 0 | M45: 0 | N45: 0 | O45: 0 | Q45: Minor Plant, Motor Vehicles & Mobile Plant | R45: Other non network
B46: =Inputs!$A$177 -> Non-network - Buildings | C46: =Inputs!$A$8 -> Real $2024 | D46: $Million | E46: 0 | F46: 0 | G46: 0 | H46: 0 | I46: 0 | J46: 0 | K46: 0 | L46: 0 | M46: 0 | N46: 0 | O46: 0 | Q46: Buildings - capital works | R46: Buildings and Property
B47: =Inputs!$A$178 -> Non-network - In-house software | C47: =Inputs!$A$8 -> Real $2024 | D47: $Million | E47: 0 | F47: 0 | G47: 0 | H47: 0 | I47: 0 | J47: 0 | K47: 0 | L47: 0 | M47: 0 | N47: 0 | O47: 0 | Q47: In-house software | R47: IT & Communications
B48: Sub-Total | C48: =Inputs!$A$8 -> Real $2024 | D48: $Million | E48: =SUM(E29:E47) -> 0 | F48: =SUM(F29:F47) -> 0 | G48: 0 | H48: 4.919946003 | I48: 20.23970707 | J48: 12.96852735 | K48: =SUM(K29:K47) -> 1.162735119 | L48: =SUM(L29:L47) -> 0 | M48: =SUM(M29:M47) -> 0 | N48: =SUM(N29:N47) -> 0 | O48: 39.29091555
B50: Indirect Non-Labour Costs | T50: ← This value is pro-rated over the escalated capital forecast (including direct labour costs) by year and asset class
B51: =Inputs!$A$160 -> Transmission Lines - Transmission Towers | C51: =Inputs!$A$8 -> Real $2024 | D51: $Million | E51: 0 | F51: 0 | G51: 0 | H51: 0.2014546762 | I51: 0.5290262964 | J51: 0.2504364579 | K51: 0 | L51: 0 | M51: 0 | N51: 0 | O51: =SUM(E51:N51) -> 0.9809174305 | Q51: =Q29 -> Transmission Lines | R51: Transmission Towers
B52: =Inputs!$A$161 -> Transmission Lines - Transmission tower support structures | C52: =Inputs!$A$8 -> Real $2024 | D52: $Million | E52: 0 | F52: 0 | G52: 0 | H52: 1.925137159 | I52: 4.51982837 | J52: 2.526209909 | K52: 0 | L52: 0 | M52: 0 | N52: 0 | O52: =SUM(E52:N52) -> 8.971175437 | Q52: Transmission Lines | R52: Transmission tower support structures
B53: =Inputs!$A$162 -> Transmission Lines - Conductors | C53: =Inputs!$A$8 -> Real $2024 | D53: $Million | E53: 0 | F53: 0 | G53: 0 | H53: 0 | I53: 0 | J53: 0 | K53: 0 | L53: 0 | M53: 0 | N53: 0 | O53: 0 | Q53: Transmission Lines | R53: Conductors
B54: =Inputs!$A$163 -> Transmission Lines - Transmission line life extension | C54: =Inputs!$A$8 -> Real $2024 | D54: $Million | E54: 0 | F54: 0 | G54: 0 | H54: 0 | I54: 0 | J54: 0 | K54: 0 | L54: 0 | M54: 0 | N54: 0 | O54: 0 | Q54: Transmission Line Life Extension | R54: Transmission cables
B55: =Inputs!$A$164 -> Underground cables - Transmission cables | C55: =Inputs!$A$8 -> Real $2024 | D55: $Million | E55: 0 | F55: 0 | G55: 0 | H55: 0 | I55: 0 | J55: 0 | K55: 0 | L55: 0 | M55: 0 | N55: 0 | O55: 0 | Q55: Underground Cables | R55: Transmission cables
B56: =Inputs!$A$165 -> Substations - Substation switchbays | C56: =Inputs!$A$8 -> Real $2024 | D56: $Million | E56: 0 | F56: 0 | G56: 0 | H56: 3.305145918 | I56: 8.013547852 | J56: 3.609894169 | K56: 0.6071900249 | L56: 0 | M56: 0 | N56: 0 | O56: 15.53577796 | Q56: Substations | R56: Substation switchbays
B57: =Inputs!$A$166 -> Substations - Substation power transformers | C57: =Inputs!$A$8 -> Real $2024 | D57: $Million | E57: 0 | F57: 0 | G57: 0 | H57: 0 | I57: 0 | J57: 0 | K57: 0 | L57: 0 | M57: 0 | N57: 0 | O57: 0 | Q57: Substations | R57: Substation power transformers
B58: =Inputs!$A$167 -> Substations - Substation reactive plant | C58: =Inputs!$A$8 -> Real $2024 | D58: $Million | E58: 0 | F58: 0 | G58: 0 | H58: 0 | I58: 0 | J58: 0 | K58: 0 | L58: 0 | M58: 0 | N58: 0 | O58: 0 | Q58: Substations | R58: Substation reactive plant
B59: =Inputs!$A$168 -> Secondary Systems - Scada, network control and protection systems | C59: =Inputs!$A$8 -> Real $2024 | D59: $Million | E59: 0 | F59: 0 | G59: 0 | H59: 0 | I59: 0 | J59: 0 | K59: 0 | L59: 0 | M59: 0 | N59: 0 | O59: 0 | Q59: Secondary Systems | R59: Scada, network control and protection systems
B60: =Inputs!$A$169 -> Communications (short life) - Scada, network control and protection systems | C60: =Inputs!$A$8 -> Real $2024 | D60: $Million | E60: 0 | F60: 0 | G60: 0 | H60: 0 | I60: 0 | J60: 0 | K60: 0 | L60: 0 | M60: 0 | N60: 0 | O60: 0 | Q60: Communications (short life) | R60: Scada, network control and protection systems
B61: =Inputs!$A$170 -> SIPS Control | C61: =Inputs!$A$8 -> Real $2024 | D61: $Million | E61: 0 | F61: 0 | G61: 0 | H61: 0.5144586723 | I61: 0 | J61: 0 | K61: 0 | L61: 0 | M61: 0 | N61: 0 | O61: =SUM(E61:N61) -> 0.5144586723 | Q61: SIPS Control | R61: Scada, network control and protection systems
B62: =Inputs!$A$171 -> Synchronous condensers | C62: =Inputs!$A$8 -> Real $2024 | D62: $Million | E62: 0 | F62: 0 | G62: 0 | H62: 0 | I62: 0 | J62: 0 | K62: 0 | L62: 0 | M62: 0 | N62: 0 | O62: 0 | Q62: Synchronous Condensers | R62: Other network
B63: =Inputs!$A$172 -> Other - Leasehold land and property | C63: =Inputs!$A$8 -> Real $2024 | D63: $Million | E63: 0 | F63: 0 | G63: 0 | H63: 0 | I63: 0 | J63: 0 | K63: 0 | L63: 0 | M63: 0 | N63: 0 | O63: 0 | Q63: Leasehold Land and Property | R63: Buildings and Property
B64: =Inputs!$A$173 -> Other - Land and Easements | C64: =Inputs!$A$8 -> Real $2024 | D64: $Million | E64: 0 | F64: 0 | G64: 0 | H64: 0 | I64: 0 | J64: 0 | K64: 0 | L64: 0 | M64: 0 | N64: 0 | O64: 0 | Q64: Land and Easements | R64: Other non network
B65: =Inputs!$A$174 -> Other - Buildings capital works | C65: =Inputs!$A$8 -> Real $2024 | D65: $Million | E65: 0 | F65: 0 | G65: 0 | H65: 0 | I65: 0 | J65: 0 | K65: 0 | L65: 0 | M65: 0 | N65: 0 | O65: 0 | Q65: Buildings - capital works | R65: Buildings and Property
B66: =Inputs!$A$175 -> Non-network - Business IT | C66: =Inputs!$A$8 -> Real $2024 | D66: $Million | E66: 0 | F66: 0 | G66: 0 | H66: 0 | I66: 0 | J66: 0 | K66: 0 | L66: 0 | M66: 0 | N66: 0 | O66: 0 | Q66: Business IT | R66: IT & Communications
B67: =Inputs!$A$176 -> Non-network - Minor Plant, Motor Vehicles & Mobile Plant | C67: =Inputs!$A$8 -> Real $2024 | D67: $Million | E67: 0 | F67: 0 | G67: 0 | H67: 0 | I67: 0 | J67: 0 | K67: 0 | L67: 0 | M67: 0 | N67: 0 | O67: 0 | Q67: Minor Plant, Motor Vehicles & Mobile Plant | R67: Other non network
B68: =Inputs!$A$177 -> Non-network - Buildings | C68: =Inputs!$A$8 -> Real $2024 | D68: $Million | E68: 0 | F68: 0 | G68: 0 | H68: 0 | I68: 0 | J68: 0 | K68: 0 | L68: 0 | M68: 0 | N68: 0 | O68: 0 | Q68: Buildings - capital works | R68: Buildings and Property
B69: =Inputs!$A$178 -> Non-network - In-house software | C69: =Inputs!$A$8 -> Real $2024 | D69: $Million | E69: 0 | F69: 0 | G69: 0 | H69: 0 | I69: 0 | J69: 0 | K69: 0 | L69: 0 | M69: 0 | N69: 0 | O69: 0 | Q69: In-house software | R69: IT & Communications
B70: Sub-Total | C70: =Inputs!$A$8 -> Real $2024 | D70: $Million | E70: =SUM(E51:E69) -> 0 | F70: 0 | G70: 0 | H70: 5.946196425 | I70: 13.06240252 | J70: 6.386540536 | K70: =SUM(K51:K69) -> 0.6071900249 | L70: =SUM(L51:L69) -> 0 | M70: =SUM(M51:M69) -> 0 | N70: =SUM(N51:N69) -> 0 | O70: =SUM(O51:O69) -> 26.0023295
B72: Total
B73: =Inputs!$A$160 -> Transmission Lines - Transmission Towers | C73: =Inputs!$A$8 -> Real $2024 | D73: $Million | E73: 0 | F73: 0 | G73: 0 | H73: 0.3537368267 | I73: 3.395508751 | J73: 5.050061103 | K73: 0 | L73: 0 | M73: 0 | N73: 0 | O73: =SUM(E73:N73) -> 8.79930668 | Q73: =Q51 -> Transmission Lines | R73: Transmission Towers
B74: =Inputs!$A$161 -> Transmission Lines - Transmission tower support structures | C74: =Inputs!$A$8 -> Real $2024 | D74: $Million | E74: 0 | F74: 0 | G74: 0 | H74: 3.380372808 | I74: 29.01012083 | J74: 50.94112296 | K74: 0 | L74: 0 | M74: 0 | N74: 0 | O74: =SUM(E74:N74) -> 83.3316166 | Q74: Transmission Lines | R74: Transmission tower support structures
B75: =Inputs!$A$162 -> Transmission Lines - Conductors | C75: =Inputs!$A$8 -> Real $2024 | D75: $Million | E75: 0 | F75: 0 | G75: 0 | H75: 0 | I75: 0 | J75: 0 | K75: 0 | L75: 0 | M75: 0 | N75: 0 | O75: 0 | Q75: Transmission Lines | R75: Conductors
B76: =Inputs!$A$163 -> Transmission Lines - Transmission line life extension | C76: =Inputs!$A$8 -> Real $2024 | D76: $Million | E76: 0 | F76: 0 | G76: 0 | H76: 0 | I76: 0 | J76: 0 | K76: 0 | L76: 0 | M76: 0 | N76: 0 | O76: 0 | Q76: Transmission Line Life Extension | R76: Transmission cables
B77: =Inputs!$A$164 -> Underground cables - Transmission cables | C77: =Inputs!$A$8 -> Real $2024 | D77: $Million | E77: 0 | F77: 0 | G77: 0 | H77: 0 | I77: 0 | J77: 0 | K77: 0 | L77: 0 | M77: 0 | N77: 0 | O77: 0 | Q77: Underground Cables | R77: Transmission cables
B78: =Inputs!$A$165 -> Substations - Substation switchbays | C78: =Inputs!$A$8 -> Real $2024 | D78: $Million | E78: 0 | F78: 0 | G78: 0 | H78: 5.803547731 | I78: 51.43425203 | J78: 72.79365904 | K78: 13.2668354 | L78: 0 | M78: 0 | N78: 0 | O78: 143.2982942 | Q78: Substations | R78: Substation switchbays
B79: =Inputs!$A$166 -> Substations - Substation power transformers | C79: =Inputs!$A$8 -> Real $2024 | D79: $Million | E79: 0 | F79: 0 | G79: 0 | H79: 0 | I79: 0 | J79: 0 | K79: 0 | L79: 0 | M79: 0 | N79: 0 | O79: 0 | Q79: Substations | R79: Substation power transformers
B80: =Inputs!$A$167 -> Substations - Substation reactive plant | C80: =Inputs!$A$8 -> Real $2024 | D80: $Million | E80: 0 | F80: 0 | G80: 0 | H80: 0 | I80: 0 | J80: 0 | K80: 0 | L80: 0 | M80: 0 | N80: 0 | O80: 0 | Q80: Substations | R80: Substation reactive plant
B81: =Inputs!$A$168 -> Secondary Systems - Scada, network control and protection systems | C81: =Inputs!$A$8 -> Real $2024 | D81: $Million | E81: 0 | F81: 0 | G81: 0 | H81: 0 | I81: 0 | J81: 0 | K81: 0 | L81: 0 | M81: 0 | N81: 0 | O81: 0 | Q81: Secondary Systems | R81: Scada, network control and protection systems
B82: =Inputs!$A$169 -> Communications (short life) - Scada, network control and protection systems | C82: =Inputs!$A$8 -> Real $2024 | D82: $Million | E82: 0 | F82: 0 | G82: 0 | H82: 0 | I82: 0 | J82: 0 | K82: 0 | L82: 0 | M82: 0 | N82: 0 | O82: 0 | Q82: Communications (short life) | R82: Scada, network control and protection systems
B83: =Inputs!$A$170 -> SIPS Control | C83: =Inputs!$A$8 -> Real $2024 | D83: $Million | E83: 0 | F83: 0 | G83: 0 | H83: 1.894522255 | I83: 8.742309607 | J83: 2.451750617 | K83: 0 | L83: 0 | M83: 0 | N83: 0 | O83: =SUM(E83:N83) -> 13.08858248 | Q83: SIPS Control | R83: Scada, network control and protection systems
B84: =Inputs!$A$171 -> Synchronous condensers | C84: =Inputs!$A$8 -> Real $2024 | D84: $Million | E84: 0 | F84: 0 | G84: 0 | H84: 0 | I84: 0 | J84: 0 | K84: 0 | L84: 0 | M84: 0 | N84: 0 | O84: 0 | Q84: Synchronous Condensers | R84: Other network
B85: =Inputs!$A$172 -> Other - Leasehold land and property | C85: =Inputs!$A$8 -> Real $2024 | D85: $Million | E85: 0 | F85: 0 | G85: 0 | H85: 0 | I85: 0 | J85: 0 | K85: 0 | L85: 0 | M85: 0 | N85: 0 | O85: 0 | Q85: Leasehold Land and Property | R85: Buildings and Property
B86: =Inputs!$A$173 -> Other - Land and Easements | C86: =Inputs!$A$8 -> Real $2024 | D86: $Million | E86: 0 | F86: 0 | G86: 0 | H86: 0 | I86: 0 | J86: 0 | K86: 0 | L86: 0 | M86: 0 | N86: 0 | O86: 0 | Q86: Land and Easements | R86: Other non network
B87: =Inputs!$A$174 -> Other - Buildings capital works | C87: =Inputs!$A$8 -> Real $2024 | D87: $Million | E87: 0 | F87: 0 | G87: 0 | H87: 0 | I87: 0 | J87: 0 | K87: 0 | L87: 0 | M87: 0 | N87: 0 | O87: 0 | Q87: Buildings - capital works | R87: Buildings and Property
B88: =Inputs!$A$175 -> Non-network - Business IT | C88: =Inputs!$A$8 -> Real $2024 | D88: $Million | E88: 0 | F88: 0 | G88: 0 | H88: 0 | I88: 0 | J88: 0 | K88: 0 | L88: 0 | M88: 0 | N88: 0 | O88: 0 | Q88: Business IT | R88: IT & Communications
B89: =Inputs!$A$176 -> Non-network - Minor Plant, Motor Vehicles & Mobile Plant | C89: =Inputs!$A$8 -> Real $2024 | D89: $Million | E89: 0 | F89: 0 | G89: 0 | H89: 0 | I89: 0 | J89: 0 | K89: 0 | L89: 0 | M89: 0 | N89: 0 | O89: 0 | Q89: Minor Plant, Motor Vehicles & Mobile Plant | R89: Other non network
B90: =Inputs!$A$177 -> Non-network - Buildings | C90: =Inputs!$A$8 -> Real $2024 | D90: $Million | E90: 0 | F90: 0 | G90: 0 | H90: 0 | I90: 0 | J90: 0 | K90: 0 | L90: 0 | M90: 0 | N90: 0 | O90: 0 | Q90: Buildings - capital works | R90: Buildings and Property
B91: =Inputs!$A$178 -> Non-network - In-house software | C91: =Inputs!$A$8 -> Real $2024 | D91: $Million | E91: 0 | F91: 0 | G91: 0 | H91: 0 | I91: 0 | J91: 0 | K91: 0 | L91: 0 | M91: 0 | N91: 0 | O91: 0 | Q91: In-house software | R91: IT & Communications
B92: Total | C92: =Inputs!$A$8 -> Real $2024 | D92: $Million | E92: =SUM(E73:E91) -> 0 | F92: 0 | G92: 0 | H92: 11.43217962 | I92: 92.58219122 | J92: 131.2365937 | K92: =SUM(K73:K91) -> 13.2668354 | L92: =SUM(L73:L91) -> 0 | M92: =SUM(M73:M91) -> 0 | N92: =SUM(N73:N91) -> 0 | O92: 248.5178
A94: =IF(SUM(E94:N94)=0,0,1) -> 0 | B94: ="Check "&$B$101 -> Check Direct Non-Labour | E94: =IF(ROUND(E$26-Inputs!W84,3)=0,0,1) -> 0 | F94: =IF(ROUND(F$26-Inputs!X84,3)=0,0,1) -> 0 | G94: =IF(ROUND(G$26-Inputs!Y84,3)=0,0,1) -> 0 | H94: =IF(ROUND(H$26-Inputs!Z84,3)=0,0,1) -> 0 | I94: =IF(ROUND(I$26-Inputs!AA84,3)=0,0,1) -> 0 | J94: =IF(ROUND(J$26-Inputs!AB84,3)=0,0,1) -> 0 | K94: =IF(ROUND(K$26-Inputs!AC84,3)=0,0,1) -> 0 | L94: =IF(ROUND(L$26-Inputs!AD84,3)=0,0,1) -> 0 | M94: =IF(ROUND(M$26-Inputs!AE84,3)=0,0,1) -> 0 | N94: =IF(ROUND(N$26-Inputs!AF84,3)=0,0,1) -> 0
A95: =IF(SUM(E95:N95)=0,0,1) -> 0 | B95: ="Check "&$B$105 -> Check Labour Costs | E95: =IF(ROUND(E$48-Inputs!K116,3)=0,0,1) -> 0 | F95: =IF(ROUND(F$48-Inputs!L116,3)=0,0,1) -> 0 | G95: =IF(ROUND(G$48-Inputs!M116,3)=0,0,1) -> 0 | H95: =IF(ROUND(H$48-Inputs!N116,3)=0,0,1) -> 0 | I95: =IF(ROUND(I$48-Inputs!O116,3)=0,0,1) -> 0 | J95: =IF(ROUND(J$48-Inputs!P116,3)=0,0,1) -> 0 | K95: =IF(ROUND(K$48-Inputs!Q116,3)=0,0,1) -> 0 | L95: =IF(ROUND(L$48-Inputs!R116,3)=0,0,1) -> 0 | M95: =IF(ROUND(M$48-Inputs!S116,3)=0,0,1) -> 0 | N95: =IF(ROUND(N$48-Inputs!T116,3)=0,0,1) -> 0
A96: =IF(SUM(E96:N96)=0,0,1) -> 0 | B96: ="Check "&$B$110 -> Check Indirect Non-Labour Costs | E96: =IF(ROUND(E$70-Inputs!K148,3)=0,0,1) -> 0 | F96: =IF(ROUND(F$70-Inputs!L148,3)=0,0,1) -> 0 | G96: =IF(ROUND(G$70-Inputs!M148,3)=0,0,1) -> 0 | H96: =IF(ROUND(H$70-Inputs!N148,3)=0,0,1) -> 0 | I96: =IF(ROUND(I$70-Inputs!O148,3)=0,0,1) -> 0 | J96: =IF(ROUND(J$70-Inputs!P148,3)=0,0,1) -> 0 | K96: =IF(ROUND(K$70-Inputs!Q148,3)=0,0,1) -> 0 | L96: =IF(ROUND(L$70-Inputs!R148,3)=0,0,1) -> 0 | M96: =IF(ROUND(M$70-Inputs!S148,3)=0,0,1) -> 0 | N96: =IF(ROUND(N$70-Inputs!T148,3)=0,0,1) -> 0
B98: Incremental Capital Expenditure (Excluding Equity Raising Costs) by Driver | O98: Total
B99: Component | C99: Dollar basis | D99: Units | E99: =Inputs!K$20 -> 2020 | F99: =Inputs!L$20 -> 2021 | G99: =Inputs!M$20 -> 2022 | H99: =Inputs!N$20 -> 2023 | I99: =Inputs!O$20 -> 2024 | J99: =Inputs!P$20 -> 2025 | K99: =Inputs!Q$20 -> 2026 | L99: =Inputs!R$20 -> 2027 | M99: =Inputs!S$20 -> 2028 | N99: =Inputs!T$20 -> 2029
B101: Direct Non-Labour
B102: Non-Labour | C102: =Inputs!$A$8 -> Real $2024 | D102: $Million | E102: =Inputs!W84 -> 0 | F102: =Inputs!X84 -> 0 | G102: =Inputs!Y84 -> 0 | H102: =Inputs!Z84 -> 0.5660371926 | I102: =Inputs!AA84 -> 59.28008162 | J102: =Inputs!AB84 -> 111.8815258 | K102: =Inputs!AC84 -> 11.49691026 | L102: =Inputs!AD84 -> 0 | M102: =Inputs!AE84 -> 0 | N102: =Inputs!AF84 -> 0 | O102: =SUM(E102:N102) -> 183.2245549
B103: Sub-Total | C103: =Inputs!$A$8 -> Real $2024 | D103: $Million | E103: =SUM(E102:E102) -> 0 | F103: 0 | G103: 0 | H103: 0.5660371926 | I103: 59.28008162 | J103: 111.8815258 | K103: =SUM(K102:K102) -> 11.49691026 | L103: =SUM(L102:L102) -> 0 | M103: =SUM(M102:M102) -> 0 | N103: =SUM(N102:N102) -> 0 | O103: 183.2245549
B105: Labour Costs
B106: Labour | C106: =Inputs!$A$8 -> Real $2024 | D106: $Million | E106: =Inputs!K$115 -> 0 | F106: =Inputs!L$115 -> 0 | G106: =Inputs!M$115 -> 0 | H106: =Inputs!N$115 -> 4.919946003 | I106: =Inputs!O$115 -> 20.16098535 | J106: =Inputs!P$115 -> 12.75134393 | K106: =Inputs!Q$115 -> 1.130212905 | L106: =Inputs!R$115 -> 0 | M106: =Inputs!S$115 -> 0 | N106: =Inputs!T$115 -> 0 | O106: =SUM(E106:N106) -> 38.96248819
B107: Labour Escalation | C107: =Inputs!$A$8 -> Real $2024 | D107: $Million | E107: =E106*Inputs!K$22/INDEX(Inputs!$K$22:$T$22,MATCH(Inputs!$F$91,Years,0))-E106 -> 0 | F107: =F106*Inputs!L$22/INDEX(Inputs!$K$22:$T$22,MATCH(Inputs!$F$91,Years,0))-F106 -> 0 | G107: =G106*Inputs!M$22/INDEX(Inputs!$K$22:$T$22,MATCH(Inputs!$F$91,Years,0))-G106 -> 0 | H107: =H106*Inputs!N$22/INDEX(Inputs!$K$22:$T$22,MATCH(Inputs!$F$91,Years,0))-H106 -> 0 | I107: =I106*Inputs!O$22/INDEX(Inputs!$K$22:$T$22,MATCH(Inputs!$F$91,Years,0))-I106 -> 0.07872172201 | J107: =J106*Inputs!P$22/INDEX(Inputs!$K$22:$T$22,MATCH(Inputs!$F$91,Years,0))-J106 -> 0.2171834171 | K107: =K106*Inputs!Q$22/INDEX(Inputs!$K$22:$T$22,MATCH(Inputs!$F$91,Years,0))-K106 -> 0.03252221359 | L107: =L106*Inputs!R$22/INDEX(Inputs!$K$22:$T$22,MATCH(Inputs!$F$91,Years,0))-L106 -> 0 | M107: =M106*Inputs!S$22/INDEX(Inputs!$K$22:$T$22,MATCH(Inputs!$F$91,Years,0))-M106 -> 0 | N107: =N106*Inputs!T$22/INDEX(Inputs!$K$22:$T$22,MATCH(Inputs!$F$91,Years,0))-N106 -> 0 | O107: =SUM(E107:N107) -> 0.3284273527
B108: Sub-Total | C108: =Inputs!$A$8 -> Real $2024 | D108: $Million | E108: =SUM(E106:E107) -> 0 | F108: 0 | G108: 0 | H108: 4.919946003 | I108: 20.23970707 | J108: 12.96852735 | K108: =SUM(K106:K107) -> 1.162735119 | L108: =SUM(L106:L107) -> 0 | M108: =SUM(M106:M107) -> 0 | N108: =SUM(N106:N107) -> 0 | O108: 39.29091555
B110: Indirect Non-Labour Costs
B111: Non-Labour | C111: =Inputs!$A$8 -> Real $2024 | D111: $Million | E111: =Inputs!K$148 -> 0 | F111: =Inputs!L$148 -> 0 | G111: =Inputs!M$148 -> 0 | H111: =Inputs!N$148 -> 5.946196425 | I111: =Inputs!O$148 -> 13.06240252 | J111: =Inputs!P$148 -> 6.386540536 | K111: =Inputs!Q$148 -> 0.6071900249 | L111: =Inputs!R$148 -> 0 | M111: =Inputs!S$148 -> 0 | N111: =Inputs!T$148 -> 0 | O111: =SUM(E111:N111) -> 26.0023295
B112: Sub-Total | C112: =Inputs!$A$8 -> Real $2024 | D112: $Million | E112: =SUM(E111:E111) -> 0 | F112: 0 | G112: 0 | H112: 5.946196425 | I112: 13.06240252 | J112: 6.386540536 | K112: =SUM(K111:K111) -> 0.6071900249 | L112: =SUM(L111:L111) -> 0 | M112: =SUM(M111:M111) -> 0 | N112: =SUM(N111:N111) -> 0 | O112: 26.0023295
B114: Total
B115: Labour | C115: =Inputs!$A$8 -> Real $2024 | D115: $Million | E115: =E106 -> 0 | F115: 0 | G115: 0 | H115: 4.919946003 | I115: 20.16098535 | J115: 12.75134393 | K115: =K106 -> 1.130212905 | L115: 0 | M115: 0 | N115: 0 | O115: =SUM(E115:N115) -> 38.96248819
B116: Labour Escalation | C116: =Inputs!$A$8 -> Real $2024 | D116: $Million | E116: 0 | F116: 0 | G116: 0 | H116: 0 | I116: 0.07872172201 | J116: 0.2171834171 | K116: 0.03252221359 | L116: 0 | M116: 0 | N116: 0 | O116: =SUM(E116:N116) -> 0.3284273527
B117: Non-Labour | C117: =Inputs!$A$8 -> Real $2024 | D117: $Million | E117: =E102+E111 -> 0 | F117: 0 | G117: 0 | H117: 6.512233618 | I117: 72.34248414 | J117: 118.2680664 | K117: 12.10410028 | L117: 0 | M117: 0 | N117: 0 | O117: =SUM(E117:N117) -> 209.2268844
B118: Total | C118: =Inputs!$A$8 -> Real $2024 | D118: $Million | E118: =SUM(E115:E117) -> 0 | F118: 0 | G118: 0 | H118: 11.43217962 | I118: 92.58219122 | J118: 131.2365937 | K118: =SUM(K115:K117) -> 13.2668354 | L118: =SUM(L115:L117) -> 0 | M118: =SUM(M115:M117) -> 0 | N118: =SUM(N115:N117) -> 0 | O118: =SUM(O115:O117) -> 248.5178
A120: =IF(SUM(E120:N120)=0,0,1) -> 0 | B120: ="Check "&$B$101 -> Check Direct Non-Labour | E120: =IF(ROUND(E$26-E103,3)=0,0,1) -> 0 | F120: =IF(ROUND(F$26-F103,3)=0,0,1) -> 0 | G120: 0 | H120: 0 | I120: 0 | J120: 0 | K120: 0 | L120: 0 | M120: 0 | N120: 0
A121: =IF(SUM(E121:N121)=0,0,1) -> 0 | B121: ="Check "&$B$105 -> Check Labour Costs | E121: =IF(ROUND(E$48-E108,3)=0,0,1) -> 0 | F121: =IF(ROUND(F$48-F108,3)=0,0,1) -> 0 | G121: 0 | H121: 0 | I121: 0 | J121: 0 | K121: 0 | L121: 0 | M121: 0 | N121: 0
A122: =IF(SUM(E122:N122)=0,0,1) -> 0 | B122: ="Check "&$B$110 -> Check Indirect Non-Labour Costs | E122: =IF(ROUND(E$70-E112,3)=0,0,1) -> 0 | F122: =IF(ROUND(F$70-F112,3)=0,0,1) -> 0 | G122: 0 | H122: 0 | I122: 0 | J122: 0 | K122: 0 | L122: 0 | M122: 0 | N122: 0
B124: Incremental Capital Expenditure (Excluding Equity Raising Costs) by Component | O124: Total
B125: Component | C125: Dollar basis | D125: Units | E125: =Inputs!K$20 -> 2020 | F125: =Inputs!L$20 -> 2021 | G125: =Inputs!M$20 -> 2022 | H125: =Inputs!N$20 -> 2023 | I125: =Inputs!O$20 -> 2024 | J125: =Inputs!P$20 -> 2025 | K125: =Inputs!Q$20 -> 2026 | L125: =Inputs!R$20 -> 2027 | M125: =Inputs!S$20 -> 2028 | N125: =Inputs!T$20 -> 2029
B127: Direct Non-Labour Cost
B128: =$B$198 -> Project Management | C128: =Inputs!$A$8 -> Real $2024 | D128: $Million | E128: =IFERROR(E$103 *IF((E$165+E$195)<>0,(E158+E188)/(E$165+E$195),($O158+$O188)/($O$165+$O$195)),0) -> 0 | F128: 0 | G128: 0 | H128: c-i-c | I128: c-i-c | J128: c-i-c | K128: c-i-c | L128: =IFERROR(L$103 *IF((L$165+L$195)<>0,(L158+L188)/(L$165+L$195),($O158+$O188)/($O$165+$O$195)),0) -> 0 | M128: 0 | N128: 0 | O128: c-i-c
B129: =$B$199 -> SIPS Control Implementation | C129: =Inputs!$A$8 -> Real $2024 | D129: $Million | E129: 0 | F129: 0 | G129: 0 | H129: c-i-c | I129: c-i-c | J129: c-i-c | K129: c-i-c | L129: 0 | M129: 0 | N129: 0 | O129: c-i-c
B130: =$B$200 -> Other Support & Corporate Roles | C130: =Inputs!$A$8 -> Real $2024 | D130: $Million | E130: 0 | F130: 0 | G130: 0 | H130: c-i-c | I130: c-i-c | J130: c-i-c | K130: c-i-c | L130: 0 | M130: 0 | N130: 0 | O130: c-i-c
B131: =$B$201 -> Transaction Procurement Support | C131: =Inputs!$A$8 -> Real $2024 | D131: $Million | E131: 0 | F131: 0 | G131: 0 | H131: c-i-c | I131: c-i-c | J131: c-i-c | K131: c-i-c | L131: 0 | M131: 0 | N131: 0 | O131: c-i-c
B132: =$B$202 -> Regulatory Approvals | C132: =Inputs!$A$8 -> Real $2024 | D132: $Million | E132: 0 | F132: 0 | G132: 0 | H132: c-i-c | I132: c-i-c | J132: c-i-c | K132: c-i-c | L132: 0 | M132: 0 | N132: 0 | O132: c-i-c
B133: =$B$203 -> Community and Stakeholder Engagement | C133: =Inputs!$A$8 -> Real $2024 | D133: $Million | E133: 0 | F133: 0 | G133: 0 | H133: c-i-c | I133: c-i-c | J133: c-i-c | K133: c-i-c | L133: 0 | M133: 0 | N133: 0 | O133: c-i-c
B134: =$B$204 -> Environment | C134: =Inputs!$A$8 -> Real $2024 | D134: $Million | E134: 0 | F134: 0 | G134: 0 | H134: c-i-c | I134: c-i-c | J134: c-i-c | K134: c-i-c | L134: 0 | M134: 0 | N134: 0 | O134: c-i-c
B135: Sub-Total | C135: =Inputs!$A$8 -> Real $2024 | D135: $Million | E135: =SUM(E128:E134) -> 0 | F135: =SUM(F128:F134) -> 0 | G135: =SUM(G128:G134) -> 0 | H135: 0.5660371926 | I135: 59.28008162 | J135: 111.8815258 | K135: 11.49691026 | L135: 0 | M135: 0 | N135: 0 | O135: 183.2245549
B137: Labour Costs - Actual
B138: =$B$198 -> Project Management | C138: =Inputs!$A$8 -> Real $2024 | D138: $Million | E138: =IFERROR(SUMIF(Inputs!$H$92:$H$99,$B138,Inputs!K$92:K$99)*Inputs!K$23*Inputs!K$22/INDEX(Inputs!$K$22:$T$22,MATCH(Inputs!$F$91,Years,0)),0) -> 0 | F138: =IFERROR(SUMIF(Inputs!$H$92:$H$99,$B138,Inputs!L$92:L$99)*Inputs!L$23*Inputs!L$22/INDEX(Inputs!$K$22:$T$22,MATCH(Inputs!$F$91,Years,0)),0) -> 0 | G138: =IFERROR(SUMIF(Inputs!$H$92:$H$99,$B138,Inputs!M$92:M$99)*Inputs!M$23*Inputs!M$22/INDEX(Inputs!$K$22:$T$22,MATCH(Inputs!$F$91,Years,0)),0) -> 0 | H138: c-i-c | I138: c-i-c | J138: c-i-c | K138: c-i-c | L138: 0 | M138: 0 | N138: 0 | O138: c-i-c
B139: =$B$199 -> SIPS Control Implementation | C139: =Inputs!$A$8 -> Real $2024 | D139: $Million | E139: =IFERROR(SUMIF(Inputs!$H$92:$H$99,$B139,Inputs!K$92:K$99)*Inputs!K$23*Inputs!K$22/INDEX(Inputs!$K$22:$T$22,MATCH(Inputs!$F$91,Years,0)),0) -> 0 | F139: =IFERROR(SUMIF(Inputs!$H$92:$H$99,$B139,Inputs!L$92:L$99)*Inputs!L$23*Inputs!L$22/INDEX(Inputs!$K$22:$T$22,MATCH(Inputs!$F$91,Years,0)),0) -> 0 | G139: =IFERROR(SUMIF(Inputs!$H$92:$H$99,$B139,Inputs!M$92:M$99)*Inputs!M$23*Inputs!M$22/INDEX(Inputs!$K$22:$T$22,MATCH(Inputs!$F$91,Years,0)),0) -> 0 | H139: c-i-c | I139: c-i-c | J139: c-i-c | K139: c-i-c | L139: 0 | M139: 0 | N139: 0 | O139: c-i-c
B140: =$B$200 -> Other Support & Corporate Roles | C140: =Inputs!$A$8 -> Real $2024 | D140: $Million | E140: =IFERROR(SUMIF(Inputs!$H$92:$H$99,$B140,Inputs!K$92:K$99)*Inputs!K$23*Inputs!K$22/INDEX(Inputs!$K$22:$T$22,MATCH(Inputs!$F$91,Years,0)),0) -> 0 | F140: =IFERROR(SUMIF(Inputs!$H$92:$H$99,$B140,Inputs!L$92:L$99)*Inputs!L$23*Inputs!L$22/INDEX(Inputs!$K$22:$T$22,MATCH(Inputs!$F$91,Years,0)),0) -> 0 | G140: =IFERROR(SUMIF(Inputs!$H$92:$H$99,$B140,Inputs!M$92:M$99)*Inputs!M$23*Inputs!M$22/INDEX(Inputs!$K$22:$T$22,MATCH(Inputs!$F$91,Years,0)),0) -> 0 | H140: c-i-c | I140: c-i-c | J140: c-i-c | K140: c-i-c | L140: 0 | M140: 0 | N140: 0 | O140: c-i-c
B141: =$B$201 -> Transaction Procurement Support | C141: =Inputs!$A$8 -> Real $2024 | D141: $Million | E141: =IFERROR(SUMIF(Inputs!$H$92:$H$99,$B141,Inputs!K$92:K$99)*Inputs!K$23*Inputs!K$22/INDEX(Inputs!$K$22:$T$22,MATCH(Inputs!$F$91,Years,0)),0) -> 0 | F141: =IFERROR(SUMIF(Inputs!$H$92:$H$99,$B141,Inputs!L$92:L$99)*Inputs!L$23*Inputs!L$22/INDEX(Inputs!$K$22:$T$22,MATCH(Inputs!$F$91,Years,0)),0) -> 0 | G141: =IFERROR(SUMIF(Inputs!$H$92:$H$99,$B141,Inputs!M$92:M$99)*Inputs!M$23*Inputs!M$22/INDEX(Inputs!$K$22:$T$22,MATCH(Inputs!$F$91,Years,0)),0) -> 0 | H141: c-i-c | I141: c-i-c | J141: c-i-c | K141: c-i-c | L141: 0 | M141: 0 | N141: 0 | O141: c-i-c
B142: =$B$202 -> Regulatory Approvals | C142: =Inputs!$A$8 -> Real $2024 | D142: $Million | E142: =IFERROR(SUMIF(Inputs!$H$92:$H$99,$B142,Inputs!K$92:K$99)*Inputs!K$23*Inputs!K$22/INDEX(Inputs!$K$22:$T$22,MATCH(Inputs!$F$91,Years,0)),0) -> 0 | F142: =IFERROR(SUMIF(Inputs!$H$92:$H$99,$B142,Inputs!L$92:L$99)*Inputs!L$23*Inputs!L$22/INDEX(Inputs!$K$22:$T$22,MATCH(Inputs!$F$91,Years,0)),0) -> 0 | G142: =IFERROR(SUMIF(Inputs!$H$92:$H$99,$B142,Inputs!M$92:M$99)*Inputs!M$23*Inputs!M$22/INDEX(Inputs!$K$22:$T$22,MATCH(Inputs!$F$91,Years,0)),0) -> 0 | H142: c-i-c | I142: c-i-c | J142: c-i-c | K142: c-i-c | L142: 0 | M142: 0 | N142: 0 | O142: c-i-c
B143: =$B$203 -> Community and Stakeholder Engagement | C143: =Inputs!$A$8 -> Real $2024 | D143: $Million | E143: =IFERROR(SUMIF(Inputs!$H$92:$H$99,$B143,Inputs!K$92:K$99)*Inputs!K$23*Inputs!K$22/INDEX(Inputs!$K$22:$T$22,MATCH(Inputs!$F$91,Years,0)),0) -> 0 | F143: =IFERROR(SUMIF(Inputs!$H$92:$H$99,$B143,Inputs!L$92:L$99)*Inputs!L$23*Inputs!L$22/INDEX(Inputs!$K$22:$T$22,MATCH(Inputs!$F$91,Years,0)),0) -> 0 | G143: =IFERROR(SUMIF(Inputs!$H$92:$H$99,$B143,Inputs!M$92:M$99)*Inputs!M$23*Inputs!M$22/INDEX(Inputs!$K$22:$T$22,MATCH(Inputs!$F$91,Years,0)),0) -> 0 | H143: c-i-c | I143: c-i-c | J143: c-i-c | K143: c-i-c | L143: 0 | M143: 0 | N143: 0 | O143: c-i-c
B144: =$B$204 -> Environment | C144: =Inputs!$A$8 -> Real $2024 | D144: $Million | E144: =IFERROR(SUMIF(Inputs!$H$92:$H$99,$B144,Inputs!K$92:K$99)*Inputs!K$23*Inputs!K$22/INDEX(Inputs!$K$22:$T$22,MATCH(Inputs!$F$91,Years,0)),0) -> 0 | F144: =IFERROR(SUMIF(Inputs!$H$92:$H$99,$B144,Inputs!L$92:L$99)*Inputs!L$23*Inputs!L$22/INDEX(Inputs!$K$22:$T$22,MATCH(Inputs!$F$91,Years,0)),0) -> 0 | G144: =IFERROR(SUMIF(Inputs!$H$92:$H$99,$B144,Inputs!M$92:M$99)*Inputs!M$23*Inputs!M$22/INDEX(Inputs!$K$22:$T$22,MATCH(Inputs!$F$91,Years,0)),0) -> 0 | H144: c-i-c | I144: c-i-c | J144: c-i-c | K144: c-i-c | L144: 0 | M144: 0 | N144: 0 | O144: c-i-c
B145: Sub-Total | C145: =Inputs!$A$8 -> Real $2024 | D145: $Million | E145: =SUM(E138:E144) -> 0 | F145: =SUM(F138:F144) -> 0 | G145: =SUM(G138:G144) -> 0 | H145: 1.519620623 | I145: 0 | J145: 0 | K145: 0 | L145: 0 | M145: 0 | N145: 0 | O145: 1.519620623
B147: Labour Costs - Forecast
B148: =$B$198 -> Project Management | C148: =Inputs!$A$8 -> Real $2024 | D148: $Million | E148: =IFERROR(SUMIF(Inputs!$H$101:$H$108,$B148,Inputs!K$101:K$108)*Inputs!K$23*Inputs!K$22/INDEX(Inputs!$K$22:$T$22,MATCH(Inputs!$F$91,Years,0)),0) -> 0 | F148: =IFERROR(SUMIF(Inputs!$H$101:$H$108,$B148,Inputs!L$101:L$108)*Inputs!L$23*Inputs!L$22/INDEX(Inputs!$K$22:$T$22,MATCH(Inputs!$F$91,Years,0)),0) -> 0 | G148: =IFERROR(SUMIF(Inputs!$H$101:$H$108,$B148,Inputs!M$101:M$108)*Inputs!M$23*Inputs!M$22/INDEX(Inputs!$K$22:$T$22,MATCH(Inputs!$F$91,Years,0)),0) -> 0 | H148: c-i-c | I148: c-i-c | J148: c-i-c | K148: c-i-c | L148: 0 | M148: 0 | N148: 0 | O148: c-i-c
B149: =$B$199 -> SIPS Control Implementation | C149: =Inputs!$A$8 -> Real $2024 | D149: $Million | E149: =IFERROR(SUMIF(Inputs!$H$101:$H$108,$B149,Inputs!K$101:K$108)*Inputs!K$23*Inputs!K$22/INDEX(Inputs!$K$22:$T$22,MATCH(Inputs!$F$91,Years,0)),0) -> 0 | F149: =IFERROR(SUMIF(Inputs!$H$101:$H$108,$B149,Inputs!L$101:L$108)*Inputs!L$23*Inputs!L$22/INDEX(Inputs!$K$22:$T$22,MATCH(Inputs!$F$91,Years,0)),0) -> 0 | G149: =IFERROR(SUMIF(Inputs!$H$101:$H$108,$B149,Inputs!M$101:M$108)*Inputs!M$23*Inputs!M$22/INDEX(Inputs!$K$22:$T$22,MATCH(Inputs!$F$91,Years,0)),0) -> 0 | H149: c-i-c | I149: c-i-c | J149: c-i-c | K149: c-i-c | L149: 0 | M149: 0 | N149: 0 | O149: c-i-c
B150: =$B$200 -> Other Support & Corporate Roles | C150: =Inputs!$A$8 -> Real $2024 | D150: $Million | E150: =IFERROR(SUMIF(Inputs!$H$101:$H$108,$B150,Inputs!K$101:K$108)*Inputs!K$23*Inputs!K$22/INDEX(Inputs!$K$22:$T$22,MATCH(Inputs!$F$91,Years,0)),0) -> 0 | F150: =IFERROR(SUMIF(Inputs!$H$101:$H$108,$B150,Inputs!L$101:L$108)*Inputs!L$23*Inputs!L$22/INDEX(Inputs!$K$22:$T$22,MATCH(Inputs!$F$91,Years,0)),0) -> 0 | G150: =IFERROR(SUMIF(Inputs!$H$101:$H$108,$B150,Inputs!M$101:M$108)*Inputs!M$23*Inputs!M$22/INDEX(Inputs!$K$22:$T$22,MATCH(Inputs!$F$91,Years,0)),0) -> 0 | H150: c-i-c | I150: c-i-c | J150: c-i-c | K150: c-i-c | L150: 0 | M150: 0 | N150: 0 | O150: c-i-c
B151: =$B$201 -> Transaction Procurement Support | C151: =Inputs!$A$8 -> Real $2024 | D151: $Million | E151: =IFERROR(SUMIF(Inputs!$H$101:$H$108,$B151,Inputs!K$101:K$108)*Inputs!K$23*Inputs!K$22/INDEX(Inputs!$K$22:$T$22,MATCH(Inputs!$F$91,Years,0)),0) -> 0 | F151: =IFERROR(SUMIF(Inputs!$H$101:$H$108,$B151,Inputs!L$101:L$108)*Inputs!L$23*Inputs!L$22/INDEX(Inputs!$K$22:$T$22,MATCH(Inputs!$F$91,Years,0)),0) -> 0 | G151: =IFERROR(SUMIF(Inputs!$H$101:$H$108,$B151,Inputs!M$101:M$108)*Inputs!M$23*Inputs!M$22/INDEX(Inputs!$K$22:$T$22,MATCH(Inputs!$F$91,Years,0)),0) -> 0 | H151: c-i-c | I151: c-i-c | J151: c-i-c | K151: c-i-c | L151: 0 | M151: 0 | N151: 0 | O151: c-i-c
B152: =$B$202 -> Regulatory Approvals | C152: =Inputs!$A$8 -> Real $2024 | D152: $Million | E152: =IFERROR(SUMIF(Inputs!$H$101:$H$108,$B152,Inputs!K$101:K$108)*Inputs!K$23*Inputs!K$22/INDEX(Inputs!$K$22:$T$22,MATCH(Inputs!$F$91,Years,0)),0) -> 0 | F152: =IFERROR(SUMIF(Inputs!$H$101:$H$108,$B152,Inputs!L$101:L$108)*Inputs!L$23*Inputs!L$22/INDEX(Inputs!$K$22:$T$22,MATCH(Inputs!$F$91,Years,0)),0) -> 0 | G152: =IFERROR(SUMIF(Inputs!$H$101:$H$108,$B152,Inputs!M$101:M$108)*Inputs!M$23*Inputs!M$22/INDEX(Inputs!$K$22:$T$22,MATCH(Inputs!$F$91,Years,0)),0) -> 0 | H152: c-i-c | I152: c-i-c | J152: c-i-c | K152: c-i-c | L152: 0 | M152: 0 | N152: 0 | O152: c-i-c
B153: =$B$203 -> Community and Stakeholder Engagement | C153: =Inputs!$A$8 -> Real $2024 | D153: $Million | E153: =IFERROR(SUMIF(Inputs!$H$101:$H$108,$B153,Inputs!K$101:K$108)*Inputs!K$23*Inputs!K$22/INDEX(Inputs!$K$22:$T$22,MATCH(Inputs!$F$91,Years,0)),0) -> 0 | F153: =IFERROR(SUMIF(Inputs!$H$101:$H$108,$B153,Inputs!L$101:L$108)*Inputs!L$23*Inputs!L$22/INDEX(Inputs!$K$22:$T$22,MATCH(Inputs!$F$91,Years,0)),0) -> 0 | G153: =IFERROR(SUMIF(Inputs!$H$101:$H$108,$B153,Inputs!M$101:M$108)*Inputs!M$23*Inputs!M$22/INDEX(Inputs!$K$22:$T$22,MATCH(Inputs!$F$91,Years,0)),0) -> 0 | H153: c-i-c | I153: c-i-c | J153: c-i-c | K153: c-i-c | L153: 0 | M153: 0 | N153: 0 | O153: c-i-c
B154: =$B$204 -> Environment | C154: =Inputs!$A$8 -> Real $2024 | D154: $Million | E154: =IFERROR(SUMIF(Inputs!$H$101:$H$108,$B154,Inputs!K$101:K$108)*Inputs!K$23*Inputs!K$22/INDEX(Inputs!$K$22:$T$22,MATCH(Inputs!$F$91,Years,0)),0) -> 0 | F154: =IFERROR(SUMIF(Inputs!$H$101:$H$108,$B154,Inputs!L$101:L$108)*Inputs!L$23*Inputs!L$22/INDEX(Inputs!$K$22:$T$22,MATCH(Inputs!$F$91,Years,0)),0) -> 0 | G154: =IFERROR(SUMIF(Inputs!$H$101:$H$108,$B154,Inputs!M$101:M$108)*Inputs!M$23*Inputs!M$22/INDEX(Inputs!$K$22:$T$22,MATCH(Inputs!$F$91,Years,0)),0) -> 0 | H154: c-i-c | I154: c-i-c | J154: c-i-c | K154: c-i-c | L154: 0 | M154: 0 | N154: 0 | O154: c-i-c
B155: Sub-Total | C155: =Inputs!$A$8 -> Real $2024 | D155: $Million | E155: =SUM(E148:E154) -> 0 | F155: =SUM(F148:F154) -> 0 | G155: =SUM(G148:G154) -> 0 | H155: 3.40032538 | I155: 20.23970707 | J155: 12.96852735 | K155: 1.162735119 | L155: 0 | M155: 0 | N155: 0 | O155: 37.77129492
B157: Labour Costs - Total
B158: =$B$198 -> Project Management | C158: =Inputs!$A$8 -> Real $2024 | D158: $Million | E158: =E138+E148 -> 0 | F158: 0 | G158: 0 | H158: c-i-c | I158: c-i-c | J158: c-i-c | K158: c-i-c | L158: 0 | M158: 0 | N158: 0 | O158: c-i-c
B159: =$B$199 -> SIPS Control Implementation | C159: =Inputs!$A$8 -> Real $2024 | D159: $Million | E159: 0 | F159: 0 | G159: 0 | H159: c-i-c | I159: c-i-c | J159: c-i-c | K159: c-i-c | L159: 0 | M159: 0 | N159: 0 | O159: c-i-c
B160: =$B$200 -> Other Support & Corporate Roles | C160: =Inputs!$A$8 -> Real $2024 | D160: $Million | E160: 0 | F160: 0 | G160: 0 | H160: c-i-c | I160: c-i-c | J160: c-i-c | K160: c-i-c | L160: 0 | M160: 0 | N160: 0 | O160: c-i-c
B161: =$B$201 -> Transaction Procurement Support | C161: =Inputs!$A$8 -> Real $2024 | D161: $Million | E161: 0 | F161: 0 | G161: 0 | H161: c-i-c | I161: c-i-c | J161: c-i-c | K161: c-i-c | L161: 0 | M161: 0 | N161: 0 | O161: c-i-c
B162: =$B$202 -> Regulatory Approvals | C162: =Inputs!$A$8 -> Real $2024 | D162: $Million | E162: 0 | F162: 0 | G162: 0 | H162: c-i-c | I162: c-i-c | J162: c-i-c | K162: c-i-c | L162: 0 | M162: 0 | N162: 0 | O162: c-i-c
B163: =$B$203 -> Community and Stakeholder Engagement | C163: =Inputs!$A$8 -> Real $2024 | D163: $Million | E163: 0 | F163: 0 | G163: 0 | H163: c-i-c | I163: c-i-c | J163: c-i-c | K163: c-i-c | L163: 0 | M163: 0 | N163: 0 | O163: c-i-c
B164: =$B$204 -> Environment | C164: =Inputs!$A$8 -> Real $2024 | D164: $Million | E164: 0 | F164: 0 | G164: 0 | H164: c-i-c | I164: c-i-c | J164: c-i-c | K164: c-i-c | L164: 0 | M164: 0 | N164: 0 | O164: c-i-c
B165: Sub-Total | C165: =Inputs!$A$8 -> Real $2024 | D165: $Million | E165: =SUM(E158:E164) -> 0 | F165: =SUM(F158:F164) -> 0 | G165: =SUM(G158:G164) -> 0 | H165: 4.919946003 | I165: 20.23970707 | J165: 12.96852735 | K165: 1.162735119 | L165: 0 | M165: 0 | N165: 0 | O165: 39.29091555
B167: Indirect NL Costs - Actual
B168: =$B$198 -> Project Management | C168: =Inputs!$A$8 -> Real $2024 | D168: $Million | E168: =IFERROR( SUMIF(Inputs!$H$123:$H$131,$B168,Inputs!K$123:K$131) *Inputs!K$23,0) -> 0 | F168: =IFERROR( SUMIF(Inputs!$H$123:$H$131,$B168,Inputs!L$123:L$131) *Inputs!L$23,0) -> 0 | G168: =IFERROR( SUMIF(Inputs!$H$123:$H$131,$B168,Inputs!M$123:M$131) *Inputs!M$23,0) -> 0 | H168: c-i-c | I168: c-i-c | J168: c-i-c | K168: c-i-c | L168: 0 | M168: 0 | N168: 0 | O168: c-i-c
B169: =$B$199 -> SIPS Control Implementation | C169: =Inputs!$A$8 -> Real $2024 | D169: $Million | E169: =IFERROR( SUMIF(Inputs!$H$123:$H$131,$B169,Inputs!K$123:K$131) *Inputs!K$23,0) -> 0 | F169: =IFERROR( SUMIF(Inputs!$H$123:$H$131,$B169,Inputs!L$123:L$131) *Inputs!L$23,0) -> 0 | G169: =IFERROR( SUMIF(Inputs!$H$123:$H$131,$B169,Inputs!M$123:M$131) *Inputs!M$23,0) -> 0 | H169: c-i-c | I169: c-i-c | J169: c-i-c | K169: c-i-c | L169: 0 | M169: 0 | N169: 0 | O169: c-i-c
B170: =$B$200 -> Other Support & Corporate Roles | C170: =Inputs!$A$8 -> Real $2024 | D170: $Million | E170: =IFERROR( SUMIF(Inputs!$H$123:$H$131,$B170,Inputs!K$123:K$131) *Inputs!K$23,0) -> 0 | F170: =IFERROR( SUMIF(Inputs!$H$123:$H$131,$B170,Inputs!L$123:L$131) *Inputs!L$23,0) -> 0 | G170: =IFERROR( SUMIF(Inputs!$H$123:$H$131,$B170,Inputs!M$123:M$131) *Inputs!M$23,0) -> 0 | H170: c-i-c | I170: c-i-c | J170: c-i-c | K170: c-i-c | L170: 0 | M170: 0 | N170: 0 | O170: c-i-c
B171: =$B$201 -> Transaction Procurement Support | C171: =Inputs!$A$8 -> Real $2024 | D171: $Million | E171: =IFERROR( SUMIF(Inputs!$H$123:$H$131,$B171,Inputs!K$123:K$131) *Inputs!K$23,0) -> 0 | F171: =IFERROR( SUMIF(Inputs!$H$123:$H$131,$B171,Inputs!L$123:L$131) *Inputs!L$23,0) -> 0 | G171: =IFERROR( SUMIF(Inputs!$H$123:$H$131,$B171,Inputs!M$123:M$131) *Inputs!M$23,0) -> 0 | H171: c-i-c | I171: c-i-c | J171: c-i-c | K171: c-i-c | L171: 0 | M171: 0 | N171: 0 | O171: c-i-c
B172: =$B$202 -> Regulatory Approvals | C172: =Inputs!$A$8 -> Real $2024 | D172: $Million | E172: =IFERROR( SUMIF(Inputs!$H$123:$H$131,$B172,Inputs!K$123:K$131) *Inputs!K$23,0) -> 0 | F172: =IFERROR( SUMIF(Inputs!$H$123:$H$131,$B172,Inputs!L$123:L$131) *Inputs!L$23,0) -> 0 | G172: =IFERROR( SUMIF(Inputs!$H$123:$H$131,$B172,Inputs!M$123:M$131) *Inputs!M$23,0) -> 0 | H172: c-i-c | I172: c-i-c | J172: c-i-c | K172: c-i-c | L172: 0 | M172: 0 | N172: 0 | O172: c-i-c
B173: =$B$203 -> Community and Stakeholder Engagement | C173: =Inputs!$A$8 -> Real $2024 | D173: $Million | E173: =IFERROR( SUMIF(Inputs!$H$123:$H$131,$B173,Inputs!K$123:K$131) *Inputs!K$23,0) -> 0 | F173: =IFERROR( SUMIF(Inputs!$H$123:$H$131,$B173,Inputs!L$123:L$131) *Inputs!L$23,0) -> 0 | G173: =IFERROR( SUMIF(Inputs!$H$123:$H$131,$B173,Inputs!M$123:M$131) *Inputs!M$23,0) -> 0 | H173: c-i-c | I173: c-i-c | J173: c-i-c | K173: c-i-c | L173: 0 | M173: 0 | N173: 0 | O173: c-i-c
B174: =$B$204 -> Environment | C174: =Inputs!$A$8 -> Real $2024 | D174: $Million | E174: =IFERROR( SUMIF(Inputs!$H$123:$H$131,$B174,Inputs!K$123:K$131) *Inputs!K$23,0) -> 0 | F174: =IFERROR( SUMIF(Inputs!$H$123:$H$131,$B174,Inputs!L$123:L$131) *Inputs!L$23,0) -> 0 | G174: =IFERROR( SUMIF(Inputs!$H$123:$H$131,$B174,Inputs!M$123:M$131) *Inputs!M$23,0) -> 0 | H174: c-i-c | I174: c-i-c | J174: c-i-c | K174: c-i-c | L174: 0 | M174: 0 | N174: 0 | O174: c-i-c
B175: Sub-Total | C175: =Inputs!$A$8 -> Real $2024 | D175: $Million | E175: =SUM(E168:E174) -> 0 | F175: =SUM(F168:F174) -> 0 | G175: =SUM(G168:G174) -> 0 | H175: 2.801240594 | I175: 0 | J175: 0 | K175: 0 | L175: 0 | M175: 0 | N175: 0 | O175: 2.801240594
B177: Indirect NL Costs - Forecast
B178: =$B$198 -> Project Management | C178: =Inputs!$A$8 -> Real $2024 | D178: $Million | E178: =IFERROR( SUMIF(Inputs!$H$133:$H$141,$B178,Inputs!K$133:K$141) *Inputs!K$23,0) -> 0 | F178: =IFERROR( SUMIF(Inputs!$H$133:$H$141,$B178,Inputs!L$133:L$141) *Inputs!L$23,0) -> 0 | G178: =IFERROR( SUMIF(Inputs!$H$133:$H$141,$B178,Inputs!M$133:M$141) *Inputs!M$23,0) -> 0 | H178: c-i-c | I178: c-i-c | J178: c-i-c | K178: c-i-c | L178: 0 | M178: 0 | N178: 0 | O178: c-i-c
B179: =$B$199 -> SIPS Control Implementation | C179: =Inputs!$A$8 -> Real $2024 | D179: $Million | E179: =IFERROR( SUMIF(Inputs!$H$133:$H$141,$B179,Inputs!K$133:K$141) *Inputs!K$23,0) -> 0 | F179: =IFERROR( SUMIF(Inputs!$H$133:$H$141,$B179,Inputs!L$133:L$141) *Inputs!L$23,0) -> 0 | G179: =IFERROR( SUMIF(Inputs!$H$133:$H$141,$B179,Inputs!M$133:M$141) *Inputs!M$23,0) -> 0 | H179: c-i-c | I179: c-i-c | J179: c-i-c | K179: c-i-c | L179: 0 | M179: 0 | N179: 0 | O179: c-i-c
B180: =$B$200 -> Other Support & Corporate Roles | C180: =Inputs!$A$8 -> Real $2024 | D180: $Million | E180: =IFERROR( SUMIF(Inputs!$H$133:$H$141,$B180,Inputs!K$133:K$141) *Inputs!K$23,0) -> 0 | F180: =IFERROR( SUMIF(Inputs!$H$133:$H$141,$B180,Inputs!L$133:L$141) *Inputs!L$23,0) -> 0 | G180: =IFERROR( SUMIF(Inputs!$H$133:$H$141,$B180,Inputs!M$133:M$141) *Inputs!M$23,0) -> 0 | H180: c-i-c | I180: c-i-c | J180: c-i-c | K180: c-i-c | L180: 0 | M180: 0 | N180: 0 | O180: c-i-c
B181: =$B$201 -> Transaction Procurement Support | C181: =Inputs!$A$8 -> Real $2024 | D181: $Million | E181: =IFERROR( SUMIF(Inputs!$H$133:$H$141,$B181,Inputs!K$133:K$141) *Inputs!K$23,0) -> 0 | F181: =IFERROR( SUMIF(Inputs!$H$133:$H$141,$B181,Inputs!L$133:L$141) *Inputs!L$23,0) -> 0 | G181: =IFERROR( SUMIF(Inputs!$H$133:$H$141,$B181,Inputs!M$133:M$141) *Inputs!M$23,0) -> 0 | H181: c-i-c | I181: c-i-c | J181: c-i-c | K181: c-i-c | L181: 0 | M181: 0 | N181: 0 | O181: c-i-c
B182: =$B$202 -> Regulatory Approvals | C182: =Inputs!$A$8 -> Real $2024 | D182: $Million | E182: =IFERROR( SUMIF(Inputs!$H$133:$H$141,$B182,Inputs!K$133:K$141) *Inputs!K$23,0) -> 0 | F182: =IFERROR( SUMIF(Inputs!$H$133:$H$141,$B182,Inputs!L$133:L$141) *Inputs!L$23,0) -> 0 | G182: =IFERROR( SUMIF(Inputs!$H$133:$H$141,$B182,Inputs!M$133:M$141) *Inputs!M$23,0) -> 0 | H182: c-i-c | I182: c-i-c | J182: c-i-c | K182: c-i-c | L182: 0 | M182: 0 | N182: 0 | O182: c-i-c
B183: =$B$203 -> Community and Stakeholder Engagement | C183: =Inputs!$A$8 -> Real $2024 | D183: $Million | E183: =IFERROR( SUMIF(Inputs!$H$133:$H$141,$B183,Inputs!K$133:K$141) *Inputs!K$23,0) -> 0 | F183: =IFERROR( SUMIF(Inputs!$H$133:$H$141,$B183,Inputs!L$133:L$141) *Inputs!L$23,0) -> 0 | G183: =IFERROR( SUMIF(Inputs!$H$133:$H$141,$B183,Inputs!M$133:M$141) *Inputs!M$23,0) -> 0 | H183: c-i-c | I183: c-i-c | J183: c-i-c | K183: c-i-c | L183: 0 | M183: 0 | N183: 0 | O183: c-i-c
B184: =$B$204 -> Environment | C184: =Inputs!$A$8 -> Real $2024 | D184: $Million | E184: =IFERROR( SUMIF(Inputs!$H$133:$H$141,$B184,Inputs!K$133:K$141) *Inputs!K$23,0) -> 0 | F184: =IFERROR( SUMIF(Inputs!$H$133:$H$141,$B184,Inputs!L$133:L$141) *Inputs!L$23,0) -> 0 | G184: =IFERROR( SUMIF(Inputs!$H$133:$H$141,$B184,Inputs!M$133:M$141) *Inputs!M$23,0) -> 0 | H184: c-i-c | I184: c-i-c | J184: c-i-c | K184: c-i-c | L184: 0 | M184: 0 | N184: 0 | O184: c-i-c
B185: Sub-Total | C185: =Inputs!$A$8 -> Real $2024 | D185: $Million | E185: =SUM(E178:E184) -> 0 | F185: =SUM(F178:F184) -> 0 | G185: =SUM(G178:G184) -> 0 | H185: 3.144955832 | I185: 13.06240252 | J185: 6.386540536 | K185: 0.6071900249 | L185: 0 | M185: 0 | N185: 0 | O185: 23.20108891
B187: Indirect NL Costs - Total
B188: =$B$198 -> Project Management | C188: =Inputs!$A$8 -> Real $2024 | D188: $Million | E188: =E168+E178 -> 0 | F188: 0 | G188: 0 | H188: c-i-c | I188: c-i-c | J188: c-i-c | K188: c-i-c | L188: 0 | M188: 0 | N188: 0 | O188: c-i-c
B189: =$B$199 -> SIPS Control Implementation | C189: =Inputs!$A$8 -> Real $2024 | D189: $Million | E189: 0 | F189: 0 | G189: 0 | H189: c-i-c | I189: c-i-c | J189: c-i-c | K189: c-i-c | L189: 0 | M189: 0 | N189: 0 | O189: c-i-c
B190: =$B$200 -> Other Support & Corporate Roles | C190: =Inputs!$A$8 -> Real $2024 | D190: $Million | E190: 0 | F190: 0 | G190: 0 | H190: c-i-c | I190: c-i-c | J190: c-i-c | K190: c-i-c | L190: 0 | M190: 0 | N190: 0 | O190: c-i-c
B191: =$B$201 -> Transaction Procurement Support | C191: =Inputs!$A$8 -> Real $2024 | D191: $Million | E191: 0 | F191: 0 | G191: 0 | H191: c-i-c | I191: c-i-c | J191: c-i-c | K191: c-i-c | L191: 0 | M191: 0 | N191: 0 | O191: c-i-c
B192: =$B$202 -> Regulatory Approvals | C192: =Inputs!$A$8 -> Real $2024 | D192: $Million | E192: 0 | F192: 0 | G192: 0 | H192: c-i-c | I192: c-i-c | J192: c-i-c | K192: c-i-c | L192: 0 | M192: 0 | N192: 0 | O192: c-i-c
B193: =$B$203 -> Community and Stakeholder Engagement | C193: =Inputs!$A$8 -> Real $2024 | D193: $Million | E193: 0 | F193: 0 | G193: 0 | H193: c-i-c | I193: c-i-c | J193: c-i-c | K193: c-i-c | L193: 0 | M193: 0 | N193: 0 | O193: c-i-c
B194: =$B$204 -> Environment | C194: =Inputs!$A$8 -> Real $2024 | D194: $Million | E194: 0 | F194: 0 | G194: 0 | H194: c-i-c | I194: c-i-c | J194: c-i-c | K194: c-i-c | L194: 0 | M194: 0 | N194: 0 | O194: c-i-c
B195: Sub-Total | C195: =Inputs!$A$8 -> Real $2024 | D195: $Million | E195: =SUM(E188:E194) -> 0 | F195: =SUM(F188:F194) -> 0 | G195: =SUM(G188:G194) -> 0 | H195: 5.946196425 | I195: 13.06240252 | J195: 6.386540536 | K195: 0.6071900249 | L195: 0 | M195: 0 | N195: 0 | O195: 26.0023295
B197: Total
B198: Project Management | C198: =Inputs!$A$8 -> Real $2024 | D198: $Million | E198: =SUMIF($B$186:$B$195,$B198,E$186:E$195)+SUMIF($B$156:$B$165,$B198,E$156:E$165)+SUMIF($B$126:$B$135,$B198,E$126:E$135) -> 0 | F198: 0 | G198: 0 | H198: c-i-c | I198: c-i-c | J198: c-i-c | K198: c-i-c | L198: 0 | M198: 0 | N198: 0 | O198: c-i-c
B199: SIPS Control Implementation | C199: =Inputs!$A$8 -> Real $2024 | D199: $Million | E199: 0 | F199: 0 | G199: 0 | H199: c-i-c | I199: c-i-c | J199: c-i-c | K199: c-i-c | L199: 0 | M199: 0 | N199: 0 | O199: c-i-c
B200: Other Support & Corporate Roles | C200: =Inputs!$A$8 -> Real $2024 | D200: $Million | E200: 0 | F200: 0 | G200: 0 | H200: c-i-c | I200: c-i-c | J200: c-i-c | K200: c-i-c | L200: 0 | M200: 0 | N200: 0 | O200: c-i-c
B201: Transaction Procurement Support | C201: =Inputs!$A$8 -> Real $2024 | D201: $Million | E201: 0 | F201: 0 | G201: 0 | H201: c-i-c | I201: c-i-c | J201: c-i-c | K201: c-i-c | L201: 0 | M201: 0 | N201: 0 | O201: c-i-c
B202: Regulatory Approvals | C202: =Inputs!$A$8 -> Real $2024 | D202: $Million | E202: 0 | F202: 0 | G202: 0 | H202: c-i-c | I202: c-i-c | J202: c-i-c | K202: c-i-c | L202: 0 | M202: 0 | N202: 0 | O202: c-i-c
B203: Community and Stakeholder Engagement | C203: =Inputs!$A$8 -> Real $2024 | D203: $Million | E203: 0 | F203: 0 | G203: 0 | H203: c-i-c | I203: c-i-c | J203: c-i-c | K203: c-i-c | L203: 0 | M203: 0 | N203: 0 | O203: c-i-c
B204: Environment | C204: =Inputs!$A$8 -> Real $2024 | D204: $Million | E204: 0 | F204: 0 | G204: 0 | H204: c-i-c | I204: c-i-c | J204: c-i-c | K204: c-i-c | L204: 0 | M204: 0 | N204: 0 | O204: c-i-c
B205: Total | C205: =Inputs!$A$8 -> Real $2024 | D205: $Million | E205: =SUM(E198:E204) -> 0 | F205: =SUM(F198:F204) -> 0 | G205: =SUM(G198:G204) -> 0 | H205: 11.43217962 | I205: 92.58219122 | J205: 131.2365937 | K205: 13.2668354 | L205: 0 | M205: 0 | N205: 0 | O205: 248.5178
A207: =IF(SUM(E207:N207)=0,0,1) -> 0 | B207: ="Check "&$B$101 -> Check Direct Non-Labour | E207: =IF(ROUND(E$26-E135,3)=0,0,1) -> 0 | F207: 0 | G207: 0 | H207: 0 | I207: 0 | J207: 0 | K207: 0 | L207: 0 | M207: 0 | N207: 0
A208: =IF(SUM(E208:N208)=0,0,1) -> 0 | B208: ="Check "&$B$105 -> Check Labour Costs | E208: =IF(ROUND(E$48-E165,3)=0,0,1) -> 0 | F208: 0 | G208: 0 | H208: 0 | I208: 0 | J208: 0 | K208: 0 | L208: 0 | M208: 0 | N208: 0
A209: =IF(SUM(E209:N209)=0,0,1) -> 0 | B209: ="Check "&$B$110 -> Check Indirect Non-Labour Costs | E209: =IF(ROUND(E$70-E195,3)=0,0,1) -> 0 | F209: 0 | G209: 0 | H209: 0 | I209: 0 | J209: 0 | K209: 0 | L209: 0 | M209: 0 | N209: 0
B211: End

Sheet Outputs|Models
A1: Outputs | Models
A3: Outputs | PTRM
B5: As Incurred | D5: Dollar basis | E5: Units | F5: =Inputs!K$20 -> 2020 | G5: =F5+1 -> 2021 | H5: 2022 | I5: 2023 | J5: 2024 | K5: 2025 | L5: 2026 | M5: 2027 | N5: 2028 | O5: 2029 | P5: Total
B6: Capex
B7: =Inputs!$A$182 -> Transmission Lines | D7: =Inputs!$A$8 -> Real $2024 | E7: $Million | K7: =K72 -> 55.99118406 | L7: 0 | M7: 0 | N7: 0 | O7: 0 | P7: =SUM(F7:O7) -> 55.99118406
B8: =Inputs!$A$183 -> Underground Cables | D8: =Inputs!$A$8 -> Real $2024 | E8: $Million | K8: 0 | L8: 0 | M8: 0 | N8: 0 | O8: 0 | P8: =SUM(F8:O8) -> 0
B9: =Inputs!$A$184 -> Substations | D9: =Inputs!$A$8 -> Real $2024 | E9: $Million | K9: 72.79365904 | L9: 13.2668354 | M9: 0 | N9: 0 | O9: 0 | P9: 86.06049444
B10: =Inputs!$A$185 -> Secondary Systems | D10: =Inputs!$A$8 -> Real $2024 | E10: $Million | K10: 0 | L10: 0 | M10: 0 | N10: 0 | O10: 0 | P10: 0
B11: =Inputs!$A$186 -> Communications (short life) | D11: =Inputs!$A$8 -> Real $2024 | E11: $Million | K11: 0 | L11: 0 | M11: 0 | N11: 0 | O11: 0 | P11: 0
B12: =Inputs!$A$187 -> SIPS Control | D12: =Inputs!$A$8 -> Real $2024 | E12: $Million | K12: 2.451750617 | L12: 0 | M12: 0 | N12: 0 | O12: 0 | P12: =SUM(F12:O12) -> 2.451750617
B13: =Inputs!$A$188 -> Business IT | D13: =Inputs!$A$8 -> Real $2024 | E13: $Million | K13: =K78 -> 0 | L13: 0 | M13: 0 | N13: 0 | O13: 0 | P13: 0
B14: =Inputs!$A$189 -> Minor Plant, Motor Vehicles & Mobile Plant | D14: =Inputs!$A$8 -> Real $2024 | E14: $Million | K14: 0 | L14: 0 | M14: 0 | N14: 0 | O14: 0 | P14: 0
B15: =Inputs!$A$190 -> Transmission Line Life Extension | D15: =Inputs!$A$8 -> Real $2024 | E15: $Million | K15: 0 | L15: 0 | M15: 0 | N15: 0 | O15: 0 | P15: 0
B16: =Inputs!$A$191 -> Land and Easements | D16: =Inputs!$A$8 -> Real $2024 | E16: $Million | K16: 0 | L16: 0 | M16: 0 | N16: 0 | O16: 0 | P16: 0
B17: =Inputs!$A$192 -> Synchronous Condensers | D17: =Inputs!$A$8 -> Real $2024 | E17: $Million | K17: 0 | L17: 0 | M17: 0 | N17: 0 | O17: 0 | P17: 0
B18: =Inputs!$A$193 -> Leasehold Land and Property | D18: =Inputs!$A$8 -> Real $2024 | E18: $Million | K18: 0 | L18: 0 | M18: 0 | N18: 0 | O18: 0 | P18: 0
B19: =Inputs!$A$194 -> Buildings - capital works | D19: =Inputs!$A$8 -> Real $2024 | E19: $Million | K19: 0 | L19: 0 | M19: 0 | N19: 0 | O19: 0 | P19: 0
B20: =Inputs!$A$195 -> In-house software | D20: =Inputs!$A$8 -> Real $2024 | E20: $Million | K20: 0 | L20: 0 | M20: 0 | N20: 0 | O20: 0 | P20: 0
B21: Total | D21: =Inputs!$A$8 -> Real $2024 | E21: $Million | F21: =SUM(F7:F20) -> 0 | G21: 0 | H21: 0 | I21: 0 | J21: 0 | K21: 131.2365937 | L21: 13.2668354 | M21: 0 | N21: 0 | O21: 0 | P21: 144.5034291
A23: =IF(SUM(F23:O23)=0,0,1) -> 0 | B23: Check - As incurred | K23: =IF(ROUND(K21-K$86,3)=0,0,1) -> 0 | L23: =IF(ROUND(L21-L$86,3)=0,0,1) -> 0 | M23: =IF(ROUND(M21-M$86,3)=0,0,1) -> 0 | N23: =IF(ROUND(N21-N$86,3)=0,0,1) -> 0 | O23: =IF(ROUND(O21-O$86,3)=0,0,1) -> 0
B26: As Commissioned | D26: Dollar basis | E26: Units | F26: =Inputs!K$20 -> 2020 | G26: =F26+1 -> 2021 | H26: 2022 | I26: 2023 | J26: 2024 | K26: 2025 | L26: 2026 | M26: 2027 | N26: 2028 | O26: 2029 | P26: Total | S26: Year of commission | T26: Financing costs | Y26: 2023 | Z26: 2024
B27: Capex | X27: Nominal vanilla WACC | Y27: 0.05754759623 | Z27: 0.05767616739
B28: =Inputs!$A$182 -> Transmission Lines | D28: =Inputs!$A$8 -> Real $2024 | E28: $Million | K28: =IF(K$26=$S28,$P72+$T28,0) -> 92.53651787 | L28: 0 | M28: 0 | N28: 0 | O28: 0 | P28: =SUM(F28:O28) -> 92.53651787 | S28: =IF(P72=0,"n/a",_xlfn.MAXIFS($F$70:$O$70,$F72:$O72,">0")) -> 2025 | T28: =SUMPRODUCT(I50:J50,$Y$28:$Z$28)-SUM(I72:J72) -> 0.4055945903 | X28: Compound rate | Y28: =Z28*(1+Y27)^0.5*(1+Z27)^0.5 -> 1.087683849 | Z28: =AA28*(1+Z27)^0.5 -> 1.028433842 | AA28: 1 | AB28: ◄ Compound rate from mid-year to start of First Regulatory Period
B29: =Inputs!$A$183 -> Underground Cables | D29: =Inputs!$A$8 -> Real $2024 | E29: $Million | K29: 0 | L29: 0 | M29: 0 | N29: 0 | O29: 0 | P29: 0 | S29: =IF(P73=0,"n/a",_xlfn.MAXIFS($F$70:$O$70,$F73:$O73,">0")) -> n/a | T29: =SUMPRODUCT(I51:J51,$Y$28:$Z$28)-SUM(I73:J73) -> 0
B30: =Inputs!$A$184 -> Substations | D30: =Inputs!$A$8 -> Real $2024 | E30: $Million | K30: 0 | L30: 143.939799 | M30: 0 | N30: 0 | O30: 0 | P30: 143.939799 | S30: 2026 | T30: 0.641504829
B31: =Inputs!$A$185 -> Secondary Systems | D31: =Inputs!$A$8 -> Real $2024 | E31: $Million | K31: 0 | L31: 0 | M31: 0 | N31: 0 | O31: 0 | P31: 0 | S31: n/a | T31: 0
B32: =Inputs!$A$186 -> Communications (short life) | D32: =Inputs!$A$8 -> Real $2024 | E32: $Million | K32: 0 | L32: 0 | M32: 0 | N32: 0 | O32: 0 | P32: 0 | S32: n/a | T32: 0
B33: =Inputs!$A$187 -> SIPS Control | D33: =Inputs!$A$8 -> Real $2024 | E33: $Million | K33: 13.21423864 | L33: 0 | M33: 0 | N33: 0 | O33: 0 | P33: 13.21423864 | S33: 2025 | T33: 0.1256561597
B34: =Inputs!$A$188 -> Business IT | D34: =Inputs!$A$8 -> Real $2024 | E34: $Million | K34: 0 | L34: 0 | M34: 0 | N34: 0 | O34: 0 | P34: =SUM(F34:O34) -> 0 | S34: n/a | T34: 0
B35: =Inputs!$A$189 -> Minor Plant, Motor Vehicles & Mobile Plant | D35: =Inputs!$A$8 -> Real $2024 | E35: $Million | K35: 0 | L35: 0 | M35: 0 | N35: 0 | O35: 0 | P35: 0 | S35: n/a | T35: 0
B36: =Inputs!$A$190 -> Transmission Line Life Extension | D36: =Inputs!$A$8 -> Real $2024 | E36: $Million | K36: 0 | L36: 0 | M36: 0 | N36: 0 | O36: 0 | P36: 0 | S36: n/a | T36: 0
B37: =Inputs!$A$191 -> Land and Easements | D37: =Inputs!$A$8 -> Real $2024 | E37: $Million | K37: 0 | L37: 0 | M37: 0 | N37: 0 | O37: 0 | P37: 0 | S37: n/a | T37: 0
B38: =Inputs!$A$192 -> Synchronous Condensers | D38: =Inputs!$A$8 -> Real $2024 | E38: $Million | K38: 0 | L38: 0 | M38: 0 | N38: 0 | O38: 0 | P38: 0 | S38: n/a | T38: 0
B39: =Inputs!$A$193 -> Leasehold Land and Property | D39: =Inputs!$A$8 -> Real $2024 | E39: $Million | K39: 0 | L39: 0 | M39: 0 | N39: 0 | O39: 0 | P39: 0 | S39: n/a | T39: 0
B40: =Inputs!$A$194 -> Buildings - capital works | D40: =Inputs!$A$8 -> Real $2024 | E40: $Million | K40: 0 | L40: 0 | M40: 0 | N40: 0 | O40: 0 | P40: 0 | S40: n/a | T40: 0
B41: =Inputs!$A$195 -> In-house software | D41: =Inputs!$A$8 -> Real $2024 | E41: $Million | K41: 0 | L41: 0 | M41: 0 | N41: 0 | O41: 0 | P41: 0 | S41: n/a | T41: 0
B42: Total | D42: =Inputs!$A$8 -> Real $2024 | E42: $Million | F42: =SUM(F28:F41) -> 0 | G42: 0 | H42: 0 | I42: 0 | J42: 0 | K42: 105.7507565 | L42: 143.939799 | M42: 0 | N42: 0 | O42: 0 | P42: 249.6905555 | T42: =SUM(T28:T41) -> 1.172755579
A44: =IF(SUM(P44)=0,0,1) -> 0 | B44: Check - As commissioned | P44: =IF(ROUND(P42-P$86-T42,3)=0,0,1) -> 0
A46: Outputs | PTRM 'Pre-Period Costs'
B48: As Incurred | D48: Dollar basis | E48: Units | F48: =Inputs!K$20 -> 2020 | G48: =F48+1 -> 2021 | H48: 2022 | I48: 2023 | J48: 2024 | K48: 2025 | L48: 2026 | M48: 2027 | N48: 2028 | O48: 2029 | P48: Total
B49: Capex
B50: =Inputs!$A$182 -> Transmission Lines | D50: $Nominal | E50: $Million | F50: =F72*F$94 -> 0 | G50: 0 | H50: 0 | I50: 3.495913491 | J50: 31.83761933 | P50: =SUM(F50:O50) -> 35.33353282
B51: =Inputs!$A$183 -> Underground Cables | D51: $Nominal | E51: $Million | F51: 0 | G51: 0 | H51: 0 | I51: 0 | J51: 0 | P51: 0
B52: =Inputs!$A$184 -> Substations | D52: $Nominal | E52: $Million | F52: 0 | G52: 0 | H52: 0 | I52: 5.433343633 | J52: 50.53270551 | P52: 55.96604914
B53: =Inputs!$A$185 -> Secondary Systems | D53: $Nominal | E53: $Million | F53: 0 | G53: 0 | H53: 0 | I53: 0 | J53: 0 | P53: 0
B54: =Inputs!$A$186 -> Communications (short life) | D54: $Nominal | E54: $Million | F54: 0 | G54: 0 | H54: 0 | I54: 0 | J54: 0 | P54: 0
B55: =Inputs!$A$187 -> SIPS Control | D55: $Nominal | E55: $Million | F55: 0 | G55: 0 | H55: 0 | I55: 1.773672055 | J55: 8.589073223 | P55: =SUM(F55:O55) -> 10.36274528
B56: =Inputs!$A$188 -> Business IT | D56: $Nominal | E56: $Million | F56: 0 | G56: 0 | H56: 0 | I56: 0 | J56: 0 | P56: 0
B57: =Inputs!$A$189 -> Minor Plant, Motor Vehicles & Mobile Plant | D57: $Nominal | E57: $Million | F57: 0 | G57: 0 | H57: 0 | I57: 0 | J57: 0 | P57: 0
B58: =Inputs!$A$190 -> Transmission Line Life Extension | D58: $Nominal | E58: $Million | F58: 0 | G58: 0 | H58: 0 | I58: 0 | J58: 0 | P58: 0
B59: =Inputs!$A$191 -> Land and Easements | D59: $Nominal | E59: $Million | F59: 0 | G59: 0 | H59: 0 | I59: 0 | J59: 0 | P59: 0
B60: =Inputs!$A$192 -> Synchronous Condensers | D60: $Nominal | E60: $Million | F60: 0 | G60: 0 | H60: 0 | I60: 0 | J60: 0 | P60: 0
B61: =Inputs!$A$193 -> Leasehold Land and Property | D61: $Nominal | E61: $Million | F61: 0 | G61: 0 | H61: 0 | I61: 0 | J61: 0 | P61: 0
B62: =Inputs!$A$194 -> Buildings - capital works | D62: $Nominal | E62: $Million | F62: 0 | G62: 0 | H62: 0 | I62: 0 | J62: 0 | P62: =SUM(F62:O62) -> 0
B63: =Inputs!$A$195 -> In-house software | D63: $Nominal | E63: $Million | F63: 0 | G63: 0 | H63: 0 | I63: 0 | J63: 0 | P63: 0
B64: Total | D64: $Nominal | E64: $Million | F64: =SUM(F50:F63) -> 0 | G64: =SUM(G50:G63) -> 0 | H64: =SUM(H50:H63) -> 0 | I64: =SUM(I50:I63) -> 10.70292918 | J64: =SUM(J50:J63) -> 90.95939806 | K64: =SUM(K49:K63) -> 0 | L64: =SUM(L49:L63) -> 0 | M64: =SUM(M49:M63) -> 0 | N64: =SUM(N49:N63) -> 0 | O64: =SUM(O49:O63) -> 0 | P64: 101.6623272
A66: =IF(SUM(F66:O66)=0,0,1) -> 0 | B66: Check - As incurred | F66: =IF(ROUND(F64-F$86*F$94,3)=0,0,1) -> 0 | G66: =IF(ROUND(G64-G$86*G$94,3)=0,0,1) -> 0 | H66: =IF(ROUND(H64-H$86*H$94,3)=0,0,1) -> 0 | I66: =IF(ROUND(I64-I$86*I$94,3)=0,0,1) -> 0 | J66: =IF(ROUND(J64-J$86*J$94,3)=0,0,1) -> 0
A68: Output | As Incurred Capex by RAB Asset Class
B70: As Incurred | D70: Dollar basis | E70: Units | F70: =Inputs!K$20 -> 2020 | G70: =F70+1 -> 2021 | H70: 2022 | I70: 2023 | J70: 2024 | K70: 2025 | L70: 2026 | M70: 2027 | N70: 2028 | O70: 2029 | P70: Total
B71: Capex
B72: =Inputs!$A$182 -> Transmission Lines | D72: =Inputs!$A$8 -> Real $2024 | E72: $Million | F72: =SUMIF(Calculations!$Q$73:$Q$91,$B72,Calculations!E$73:E$91) -> 0 | G72: =SUMIF(Calculations!$Q$73:$Q$91,$B72,Calculations!F$73:F$91) -> 0 | H72: =SUMIF(Calculations!$Q$73:$Q$91,$B72,Calculations!G$73:G$91) -> 0 | I72: =SUMIF(Calculations!$Q$73:$Q$91,$B72,Calculations!H$73:H$91) -> 3.734109635 | J72: =SUMIF(Calculations!$Q$73:$Q$91,$B72,Calculations!I$73:I$91) -> 32.40562958 | K72: =SUMIF(Calculations!$Q$73:$Q$91,$B72,Calculations!J$73:J$91) -> 55.99118406 | L72: =SUMIF(Calculations!$Q$73:$Q$91,$B72,Calculations!K$73:K$91) -> 0 | M72: =SUMIF(Calculations!$Q$73:$Q$91,$B72,Calculations!L$73:L$91) -> 0 | N72: =SUMIF(Calculations!$Q$73:$Q$91,$B72,Calculations!M$73:M$91) -> 0 | O72: =SUMIF(Calculations!$Q$73:$Q$91,$B72,Calculations!N$73:N$91) -> 0 | P72: =SUM(F72:O72) -> 92.13092328
B73: =Inputs!$A$183 -> Underground Cables | D73: =Inputs!$A$8 -> Real $2024 | E73: $Million | F73: =SUMIF(Calculations!$Q$73:$Q$91,$B73,Calculations!E$73:E$91) -> 0 | G73: =SUMIF(Calculations!$Q$73:$Q$91,$B73,Calculations!F$73:F$91) -> 0 | H73: =SUMIF(Calculations!$Q$73:$Q$91,$B73,Calculations!G$73:G$91) -> 0 | I73: =SUMIF(Calculations!$Q$73:$Q$91,$B73,Calculations!H$73:H$91) -> 0 | J73: =SUMIF(Calculations!$Q$73:$Q$91,$B73,Calculations!I$73:I$91) -> 0 | K73: =SUMIF(Calculations!$Q$73:$Q$91,$B73,Calculations!J$73:J$91) -> 0 | L73: =SUMIF(Calculations!$Q$73:$Q$91,$B73,Calculations!K$73:K$91) -> 0 | M73: =SUMIF(Calculations!$Q$73:$Q$91,$B73,Calculations!L$73:L$91) -> 0 | N73: =SUMIF(Calculations!$Q$73:$Q$91,$B73,Calculations!M$73:M$91) -> 0 | O73: =SUMIF(Calculations!$Q$73:$Q$91,$B73,Calculations!N$73:N$91) -> 0 | P73: =SUM(F73:O73) -> 0
B74: =Inputs!$A$184 -> Substations | D74: =Inputs!$A$8 -> Real $2024 | E74: $Million | F74: =SUMIF(Calculations!$Q$73:$Q$91,$B74,Calculations!E$73:E$91) -> 0 | G74: =SUMIF(Calculations!$Q$73:$Q$91,$B74,Calculations!F$73:F$91) -> 0 | H74: =SUMIF(Calculations!$Q$73:$Q$91,$B74,Calculations!G$73:G$91) -> 0 | I74: =SUMIF(Calculations!$Q$73:$Q$91,$B74,Calculations!H$73:H$91) -> 5.803547731 | J74: =SUMIF(Calculations!$Q$73:$Q$91,$B74,Calculations!I$73:I$91) -> 51.43425203 | K74: =SUMIF(Calculations!$Q$73:$Q$91,$B74,Calculations!J$73:J$91) -> 72.79365904 | L74: =SUMIF(Calculations!$Q$73:$Q$91,$B74,Calculations!K$73:K$91) -> 13.2668354 | M74: =SUMIF(Calculations!$Q$73:$Q$91,$B74,Calculations!L$73:L$91) -> 0 | N74: =SUMIF(Calculations!$Q$73:$Q$91,$B74,Calculations!M$73:M$91) -> 0 | O74: =SUMIF(Calculations!$Q$73:$Q$91,$B74,Calculations!N$73:N$91) -> 0 | P74: 143.2982942
B75: =Inputs!$A$185 -> Secondary Systems | D75: =Inputs!$A$8 -> Real $2024 | E75: $Million | F75: =SUMIF(Calculations!$Q$73:$Q$91,$B75,Calculations!E$73:E$91) -> 0 | G75: =SUMIF(Calculations!$Q$73:$Q$91,$B75,Calculations!F$73:F$91) -> 0 | H75: =SUMIF(Calculations!$Q$73:$Q$91,$B75,Calculations!G$73:G$91) -> 0 | I75: =SUMIF(Calculations!$Q$73:$Q$91,$B75,Calculations!H$73:H$91) -> 0 | J75: =SUMIF(Calculations!$Q$73:$Q$91,$B75,Calculations!I$73:I$91) -> 0 | K75: =SUMIF(Calculations!$Q$73:$Q$91,$B75,Calculations!J$73:J$91) -> 0 | L75: =SUMIF(Calculations!$Q$73:$Q$91,$B75,Calculations!K$73:K$91) -> 0 | M75: =SUMIF(Calculations!$Q$73:$Q$91,$B75,Calculations!L$73:L$91) -> 0 | N75: =SUMIF(Calculations!$Q$73:$Q$91,$B75,Calculations!M$73:M$91) -> 0 | O75: =SUMIF(Calculations!$Q$73:$Q$91,$B75,Calculations!N$73:N$91) -> 0 | P75: 0
B76: =Inputs!$A$186 -> Communications (short life) | D76: =Inputs!$A$8 -> Real $2024 | E76: $Million | F76: =SUMIF(Calculations!$Q$73:$Q$91,$B76,Calculations!E$73:E$91) -> 0 | G76: =SUMIF(Calculations!$Q$73:$Q$91,$B76,Calculations!F$73:F$91) -> 0 | H76: =SUMIF(Calculations!$Q$73:$Q$91,$B76,Calculations!G$73:G$91) -> 0 | I76: =SUMIF(Calculations!$Q$73:$Q$91,$B76,Calculations!H$73:H$91) -> 0 | J76: =SUMIF(Calculations!$Q$73:$Q$91,$B76,Calculations!I$73:I$91) -> 0 | K76: =SUMIF(Calculations!$Q$73:$Q$91,$B76,Calculations!J$73:J$91) -> 0 | L76: =SUMIF(Calculations!$Q$73:$Q$91,$B76,Calculations!K$73:K$91) -> 0 | M76: =SUMIF(Calculations!$Q$73:$Q$91,$B76,Calculations!L$73:L$91) -> 0 | N76: =SUMIF(Calculations!$Q$73:$Q$91,$B76,Calculations!M$73:M$91) -> 0 | O76: =SUMIF(Calculations!$Q$73:$Q$91,$B76,Calculations!N$73:N$91) -> 0 | P76: 0
B77: =Inputs!$A$187 -> SIPS Control | D77: =Inputs!$A$8 -> Real $2024 | E77: $Million | F77: =SUMIF(Calculations!$Q$73:$Q$91,$B77,Calculations!E$73:E$91) -> 0 | G77: =SUMIF(Calculations!$Q$73:$Q$91,$B77,Calculations!F$73:F$91) -> 0 | H77: =SUMIF(Calculations!$Q$73:$Q$91,$B77,Calculations!G$73:G$91) -> 0 | I77: =SUMIF(Calculations!$Q$73:$Q$91,$B77,Calculations!H$73:H$91) -> 1.894522255 | J77: =SUMIF(Calculations!$Q$73:$Q$91,$B77,Calculations!I$73:I$91) -> 8.742309607 | K77: =SUMIF(Calculations!$Q$73:$Q$91,$B77,Calculations!J$73:J$91) -> 2.451750617 | L77: =SUMIF(Calculations!$Q$73:$Q$91,$B77,Calculations!K$73:K$91) -> 0 | M77: =SUMIF(Calculations!$Q$73:$Q$91,$B77,Calculations!L$73:L$91) -> 0 | N77: =SUMIF(Calculations!$Q$73:$Q$91,$B77,Calculations!M$73:M$91) -> 0 | O77: =SUMIF(Calculations!$Q$73:$Q$91,$B77,Calculations!N$73:N$91) -> 0 | P77: =SUM(F77:O77) -> 13.08858248
B78: =Inputs!$A$188 -> Business IT | D78: =Inputs!$A$8 -> Real $2024 | E78: $Million | F78: =SUMIF(Calculations!$Q$73:$Q$91,$B78,Calculations!E$73:E$91) -> 0 | G78: =SUMIF(Calculations!$Q$73:$Q$91,$B78,Calculations!F$73:F$91) -> 0 | H78: =SUMIF(Calculations!$Q$73:$Q$91,$B78,Calculations!G$73:G$91) -> 0 | I78: =SUMIF(Calculations!$Q$73:$Q$91,$B78,Calculations!H$73:H$91) -> 0 | J78: =SUMIF(Calculations!$Q$73:$Q$91,$B78,Calculations!I$73:I$91) -> 0 | K78: =SUMIF(Calculations!$Q$73:$Q$91,$B78,Calculations!J$73:J$91) -> 0 | L78: =SUMIF(Calculations!$Q$73:$Q$91,$B78,Calculations!K$73:K$91) -> 0 | M78: =SUMIF(Calculations!$Q$73:$Q$91,$B78,Calculations!L$73:L$91) -> 0 | N78: =SUMIF(Calculations!$Q$73:$Q$91,$B78,Calculations!M$73:M$91) -> 0 | O78: =SUMIF(Calculations!$Q$73:$Q$91,$B78,Calculations!N$73:N$91) -> 0 | P78: 0
B79: =Inputs!$A$189 -> Minor Plant, Motor Vehicles & Mobile Plant | D79: =Inputs!$A$8 -> Real $2024 | E79: $Million | F79: =SUMIF(Calculations!$Q$73:$Q$91,$B79,Calculations!E$73:E$91) -> 0 | G79: =SUMIF(Calculations!$Q$73:$Q$91,$B79,Calculations!F$73:F$91) -> 0 | H79: =SUMIF(Calculations!$Q$73:$Q$91,$B79,Calculations!G$73:G$91) -> 0 | I79: =SUMIF(Calculations!$Q$73:$Q$91,$B79,Calculations!H$73:H$91) -> 0 | J79: =SUMIF(Calculations!$Q$73:$Q$91,$B79,Calculations!I$73:I$91) -> 0 | K79: =SUMIF(Calculations!$Q$73:$Q$91,$B79,Calculations!J$73:J$91) -> 0 | L79: =SUMIF(Calculations!$Q$73:$Q$91,$B79,Calculations!K$73:K$91) -> 0 | M79: =SUMIF(Calculations!$Q$73:$Q$91,$B79,Calculations!L$73:L$91) -> 0 | N79: =SUMIF(Calculations!$Q$73:$Q$91,$B79,Calculations!M$73:M$91) -> 0 | O79: =SUMIF(Calculations!$Q$73:$Q$91,$B79,Calculations!N$73:N$91) -> 0 | P79: 0
B80: =Inputs!$A$190 -> Transmission Line Life Extension | D80: =Inputs!$A$8 -> Real $2024 | E80: $Million | F80: =SUMIF(Calculations!$Q$73:$Q$91,$B80,Calculations!E$73:E$91) -> 0 | G80: =SUMIF(Calculations!$Q$73:$Q$91,$B80,Calculations!F$73:F$91) -> 0 | H80: =SUMIF(Calculations!$Q$73:$Q$91,$B80,Calculations!G$73:G$91) -> 0 | I80: =SUMIF(Calculations!$Q$73:$Q$91,$B80,Calculations!H$73:H$91) -> 0 | J80: =SUMIF(Calculations!$Q$73:$Q$91,$B80,Calculations!I$73:I$91) -> 0 | K80: =SUMIF(Calculations!$Q$73:$Q$91,$B80,Calculations!J$73:J$91) -> 0 | L80: =SUMIF(Calculations!$Q$73:$Q$91,$B80,Calculations!K$73:K$91) -> 0 | M80: =SUMIF(Calculations!$Q$73:$Q$91,$B80,Calculations!L$73:L$91) -> 0 | N80: =SUMIF(Calculations!$Q$73:$Q$91,$B80,Calculations!M$73:M$91) -> 0 | O80: =SUMIF(Calculations!$Q$73:$Q$91,$B80,Calculations!N$73:N$91) -> 0 | P80: 0
B81: =Inputs!$A$191 -> Land and Easements | D81: =Inputs!$A$8 -> Real $2024 | E81: $Million | F81: =SUMIF(Calculations!$Q$73:$Q$91,$B81,Calculations!E$73:E$91) -> 0 | G81: =SUMIF(Calculations!$Q$73:$Q$91,$B81,Calculations!F$73:F$91) -> 0 | H81: =SUMIF(Calculations!$Q$73:$Q$91,$B81,Calculations!G$73:G$91) -> 0 | I81: =SUMIF(Calculations!$Q$73:$Q$91,$B81,Calculations!H$73:H$91) -> 0 | J81: =SUMIF(Calculations!$Q$73:$Q$91,$B81,Calculations!I$73:I$91) -> 0 | K81: =SUMIF(Calculations!$Q$73:$Q$91,$B81,Calculations!J$73:J$91) -> 0 | L81: =SUMIF(Calculations!$Q$73:$Q$91,$B81,Calculations!K$73:K$91) -> 0 | M81: =SUMIF(Calculations!$Q$73:$Q$91,$B81,Calculations!L$73:L$91) -> 0 | N81: =SUMIF(Calculations!$Q$73:$Q$91,$B81,Calculations!M$73:M$91) -> 0 | O81: =SUMIF(Calculations!$Q$73:$Q$91,$B81,Calculations!N$73:N$91) -> 0 | P81: 0
B82: =Inputs!$A$192 -> Synchronous Condensers | D82: =Inputs!$A$8 -> Real $2024 | E82: $Million | F82: =SUMIF(Calculations!$Q$73:$Q$91,$B82,Calculations!E$73:E$91) -> 0 | G82: =SUMIF(Calculations!$Q$73:$Q$91,$B82,Calculations!F$73:F$91) -> 0 | H82: =SUMIF(Calculations!$Q$73:$Q$91,$B82,Calculations!G$73:G$91) -> 0 | I82: =SUMIF(Calculations!$Q$73:$Q$91,$B82,Calculations!H$73:H$91) -> 0 | J82: =SUMIF(Calculations!$Q$73:$Q$91,$B82,Calculations!I$73:I$91) -> 0 | K82: =SUMIF(Calculations!$Q$73:$Q$91,$B82,Calculations!J$73:J$91) -> 0 | L82: =SUMIF(Calculations!$Q$73:$Q$91,$B82,Calculations!K$73:K$91) -> 0 | M82: =SUMIF(Calculations!$Q$73:$Q$91,$B82,Calculations!L$73:L$91) -> 0 | N82: =SUMIF(Calculations!$Q$73:$Q$91,$B82,Calculations!M$73:M$91) -> 0 | O82: =SUMIF(Calculations!$Q$73:$Q$91,$B82,Calculations!N$73:N$91) -> 0 | P82: 0
B83: =Inputs!$A$193 -> Leasehold Land and Property | D83: =Inputs!$A$8 -> Real $2024 | E83: $Million | F83: =SUMIF(Calculations!$Q$73:$Q$91,$B83,Calculations!E$73:E$91) -> 0 | G83: =SUMIF(Calculations!$Q$73:$Q$91,$B83,Calculations!F$73:F$91) -> 0 | H83: =SUMIF(Calculations!$Q$73:$Q$91,$B83,Calculations!G$73:G$91) -> 0 | I83: =SUMIF(Calculations!$Q$73:$Q$91,$B83,Calculations!H$73:H$91) -> 0 | J83: =SUMIF(Calculations!$Q$73:$Q$91,$B83,Calculations!I$73:I$91) -> 0 | K83: =SUMIF(Calculations!$Q$73:$Q$91,$B83,Calculations!J$73:J$91) -> 0 | L83: =SUMIF(Calculations!$Q$73:$Q$91,$B83,Calculations!K$73:K$91) -> 0 | M83: =SUMIF(Calculations!$Q$73:$Q$91,$B83,Calculations!L$73:L$91) -> 0 | N83: =SUMIF(Calculations!$Q$73:$Q$91,$B83,Calculations!M$73:M$91) -> 0 | O83: =SUMIF(Calculations!$Q$73:$Q$91,$B83,Calculations!N$73:N$91) -> 0 | P83: =SUM(F83:O83) -> 0
B84: =Inputs!$A$194 -> Buildings - capital works | D84: =Inputs!$A$8 -> Real $2024 | E84: $Million | F84: =SUMIF(Calculations!$Q$73:$Q$91,$B84,Calculations!E$73:E$91) -> 0 | G84: =SUMIF(Calculations!$Q$73:$Q$91,$B84,Calculations!F$73:F$91) -> 0 | H84: =SUMIF(Calculations!$Q$73:$Q$91,$B84,Calculations!G$73:G$91) -> 0 | I84: =SUMIF(Calculations!$Q$73:$Q$91,$B84,Calculations!H$73:H$91) -> 0 | J84: =SUMIF(Calculations!$Q$73:$Q$91,$B84,Calculations!I$73:I$91) -> 0 | K84: =SUMIF(Calculations!$Q$73:$Q$91,$B84,Calculations!J$73:J$91) -> 0 | L84: =SUMIF(Calculations!$Q$73:$Q$91,$B84,Calculations!K$73:K$91) -> 0 | M84: =SUMIF(Calculations!$Q$73:$Q$91,$B84,Calculations!L$73:L$91) -> 0 | N84: =SUMIF(Calculations!$Q$73:$Q$91,$B84,Calculations!M$73:M$91) -> 0 | O84: =SUMIF(Calculations!$Q$73:$Q$91,$B84,Calculations!N$73:N$91) -> 0 | P84: =SUM(F84:O84) -> 0
B85: =Inputs!$A$195 -> In-house software | D85: =Inputs!$A$8 -> Real $2024 | E85: $Million | F85: =SUMIF(Calculations!$Q$73:$Q$91,$B85,Calculations!E$73:E$91) -> 0 | G85: =SUMIF(Calculations!$Q$73:$Q$91,$B85,Calculations!F$73:F$91) -> 0 | H85: =SUMIF(Calculations!$Q$73:$Q$91,$B85,Calculations!G$73:G$91) -> 0 | I85: =SUMIF(Calculations!$Q$73:$Q$91,$B85,Calculations!H$73:H$91) -> 0 | J85: =SUMIF(Calculations!$Q$73:$Q$91,$B85,Calculations!I$73:I$91) -> 0 | K85: =SUMIF(Calculations!$Q$73:$Q$91,$B85,Calculations!J$73:J$91) -> 0 | L85: =SUMIF(Calculations!$Q$73:$Q$91,$B85,Calculations!K$73:K$91) -> 0 | M85: =SUMIF(Calculations!$Q$73:$Q$91,$B85,Calculations!L$73:L$91) -> 0 | N85: =SUMIF(Calculations!$Q$73:$Q$91,$B85,Calculations!M$73:M$91) -> 0 | O85: =SUMIF(Calculations!$Q$73:$Q$91,$B85,Calculations!N$73:N$91) -> 0 | P85: =SUM(F85:O85) -> 0
B86: Total | D86: =Inputs!$A$8 -> Real $2024 | E86: $Million | F86: =SUM(F72:F85) -> 0 | G86: 0 | H86: 0 | I86: 11.43217962 | J86: 92.58219122 | K86: 131.2365937 | L86: 13.2668354 | M86: 0 | N86: 0 | O86: 0 | P86: 248.5178
A88: =IF(SUM(F88:O88)=0,0,1) -> 0 | B88: Check - As incurred | F88: =IF(ROUND(Calculations!E$92-F86,3)=0,0,1) -> 0 | G88: =IF(ROUND(Calculations!F$92-G86,3)=0,0,1) -> 0 | H88: =IF(ROUND(Calculations!G$92-H86,3)=0,0,1) -> 0 | I88: =IF(ROUND(Calculations!H$92-I86,3)=0,0,1) -> 0 | J88: =IF(ROUND(Calculations!I$92-J86,3)=0,0,1) -> 0 | K88: =IF(ROUND(Calculations!J$92-K86,3)=0,0,1) -> 0 | L88: =IF(ROUND(Calculations!K$92-L86,3)=0,0,1) -> 0 | M88: =IF(ROUND(Calculations!L$92-M86,3)=0,0,1) -> 0 | N88: =IF(ROUND(Calculations!M$92-N86,3)=0,0,1) -> 0 | O88: =IF(ROUND(Calculations!N$92-O86,3)=0,0,1) -> 0
A90: Indexation factors
B92: Indexation
B93: Factor | D93: Source | E93: Unit | F93: =Inputs!K$20 -> 2020 | G93: =F93+1 -> 2021 | H93: 2022 | I93: 2023 | J93: 2024 | K93: 2025 | L93: 2026 | M93: 2027 | N93: 2028 | O93: 2029
B94: =Inputs!A27 -> Real 2024 End Period to Nominal Mid Period | D94: Inputs | E94: Factor | F94: =Inputs!K27 -> 0.8252316 | G94: =Inputs!L27 -> 0.8394853586 | H94: =Inputs!M27 -> 0.8813687685 | I94: =Inputs!N27 -> 0.9362107257 | J94: =Inputs!O27 -> 0.9824718649 | K94: =Inputs!P27 -> 1.013655997 | L94: =Inputs!Q27 -> 1.041529995 | M94: =Inputs!R27 -> 1.070170486 | N94: =Inputs!S27 -> 1.099598547 | O94: =Inputs!T27 -> 1.129835835
A96: End

Sheet Outputs|Tables
A1: Outputs | Tables | F1: =Inputs!A8 -> Real $2024
B2: AER amendments
A3: Table 5-2: Total forecast capex for WSB ($M, Real 2023-24)
F5: Actuals | G5: Estimates | I5: Forecast | N5: Total
B6: Capex nature | D6: Dollar basis | E6: Units | F6: 2022-23 | G6: 2022-23 | H6: 2023-24 | I6: 2024-25 | J6: 2025-26 | K6: 2026-27 | L6: 2027-28 | M6: 2028-29 | N6: Next Period | O6: All years
B7: Augmentation- Transmission lines | D7: =Inputs!$A$8 -> Real $2024 | E7: $Million | F7: =F42 -> 0 | G7: =G42 -> 0 | H7: 21.69882489 | I7: 48.06252133 | J7: 0 | K7: 0 | L7: 0 | M7: 0 | N7: =SUM(I7:M7) -> 48.06252133 | O7: =SUM(F7:M7) -> 69.76134623
B8: Augmentation- Substations | D8: =Inputs!$A$8 -> Real $2024 | E8: $Million | F8: =F53 -> 0 | G8: =G53 -> 0 | H8: 34.44039948 | I8: 62.4856725 | J8: 11.49691026 | K8: 0 | L8: 0 | M8: 0 | N8: =SUM(I8:M8) -> 73.98258276 | O8: =SUM(F8:M8) -> 108.4229822
B9: SIPS control | C9: Includes future paired generation costs | D9: =Inputs!$A$8 -> Real $2024 | E9: $Million | F9: =F66 -> 0.8247603428 | G9: =G66 -> 1.069761912 | H9: 8.742309607 | I9: 2.451750617 | J9: 0 | K9: 0 | L9: 0 | M9: 0 | N9: =SUM(I9:M9) -> 2.451750617 | O9: =SUM(F9:M9) -> 13.08858248
B10: Labour and indirect costs | C10: Excludes the 'SIPS Control Implementation' category mapped to SIPS control | D10: =Inputs!$A$8 -> Real $2024 | E10: $Million | F10: =Inputs!N113+Inputs!N146-F61 -> 3.496100874 | G10: =Inputs!N114+Inputs!N147-G61 -> 6.041556492 | H10: =Inputs!O114+Inputs!O147-H61 -> 27.62193551 | I10: =Inputs!P114+Inputs!P147-I61 -> 18.01946585 | J10: =Inputs!Q114+Inputs!Q147-J61 -> 1.73740293 | K10: =Inputs!R114+Inputs!R147-K61 -> 0 | L10: =Inputs!S114+Inputs!S147-L61 -> 0 | M10: =Inputs!T114+Inputs!T147-M61 -> 0 | N10: =SUM(I10:M10) -> 19.75686878 | O10: =SUM(F10:M10) -> 56.91646166
B11: Real input costs | D11: =Inputs!$A$8 -> Real $2024 | E11: $Million | F11: =Inputs!N113*Inputs!N$22/INDEX(Inputs!$K$22:$T$22,MATCH(Inputs!$F$91,Years,0))-Inputs!N113 -> 0 | G11: =Inputs!N114*Inputs!N$22/INDEX(Inputs!$K$22:$T$22,MATCH(Inputs!$F$91,Years,0))-Inputs!N114 -> 0 | H11: =Inputs!O114*Inputs!O$22/INDEX(Inputs!$K$22:$T$22,MATCH(Inputs!$F$91,Years,0))-Inputs!O114 -> 0.07872172201 | I11: =Inputs!P114*Inputs!P$22/INDEX(Inputs!$K$22:$T$22,MATCH(Inputs!$F$91,Years,0))-Inputs!P114 -> 0.2171834171 | J11: =Inputs!Q114*Inputs!Q$22/INDEX(Inputs!$K$22:$T$22,MATCH(Inputs!$F$91,Years,0))-Inputs!Q114 -> 0.03252221359 | K11: =Inputs!R114*Inputs!R$22/INDEX(Inputs!$K$22:$T$22,MATCH(Inputs!$F$91,Years,0))-Inputs!R114 -> 0 | L11: =Inputs!S114*Inputs!S$22/INDEX(Inputs!$K$22:$T$22,MATCH(Inputs!$F$91,Years,0))-Inputs!S114 -> 0 | M11: =Inputs!T114*Inputs!T$22/INDEX(Inputs!$K$22:$T$22,MATCH(Inputs!$F$91,Years,0))-Inputs!T114 -> 0 | N11: =SUM(I11:M11) -> 0.2497056307 | O11: =SUM(F11:M11) -> 0.3284273527
B12: Total capex | D12: =Inputs!$A$8 -> Real $2024 | E12: $Million | F12: =SUM(F7:F11) -> 4.320861217 | G12: 7.111318404 | H12: 92.58219122 | I12: 131.2365937 | J12: 13.2668354 | K12: 0 | L12: 0 | M12: 0 | N12: 144.5034291 | O12: 248.5178
A14: =IF(SUM(F14:K14)=0,0,1) -> 0 | B14: Check - As incurred | G14: =IF(ROUND(F12+G12-'Outputs|Models'!I86,3)=0,0,1) -> 0 | H14: =IF(ROUND(H12-'Outputs|Models'!J86,3)=0,0,1) -> 0 | I14: =IF(ROUND(I12-'Outputs|Models'!K86,3)=0,0,1) -> 0 | J14: =IF(ROUND(J12-'Outputs|Models'!L86,3)=0,0,1) -> 0 | K14: =IF(ROUND(K12-'Outputs|Models'!M86,3)=0,0,1) -> 0 | L14: =IF(ROUND(L12-'Outputs|Models'!N86,3)=0,0,1) -> 0 | M14: =IF(ROUND(M12-'Outputs|Models'!O86,3)=0,0,1) -> 0
A16: Table 5-4: Total forecast capex for WSB by category ($M, Real 2023-24)
B18: Capex nature | C18: Forecasting method | D18: Capex $M | E18: % of total capex
A19: =IF(ROUND(SUM(D19:D21)-O7,3)=0,0,1) -> 0 | B19: Augmentation- Transmission lines | C19: Competitive ECI Design & Construct contract | D19: =O39 -> 68.25287561 | E19: =IF($D$33=0,0,D19/$D$33) -> 0.2746397869
C20: Rates from our procurement panels for key equipment | D20: =O40 -> 1.426669087 | E20: =IF($D$33=0,0,D20/$D$33) -> 0.005740711883
C21: Other construction costs | D21: =O41 -> 0.081801524 | E21: =IF($D$33=0,0,D21/$D$33) -> 0.0003291576057
A22: =IF(ROUND(SUM(D22:D24)-O8,3)=0,0,1) -> 0 | B22: Augmentation- Substations | C22: ECI Design & Construct contract | D22: =O50 -> 97.69459255 | E22: =IF($D$33=0,0,D22/$D$33) -> 0.3931090351
C23: Rates from our procurement panels for key equipment | D23: =O51 -> 9.627836527 | E23: =IF($D$33=0,0,D23/$D$33) -> 0.03874103396
C24: Other construction costs | D24: =O52 -> 1.10055316 | E24: 0.004428468143
A25: =IF(ROUND(SUM(D25:D29)-O9,3)=0,0,1) -> 0 | B25: SIPS control | C25: Forecast capex internal bottom-up build | D25: =O61 -> 8.048356035 | E25: 0.03238543089
C26: Quotation from our communications service provider for new fibre optic link | D26: =O63 -> 1.2629617 | E26: 0.005081976825
C27: Rates from our procurement panels for key equipment | D27: =O62 -> 2.508164744 | E27: 0.01009249536
C28: Future paired generation | D28: =O64 -> 0 | E28: 0
C29: Other construction costs | D29: =O65 -> 1.2691 | E29: 0.005106676464
A30: =IF(ROUND(SUM(D30:D31)-O10,3)=0,0,1) -> 0 | B30: Labour and indirect costs | C30: Actual capex reflects records in Ellipse. | D30: =F76 -> 3.496100874 | E30: 0.01406780872
C31: Forecast capex internal bottom-up build. | D31: =O76-D30-D32 -> 53.42036079 | E31: 0.2149558736
A32: =IF(ROUND(D32-O11,3)=0,0,1) -> 0 | B32: Real input costs | C32: Internal bottom-up build using AER’s forecast real labour cost escalators | D32: =O11 -> 0.3284273527 | E32: =IF($D$33=0,0,D32/$D$33) -> 0.001321544585
B33: Total capex | C33: =SUM(C19:C32) -> 0 | D33: =SUM(D19:D32) -> 248.5178 | E33: =SUM(E19:E32) -> 1
A35: Table 5-7: Summary of transmission line capex
F37: Actuals | G37: Estimates | I37: Forecast | N37: Total
B38: Transmission line capex | D38: Dollar basis | E38: Units | F38: 2022-23 | G38: 2022-23 | H38: 2023-24 | I38: 2024-25 | J38: 2025-26 | K38: 2026-27 | L38: 2027-28 | M38: 2028-29 | N38: Next Period | O38: All years | S38: =G38 -> 2022-23 | T38: =H38 -> 2023-24 | U38: 2024-25 | V38: 2025-26 | W38: 2026-27 | X38: 2027-28 | Y38: 2028-29 | Z38: Total
B39: Design & Construction | D39: =Inputs!$A$8 -> Real $2024 | E39: $Million | G39: =(SUM(Calculations!H$7:H$10)-G$41)*IF(SUM(S$39:S$40)=0,0,S39/SUM(S$39:S$40)) -> 0 | H39: =(SUM(Calculations!I$7:I$10)-H$41)*IF(SUM(T$39:T$40)=0,0,T39/SUM(T$39:T$40)) -> 20.55748578 | I39: =(SUM(Calculations!J$7:J$10)-I$41)*IF(SUM(U$39:U$40)=0,0,U39/SUM(U$39:U$40)) -> 47.69538984 | J39: =(SUM(Calculations!K$7:K$10)-J$41)*IF(SUM(V$39:V$40)=0,0,V39/SUM(V$39:V$40)) -> 0 | K39: =(SUM(Calculations!L$7:L$10)-K$41)*IF(SUM(W$39:W$40)=0,0,W39/SUM(W$39:W$40)) -> 0 | N39: =SUM(I39:M39) -> 47.69538984 | O39: =SUM(F39:M39) -> 68.25287561 | R39: Augmentation - Contractor | S39: 0 | T39: 20.634027 | U39: 47.87378 | V39: 0 | W39: 0 | X39: 0 | Y39: 0 | Z39: =SUM(S39:Y39) -> 68.507807
B40: HV Equipment | D40: =Inputs!$A$8 -> Real $2024 | E40: $Million | G40: =(SUM(Calculations!H$7:H$10)-G41)*IF(SUM(S$39:S$40)=0,0,S40/SUM(S$39:S$40)) -> 0 | H40: =(SUM(Calculations!I$7:I$10)-H41)*IF(SUM(T$39:T$40)=0,0,T40/SUM(T$39:T$40)) -> 1.141339118 | I40: =(SUM(Calculations!J$7:J$10)-I41)*IF(SUM(U$39:U$40)=0,0,U40/SUM(U$39:U$40)) -> 0.2853299697 | J40: =(SUM(Calculations!K$7:K$10)-J41)*IF(SUM(V$39:V$40)=0,0,V40/SUM(V$39:V$40)) -> 0 | K40: =(SUM(Calculations!L$7:L$10)-K41)*IF(SUM(W$39:W$40)=0,0,W40/SUM(W$39:W$40)) -> 0 | N40: =SUM(I40:M40) -> 0.2853299697 | O40: =SUM(F40:M40) -> 1.426669087 | R40: Augmentation - Equipment | S40: 0 | T40: 1.14558864 | U40: 0.28639716 | V40: 0 | W40: 0 | X40: 0 | Y40: 0 | Z40: =SUM(S40:Y40) -> 1.4319858
B41: Other construction costs | D41: =Inputs!$A$8 -> Real $2024 | E41: $Million | G41: =Inputs!Z54+Inputs!Z55 -> 0 | H41: =Inputs!AA54+Inputs!AA55 -> 0 | I41: =Inputs!AB54+Inputs!AB55 -> 0.081801524 | J41: =Inputs!AC54+Inputs!AC55 -> 0 | K41: =Inputs!AD54+Inputs!AD55 -> 0 | N41: =SUM(I41:M41) -> 0.081801524 | O41: =SUM(F41:M41) -> 0.081801524 | R41: Total | S41: =SUM(S39:S40) -> 0 | T41: 21.77961564 | U41: 48.16017716 | V41: 0 | W41: 0 | X41: 0 | Y41: 0 | Z41: 69.9397928 | AA41: 0
B42: ="Total "&B38 -> Total Transmission line capex | D42: =Inputs!$A$8 -> Real $2024 | E42: $Million | F42: =SUM(F39:F41) -> 0 | G42: =SUM(G39:G41) -> 0 | H42: 21.69882489 | I42: 48.06252133 | J42: 0 | K42: 0 | L42: 0 | M42: 0 | N42: 48.06252133 | O42: 69.76134623
A44: =IF(SUM(F44:K44)=0,0,1) -> 0 | B44: Check - Reconciliation | G44: =IF(ROUND(G42-SUM(Calculations!H7:H10),3)=0,0,1) -> 0 | H44: =IF(ROUND(H42-SUM(Calculations!I7:I10),3)=0,0,1) -> 0 | I44: =IF(ROUND(I42-SUM(Calculations!J7:J10),3)=0,0,1) -> 0 | J44: =IF(ROUND(J42-SUM(Calculations!K7:K10),3)=0,0,1) -> 0 | K44: =IF(ROUND(K42-SUM(Calculations!L7:L10),3)=0,0,1) -> 0
A46: Table 5-10: Summary of substations capex
F48: Actuals | G48: Estimates | I48: Forecast | N48: Total
B49: Substation capex | D49: Dollar basis | E49: Units | F49: 2022-23 | G49: 2022-23 | H49: 2023-24 | I49: 2024-25 | J49: 2025-26 | K49: 2026-27 | L49: 2027-28 | M49: 2028-29 | N49: Next Period | O49: All years | S49: =G49 -> 2022-23 | T49: 2023-24 | U49: 2024-25 | V49: 2025-26 | W49: 2026-27 | X49: 2027-28 | Y49: 2028-29 | Z49: Total
B50: Design & Construction | D50: =Inputs!$A$8 -> Real $2024 | E50: $Million | G50: =(SUM(Calculations!H$12:H$14)-G$52)*IF(SUM(S$50:S$51)=0,0,S50/SUM(S$50:S$51)) -> 0 | H50: =(SUM(Calculations!I$12:I$14)-H$52)*IF(SUM(T$50:T$51)=0,0,T50/SUM(T$50:T$51)) -> 26.73813026 | I50: =(SUM(Calculations!J$12:J$14)-I$52)*IF(SUM(U$50:U$51)=0,0,U50/SUM(U$50:U$51)) -> 60.0421052 | J50: =(SUM(Calculations!K$12:K$14)-J$52)*IF(SUM(V$50:V$51)=0,0,V50/SUM(V$50:V$51)) -> 10.9143571 | K50: =(SUM(Calculations!L$12:L$14)-K$52)*IF(SUM(W$50:W$51)=0,0,W50/SUM(W$50:W$51)) -> 0 | N50: =SUM(I50:M50) -> 70.95646229 | O50: =SUM(F50:M50) -> 97.69459255 | R50: Augmentation - Contractor | S50: 0 | T50: 26.902465 | U50: 60.4111289 | V50: 10.98143763 | W50: 0 | X50: 0 | Y50: 0 | Z50: =SUM(S50:Y50) -> 98.29503153
B51: HV Equipment | D51: =Inputs!$A$8 -> Real $2024 | E51: $Million | G51: =(SUM(Calculations!H$12:H$14)-G$52)*IF(SUM(S$50:S$51)=0,0,S51/SUM(S$50:S$51)) -> 0 | H51: =(SUM(Calculations!I$12:I$14)-H$52)*IF(SUM(T$50:T$51)=0,0,T51/SUM(T$50:T$51)) -> 7.702269222 | I51: =(SUM(Calculations!J$12:J$14)-I$52)*IF(SUM(U$50:U$51)=0,0,U51/SUM(U$50:U$51)) -> 1.925567305 | J51: =(SUM(Calculations!K$12:K$14)-J$52)*IF(SUM(V$50:V$51)=0,0,V51/SUM(V$50:V$51)) -> 0 | K51: =(SUM(Calculations!L$12:L$14)-K$52)*IF(SUM(W$50:W$51)=0,0,W51/SUM(W$50:W$51)) -> 0 | N51: =SUM(I51:M51) -> 1.925567305 | O51: =SUM(F51:M51) -> 9.627836527 | R51: Augmentation - Equipment | S51: 0 | T51: 7.749608 | U51: 1.937402 | V51: 0 | W51: 0 | X51: 0 | Y51: 0 | Z51: =SUM(S51:Y51) -> 9.68701
B52: Other construction costs | D52: =Inputs!$A$8 -> Real $2024 | E52: $Million | G52: =Inputs!Z56 -> 0 | H52: =Inputs!AA56 -> 0 | I52: =Inputs!AB56 -> 0.518 | J52: =Inputs!AC56 -> 0.58255316 | K52: =Inputs!AD56 -> 0 | N52: =SUM(I52:M52) -> 1.10055316 | O52: =SUM(F52:M52) -> 1.10055316
B53: ="Total "&B49 -> Total Substation capex | D53: =Inputs!$A$8 -> Real $2024 | E53: $Million | F53: =SUM(F50:F52) -> 0 | G53: =SUM(G50:G52) -> 0 | H53: 34.44039948 | I53: 62.4856725 | J53: 11.49691026 | K53: 0 | L53: 0 | M53: 0 | N53: 73.98258276 | O53: 108.4229822 | S53: =SUM(S50:S51) -> 0 | T53: 34.652073 | U53: 62.3485309 | V53: 10.98143763 | W53: 0 | X53: 0 | Y53: 0 | Z53: =SUM(Z50:Z51) -> 107.9820415 | AA53: 0
A55: =IF(SUM(F55:K55)=0,0,1) -> 0 | B55: Check - Reconciliation | G55: =IF(ROUND(G53-SUM(Calculations!H12:H14),3)=0,0,1) -> 0 | H55: =IF(ROUND(H53-SUM(Calculations!I12:I14),3)=0,0,1) -> 0 | I55: =IF(ROUND(I53-SUM(Calculations!J12:J14),3)=0,0,1) -> 0 | J55: =IF(ROUND(J53-SUM(Calculations!K12:K14),3)=0,0,1) -> 0 | K55: =IF(ROUND(K53-SUM(Calculations!L12:L14),3)=0,0,1) -> 0
A57: Table 5-11: Summary of SIPS control capex
F59: Actuals | G59: Estimates | I59: Forecast | N59: Total | S59: =G60 -> 2022-23 | T59: 2023-24 | U59: 2024-25 | V59: 2025-26 | W59: 2026-27 | X59: 2027-28 | Y59: 2028-29 | Z59: Total
B60: SIPS Control Capex | D60: Dollar basis | E60: Units | F60: 2022-23 | G60: 2022-23 | H60: 2023-24 | I60: 2024-25 | J60: 2025-26 | K60: 2026-27 | L60: 2027-28 | M60: 2028-29 | N60: Next Period | O60: All years | R60: SIPS - Contractor | S60: c-i-c | T60: c-i-c | U60: c-i-c | V60: c-i-c | W60: c-i-c | X60: c-i-c | Y60: c-i-c | Z60: c-i-c
B61: Design, Installation and Commissioning | C61: Labour and Indirect costs for 'SIPS Control Implementation' | D61: =Inputs!$A$8 -> Real $2024 | E61: $Million | F61: 0.8247603428 | G61: 0.5037247197 | H61: 5.601452355 | I61: 1.118418617 | J61: 0 | K61: 0 | N61: =SUM(I61:M61) -> 1.118418617 | O61: =SUM(F61:M61) -> 8.048356035 | R61: SIPS - Equipment | S61: c-i-c | T61: c-i-c | U61: c-i-c | V61: c-i-c | W61: c-i-c | X61: c-i-c | Y61: c-i-c | Z61: c-i-c
B62: Equipment | C62: SIPS equipment costs | D62: =Inputs!$A$8 -> Real $2024 | E62: $Million | G62: 0.5660371926 | H62: 1.877895551 | I62: 0.064232 | J62: 0 | K62: 0 | N62: =SUM(I62:M62) -> 0.064232 | O62: =SUM(F62:M62) -> 2.508164744 | R62: Total | S62: c-i-c | T62: c-i-c | U62: c-i-c | V62: c-i-c | W62: c-i-c | X62: c-i-c | Y62: c-i-c | Z62: c-i-c | AA62: 0
B63: Communications link | C63: SIPS contractor costs | D63: =Inputs!$A$8 -> Real $2024 | E63: $Million | G63: 0 | H63: 1.2629617 | I63: 0 | J63: 0 | K63: 0 | N63: =SUM(I63:M63) -> 0 | O63: =SUM(F63:M63) -> 1.2629617
B64: Future paired generation costs | C64: SIPS FPG contractor and equipment costs | D64: =Inputs!$A$8 -> Real $2024 | E64: $Million | G64: 0 | H64: 0 | I64: 0 | J64: 0 | K64: 0 | N64: =SUM(I64:M64) -> 0 | O64: =SUM(F64:M64) -> 0 | R64: SIPS FPG - Contractor | S64: c-i-c | T64: c-i-c | U64: c-i-c | V64: c-i-c | W64: c-i-c | X64: c-i-c | Y64: c-i-c | Z64: c-i-c
B65: Other construction costs | D65: =Inputs!$A$8 -> Real $2024 | E65: $Million | G65: 0 | H65: 0 | I65: 1.2691 | J65: 0 | K65: 0 | N65: =SUM(I65:M65) -> 1.2691 | O65: =SUM(F65:M65) -> 1.2691 | R65: SIPS FPG - Equipment | S65: c-i-c | T65: c-i-c | U65: c-i-c | V65: c-i-c | W65: c-i-c | X65: c-i-c | Y65: c-i-c | Z65: c-i-c
B66: ="Total "&B60 -> Total SIPS Control Capex | D66: =Inputs!$A$8 -> Real $2024 | E66: $Million | F66: =SUM(F61:F65) -> 0.8247603428 | G66: =SUM(G61:G65) -> 1.069761912 | H66: 8.742309607 | I66: 2.451750617 | J66: 0 | K66: 0 | L66: 0 | M66: 0 | N66: 2.451750617 | O66: 13.08858248 | R66: Total | S66: c-i-c | T66: c-i-c | U66: c-i-c | V66: c-i-c | W66: c-i-c | X66: c-i-c | Y66: c-i-c | Z66: c-i-c | AA66: 0
A68: =IF(SUM(F68:K68)=0,0,1) -> 0 | B68: Check - Reconciliation | F68: =IF(ROUND(F66-F$9,3)=0,0,1) -> 0 | G68: 0 | H68: 0 | I68: =IF(ROUND(I66-Calculations!J$83,3)=0,0,1) -> 0 | J68: 0 | K68: 0
A70: Table 5-12: Summary of indirect and labour capex
F72: Actuals | G72: Estimates | I72: Forecast | N72: Total
B73: Indirect and labour capex | D73: Dollar basis | E73: Units | F73: 2022-23 | G73: 2022-23 | H73: 2023-24 | I73: 2024-25 | J73: 2025-26 | K73: 2026-27 | L73: 2027-28 | M73: 2028-29 | N73: Next Period | O73: All years
B74: Labour (internal & outsourced, direct) | D74: =Inputs!$A$8 -> Real $2024 | E74: $Million | F74: 1.178238952 | G74: 2.92768066 | H74: 14.63825472 | I74: 11.85010873 | J74: 1.162735119 | K74: 0 | N74: =SUM(I74:M74) -> 13.01284385 | O74: =SUM(F74:M74) -> 31.75701818
B75: Indirect capex | D75: =Inputs!$A$8 -> Real $2024 | E75: $Million | F75: 2.317861921 | G75: 3.113875832 | H75: 13.06240252 | I75: 6.386540536 | J75: 0.6071900249 | K75: 0 | N75: =SUM(I75:M75) -> 6.993730561 | O75: =SUM(F75:M75) -> 25.48787083
B76: ="Total "&B73 -> Total Indirect and labour capex | D76: =Inputs!$A$8 -> Real $2024 | E76: $Million | F76: =SUM(F74:F75) -> 3.496100874 | G76: 6.041556492 | H76: 27.70065724 | I76: 18.23664927 | J76: 1.769925144 | K76: 0 | L76: 0 | M76: 0 | N76: 20.00657441 | O76: 57.24488901 | Q76: Note: Excludes the 'SIPS Control Implementation' category mapped to SIPS control
A78: =IF(SUM(F78:K78)=0,0,1) -> 0 | B78: Check - Reconciliation | F78: =IF(ROUND(F76-F$10-F$11,3)=0,0,1) -> 0 | G78: 0 | H78: 0 | I78: 0 | J78: 0 | K78: 0
A80: Table 5 13: Capex forecast for future paired generator rounds ($Million, Real 2022-24)
B82: Task | C82: Frequency | D82: Qty | E82: Unit Rate (Real 2024) | F82: Total | H82: Unit Rate (Real 2023)
B83: Project Management | C83: Per PG Tender Round | D83: c-i-c | E83: c-i-c | F83: c-i-c | H83: c-i-c
B84: Technical Specification | D84: c-i-c | E84: c-i-c | F84: c-i-c | H84: c-i-c
B85: Commercial | D85: c-i-c | E85: c-i-c | F85: c-i-c | H85: c-i-c
B86: Design & Development | C86: Per Standard Site | D86: c-i-c | E86: c-i-c | F86: c-i-c | H86: c-i-c
B87: Delivery | D87: c-i-c | E87: c-i-c | F87: c-i-c | H87: c-i-c | J87: Note: Deliver includes delivery and equipment categories
B88: Design & Development | C88: Per Complex Site | D88: c-i-c | E88: c-i-c | F88: c-i-c | H88: c-i-c
B89: Delivery | D89: c-i-c | E89: c-i-c | F89: c-i-c | H89: c-i-c | J89: Note: Deliver includes delivery and equipment categories
B90: Scheme Testing and Commissioning | C90: Per PG Tender Round | D90: c-i-c | E90: c-i-c | F90: c-i-c | H90: c-i-c
B91: Total | F91: 0
A93: =IF(SUM(F93:K93)=0,0,1) -> 0 | B93: Check - Reconciliation | F93: =IF(ROUND(F91-O99,3)=0,0,1) -> 0
A95: Table 5-14: Forecast capex for future paired generation ($M, Real 2023-24)
F97: Actuals | G97: Estimates | I97: Forecast | N97: Total
B98: Future paired generation | D98: Dollar basis | E98: Units | F98: 2022-23 | G98: 2022-23 | H98: 2023-24 | I98: 2024-25 | J98: 2025-26 | K98: 2026-27 | L98: 2027-28 | M98: 2028-29 | N98: Next Period | O98: All years
B99: ="Total "&B98 -> Total Future paired generation | D99: =Inputs!$A$8 -> Real $2024 | E99: $Million | F99: 0 | G99: =Inputs!Z50+Inputs!Z51 -> 0 | H99: =Inputs!AA50+Inputs!AA51 -> 0 | I99: =Inputs!AB50+Inputs!AB51 -> 0 | J99: =Inputs!AC50+Inputs!AC51 -> 0 | K99: =Inputs!AD50+Inputs!AD51 -> 0 | N99: =SUM(I99:M99) -> 0 | O99: =SUM(F99:M99) -> 0
A101: End

Sheet Outputs|RIN
A1: Outputs | RIN
A3: 4. Expenditure summary
B5: 4.1 Capital costs (real $m, Jun 2024)
C6: Total | D6: 2022-23 | E6: 2023-24 | F6: 2024-25 | G6: 2025-26 | H6: 2026-27 | I6: 2027-28 | J6: 2028-29
B8: Development and construction capital costs (as determined under the TET)
B9: Capital expenditure | C9: =SUM(D9:J9) -> 231.6501913 | D9: =Calculations!H92-D13 -> 9.323631334 | E9: =Calculations!I92-E13 -> 83.77236945 | F9: =Calculations!J92-F13 -> 125.771732 | G9: =Calculations!K92-G13 -> 12.78245844 | H9: =Calculations!L92-H13 -> 0 | I9: =Calculations!M92-I13 -> 0 | J9: =Calculations!N92-J13 -> 0 | K9: Note: TransGrid is defining this network expenditure excluding support costs
B10: Asset disposals | C10: =SUM(D10:J10) -> 0 | K10: Note: No asset disposals for this project
B11: Depreciation | C11: =SUM(D11:J11) -> 0 | K11: Note: Depreciation is calculated in the PTRM i.e. this row will be calculated elsewhere
B12: Other capital costs
B13: =B9 -> Capital expenditure | C13: =SUM(D13:J13) -> 16.86760869 | D13: =D84+D90 -> 2.108548287 | E13: =E84+E90 -> 8.809821762 | F13: 5.464861686 | G13: 0.4843769594 | H13: 0 | I13: 0 | J13: 0 | K13: Note: This category includes network and non network support costs and labour related 'IT Hardware expenses'
B14: =B10 -> Asset disposals | C14: =SUM(D14:J14) -> 0
B15: =B11 -> Depreciation | C15: =SUM(D15:J15) -> 0
B16: Total capital costs
B17: =B9 -> Capital expenditure | C17: =C9+C13 -> 248.5178 | D17: 11.43217962 | E17: 92.58219122 | F17: 131.2365937 | G17: 13.2668354 | H17: 0 | I17: 0 | J17: 0
B18: =B10 -> Asset disposals | C18: 0 | D18: 0 | E18: 0 | F18: 0 | G18: 0 | H18: 0 | I18: 0 | J18: 0
B19: =B11 -> Depreciation | C19: 0 | D19: 0 | E19: 0 | F19: 0 | G19: 0 | H19: 0 | I19: 0 | J19: 0
A22: =IF(SUM(D22:J22)=0,0,1) -> 0 | B22: Check - Calculations | D22: =IF(ROUND(D17-Calculations!H92,3)=0,0,1) -> 0 | E22: =IF(ROUND(E17-Calculations!I92,3)=0,0,1) -> 0 | F22: =IF(ROUND(F17-Calculations!J92,3)=0,0,1) -> 0 | G22: =IF(ROUND(G17-Calculations!K92,3)=0,0,1) -> 0 | H22: =IF(ROUND(H17-Calculations!L92,3)=0,0,1) -> 0 | I22: =IF(ROUND(I17-Calculations!M92,3)=0,0,1) -> 0 | J22: =IF(ROUND(J17-Calculations!N92,3)=0,0,1) -> 0
B24: 4.2 Capital direct and indirect costs (real $, Jun 2024)
C25: Total | D25: 2022-23 | E25: 2023-24 | F25: 2024-25 | G25: 2025-26 | H25: 2026-27 | I25: 2027-28 | J25: 2028-29
B27: Capital direct costs | C27: =SUM(D27:J27) -> 205647861.8 | D27: =Calculations!H92*10^6-D28 -> 3377434.908 | E27: =Calculations!I92*10^6-E28 -> 70709966.94 | F27: =Calculations!J92*10^6-F28 -> 119385191.5 | G27: =Calculations!K92*10^6-G28 -> 12175268.42 | H27: =Calculations!L92*10^6-H28 -> 0 | I27: =Calculations!M92*10^6-I28 -> 0 | J27: =Calculations!N92*10^6-J28 -> 0 | K27: Note: Total capex excluding indirect non labour costs, non network expenditure and network support costs
B28: Capital indirect costs | C28: =SUM(D28:J28) -> 42869938.2 | D28: =(Calculations!H70+D84+D90)*10^6 -> 8054744.712 | E28: =(Calculations!I70+E84+E90)*10^6 -> 21872224.28 | F28: =(Calculations!J70+F84+F90)*10^6 -> 11851402.22 | G28: =(Calculations!K70+G84+G90)*10^6 -> 1091566.984 | H28: =(Calculations!L70+H84+H90)*10^6 -> 0 | I28: =(Calculations!M70+I84+I90)*10^6 -> 0 | J28: =(Calculations!N70+J84+J90)*10^6 -> 0 | K28: Note: This category includes indirect non labour costs plus non network expenditure plus network support costs
B30: Total capital costs | C30: =SUM(C27:C28) -> 248517800 | D30: =SUM(D27:D28) -> 11432179.62 | E30: 92582191.22 | F30: 131236593.7 | G30: 13266835.4 | H30: 0 | I30: 0 | J30: 0
A33: =IF(SUM(D33:J33)=0,0,1) -> 0 | B33: Check - 4.1 Reconciliation | D33: =IF(ROUND(D30-D$17*10^6,3)=0,0,1) -> 0 | E33: =IF(ROUND(E30-E$17*10^6,3)=0,0,1) -> 0 | F33: 0 | G33: 0 | H33: 0 | I33: 0 | J33: 0
B35: 4.3 Total capital costs broken down by cost component (real $m, Jun 2024)
C36: Total | D36: 2022-23 | E36: 2023-24 | F36: 2024-25 | G36: 2025-26 | H36: 2026-27 | I36: 2027-28 | J36: 2028-29
B37: Cost component
B38: Transmission lines and substations | C38: =SUM(D38:J38) -> 235.4292175 | D38: ='Outputs|Models'!I72+'Outputs|Models'!I74 -> 9.537657366 | E38: ='Outputs|Models'!J72+'Outputs|Models'!J74 -> 83.83988161 | F38: ='Outputs|Models'!K72+'Outputs|Models'!K74 -> 128.7848431 | G38: ='Outputs|Models'!L72+'Outputs|Models'!L74 -> 13.2668354 | H38: ='Outputs|Models'!M72+'Outputs|Models'!M74 -> 0 | I38: ='Outputs|Models'!N72+'Outputs|Models'!N74 -> 0 | J38: ='Outputs|Models'!O72+'Outputs|Models'!O74 -> 0 | K38: Note: Transmission line and Substation RAB asset classes
B39: SIPS control | C39: =SUM(D39:J39) -> 13.08858248 | D39: ='Outputs|Models'!I77 -> 1.894522255 | E39: ='Outputs|Models'!J77 -> 8.742309607 | F39: ='Outputs|Models'!K77 -> 2.451750617 | G39: ='Outputs|Models'!L77 -> 0 | H39: ='Outputs|Models'!M77 -> 0 | I39: ='Outputs|Models'!N77 -> 0 | J39: ='Outputs|Models'!O77 -> 0 | K39: Note: 'SIPS control' RAB asset class
B40: Other | C40: =SUM(D40:J40) -> 0 | D40: ='Outputs|Models'!I86-SUM(D38:D39) -> 0 | E40: ='Outputs|Models'!J86-SUM(E38:E39) -> 0 | F40: ='Outputs|Models'!K86-SUM(F38:F39) -> 0 | G40: ='Outputs|Models'!L86-SUM(G38:G39) -> 0 | H40: ='Outputs|Models'!M86-SUM(H38:H39) -> 0 | I40: ='Outputs|Models'!N86-SUM(I38:I39) -> 0 | J40: ='Outputs|Models'!O86-SUM(J38:J39) -> 0 | K40: Note: Total capex less items above
B42: Total | C42: =SUM(C38:C40) -> 248.5178 | D42: =SUM(D38:D40) -> 11.43217962 | E42: 92.58219122 | F42: 131.2365937 | G42: 13.2668354 | H42: 0 | I42: 0 | J42: 0
A45: 5. Network capital costs
B47: 5.1 Network capital costs (real $m, Jun 2024) | P47: Network capital costs - Including support costs (real $m, Jun 2024)
C48: =C$6 -> Total | D48: 2022-23 | E48: 2023-24 | F48: =F$6 -> 2024-25 | G48: =G$6 -> 2025-26 | H48: =H$6 -> 2026-27 | I48: =I$6 -> 2027-28 | J48: =J$6 -> 2028-29 | P48: =D48 -> 2022-23 | Q48: 2023-24 | R48: 2024-25 | S48: 2025-26 | T48: 2026-27 | U48: 2027-28 | V48: 2028-29
B49: Asset category
B50: =Inputs!A199 -> Transmission Towers | C50: =SUM(D50:J50) -> 8.200666841 | D50: =IF(P$60=0,0, (D$17-(D$84+D$90))*(P50/P$60)) -> 0.2884936968 | E50: =IF(Q$60=0,0, (E$17-(E$84+E$90))*(Q50/Q$60)) -> 3.072403124 | F50: =IF(R$60=0,0, (F$17-(F$84+F$90))*(R50/R$60)) -> 4.83977002 | G50: =IF(S$60=0,0, (G$17-(G$84+G$90))*(S50/S$60)) -> 0 | H50: =IF(T$60=0,0, (H$17-(H$84+H$90))*(T50/T$60)) -> 0 | I50: =IF(U$60=0,0, (I$17-(I$84+I$90))*(U50/U$60)) -> 0 | J50: =IF(V$60=0,0, (J$17-(J$84+J$90))*(V50/V$60)) -> 0 | P50: =SUMIF(Calculations!$R$73:$R$91,$B50,Calculations!H$73:H$91) -> 0.3537368267 | Q50: =SUMIF(Calculations!$R$73:$R$91,$B50,Calculations!I$73:I$91) -> 3.395508751 | R50: =SUMIF(Calculations!$R$73:$R$91,$B50,Calculations!J$73:J$91) -> 5.050061103 | S50: =SUMIF(Calculations!$R$73:$R$91,$B50,Calculations!K$73:K$91) -> 0 | T50: =SUMIF(Calculations!$R$73:$R$91,$B50,Calculations!L$73:L$91) -> 0 | U50: =SUMIF(Calculations!$R$73:$R$91,$B50,Calculations!M$73:M$91) -> 0 | V50: =SUMIF(Calculations!$R$73:$R$91,$B50,Calculations!N$73:N$91) -> 0
B51: =Inputs!A200 -> Transmission tower support structures | C51: =SUM(D51:J51) -> 77.82637795 | D51: =IF(P$60=0,0, (D$17-(D$84+D$90))*(P51/P$60)) -> 2.756897711 | E51: 26.2496116 | F51: 48.81986864 | G51: 0 | H51: 0 | I51: 0 | J51: 0 | P51: =SUMIF(Calculations!$R$73:$R$91,$B51,Calculations!H$73:H$91) -> 3.380372808 | Q51: =SUMIF(Calculations!$R$73:$R$91,$B51,Calculations!I$73:I$91) -> 29.01012083 | R51: =SUMIF(Calculations!$R$73:$R$91,$B51,Calculations!J$73:J$91) -> 50.94112296 | S51: =SUMIF(Calculations!$R$73:$R$91,$B51,Calculations!K$73:K$91) -> 0 | T51: =SUMIF(Calculations!$R$73:$R$91,$B51,Calculations!L$73:L$91) -> 0 | U51: =SUMIF(Calculations!$R$73:$R$91,$B51,Calculations!M$73:M$91) -> 0 | V51: =SUMIF(Calculations!$R$73:$R$91,$B51,Calculations!N$73:N$91) -> 0
B52: =Inputs!A201 -> Conductors | C52: 0 | D52: 0 | E52: 0 | F52: 0 | G52: 0 | H52: 0 | I52: 0 | J52: 0 | P52: =SUMIF(Calculations!$R$73:$R$91,$B52,Calculations!H$73:H$91) -> 0 | Q52: =SUMIF(Calculations!$R$73:$R$91,$B52,Calculations!I$73:I$91) -> 0 | R52: =SUMIF(Calculations!$R$73:$R$91,$B52,Calculations!J$73:J$91) -> 0 | S52: =SUMIF(Calculations!$R$73:$R$91,$B52,Calculations!K$73:K$91) -> 0 | T52: =SUMIF(Calculations!$R$73:$R$91,$B52,Calculations!L$73:L$91) -> 0 | U52: =SUMIF(Calculations!$R$73:$R$91,$B52,Calculations!M$73:M$91) -> 0 | V52: =SUMIF(Calculations!$R$73:$R$91,$B52,Calculations!N$73:N$91) -> 0
B53: =Inputs!A202 -> Transmission cables | C53: 0 | D53: 0 | E53: 0 | F53: 0 | G53: 0 | H53: 0 | I53: 0 | J53: 0 | P53: =SUMIF(Calculations!$R$73:$R$91,$B53,Calculations!H$73:H$91) -> 0 | Q53: =SUMIF(Calculations!$R$73:$R$91,$B53,Calculations!I$73:I$91) -> 0 | R53: =SUMIF(Calculations!$R$73:$R$91,$B53,Calculations!J$73:J$91) -> 0 | S53: =SUMIF(Calculations!$R$73:$R$91,$B53,Calculations!K$73:K$91) -> 0 | T53: =SUMIF(Calculations!$R$73:$R$91,$B53,Calculations!L$73:L$91) -> 0 | U53: =SUMIF(Calculations!$R$73:$R$91,$B53,Calculations!M$73:M$91) -> 0 | V53: =SUMIF(Calculations!$R$73:$R$91,$B53,Calculations!N$73:N$91) -> 0
B54: =Inputs!A203 -> Substation switchbays | C54: 133.8179732 | D54: 4.733142871 | E54: 46.53993502 | F54: 69.76243682 | G54: 12.78245844 | H54: 0 | I54: 0 | J54: 0 | P54: =SUMIF(Calculations!$R$73:$R$91,$B54,Calculations!H$73:H$91) -> 5.803547731 | Q54: =SUMIF(Calculations!$R$73:$R$91,$B54,Calculations!I$73:I$91) -> 51.43425203 | R54: =SUMIF(Calculations!$R$73:$R$91,$B54,Calculations!J$73:J$91) -> 72.79365904 | S54: =SUMIF(Calculations!$R$73:$R$91,$B54,Calculations!K$73:K$91) -> 13.2668354 | T54: =SUMIF(Calculations!$R$73:$R$91,$B54,Calculations!L$73:L$91) -> 0 | U54: =SUMIF(Calculations!$R$73:$R$91,$B54,Calculations!M$73:M$91) -> 0 | V54: =SUMIF(Calculations!$R$73:$R$91,$B54,Calculations!N$73:N$91) -> 0
B55: =Inputs!A204 -> Substation power transformers | C55: 0 | D55: 0 | E55: 0 | F55: 0 | G55: 0 | H55: 0 | I55: 0 | J55: 0 | P55: =SUMIF(Calculations!$R$73:$R$91,$B55,Calculations!H$73:H$91) -> 0 | Q55: =SUMIF(Calculations!$R$73:$R$91,$B55,Calculations!I$73:I$91) -> 0 | R55: =SUMIF(Calculations!$R$73:$R$91,$B55,Calculations!J$73:J$91) -> 0 | S55: =SUMIF(Calculations!$R$73:$R$91,$B55,Calculations!K$73:K$91) -> 0 | T55: =SUMIF(Calculations!$R$73:$R$91,$B55,Calculations!L$73:L$91) -> 0 | U55: =SUMIF(Calculations!$R$73:$R$91,$B55,Calculations!M$73:M$91) -> 0 | V55: =SUMIF(Calculations!$R$73:$R$91,$B55,Calculations!N$73:N$91) -> 0
B56: =Inputs!A205 -> Substation reactive plant | C56: 0 | D56: 0 | E56: 0 | F56: 0 | G56: 0 | H56: 0 | I56: 0 | J56: 0 | P56: =SUMIF(Calculations!$R$73:$R$91,$B56,Calculations!H$73:H$91) -> 0 | Q56: =SUMIF(Calculations!$R$73:$R$91,$B56,Calculations!I$73:I$91) -> 0 | R56: =SUMIF(Calculations!$R$73:$R$91,$B56,Calculations!J$73:J$91) -> 0 | S56: =SUMIF(Calculations!$R$73:$R$91,$B56,Calculations!K$73:K$91) -> 0 | T56: =SUMIF(Calculations!$R$73:$R$91,$B56,Calculations!L$73:L$91) -> 0 | U56: =SUMIF(Calculations!$R$73:$R$91,$B56,Calculations!M$73:M$91) -> 0 | V56: =SUMIF(Calculations!$R$73:$R$91,$B56,Calculations!N$73:N$91) -> 0
B57: =Inputs!A206 -> Scada, network control and protection systems | C57: 11.80517331 | D57: 1.545097055 | E57: 7.910419711 | F57: 2.349656547 | G57: 0 | H57: 0 | I57: 0 | J57: 0 | P57: =SUMIF(Calculations!$R$73:$R$91,$B57,Calculations!H$73:H$91) -> 1.894522255 | Q57: =SUMIF(Calculations!$R$73:$R$91,$B57,Calculations!I$73:I$91) -> 8.742309607 | R57: =SUMIF(Calculations!$R$73:$R$91,$B57,Calculations!J$73:J$91) -> 2.451750617 | S57: =SUMIF(Calculations!$R$73:$R$91,$B57,Calculations!K$73:K$91) -> 0 | T57: =SUMIF(Calculations!$R$73:$R$91,$B57,Calculations!L$73:L$91) -> 0 | U57: =SUMIF(Calculations!$R$73:$R$91,$B57,Calculations!M$73:M$91) -> 0 | V57: =SUMIF(Calculations!$R$73:$R$91,$B57,Calculations!N$73:N$91) -> 0
B58: =Inputs!A207 -> Other network | C58: 5.009462768 | D58: =IF(P$60=0,0, (D$17-(D$84+D$90))*(P58/P$60))+D90 -> 0.6325644861 | E58: =IF(Q$60=0,0, (E$17-(E$84+E$90))*(Q58/Q$60))+E90 -> 2.592126688 | F58: 1.639458506 | G58: 0.1453130878 | H58: 0 | I58: 0 | J58: 0 | K58: Note: This category includes support or overhead costs assuming 30% of support costs relate to network based on reported network and corporate overheads in the 2021-22 Annual CA RIN | P58: =SUMIF(Calculations!$R$73:$R$91,$B58,Calculations!H$73:H$91) -> 0 | Q58: =SUMIF(Calculations!$R$73:$R$91,$B58,Calculations!I$73:I$91) -> 0 | R58: =SUMIF(Calculations!$R$73:$R$91,$B58,Calculations!J$73:J$91) -> 0 | S58: =SUMIF(Calculations!$R$73:$R$91,$B58,Calculations!K$73:K$91) -> 0 | T58: =SUMIF(Calculations!$R$73:$R$91,$B58,Calculations!L$73:L$91) -> 0 | U58: =SUMIF(Calculations!$R$73:$R$91,$B58,Calculations!M$73:M$91) -> 0 | V58: =SUMIF(Calculations!$R$73:$R$91,$B58,Calculations!N$73:N$91) -> 0
B60: Total | C60: =SUM(C50:C58) -> 236.659654 | D60: 9.95619582 | E60: 86.36449614 | F60: 127.4111905 | G60: 12.92777153 | H60: 0 | I60: 0 | J60: 0 | P60: =SUM(P50:P58) -> 11.43217962 | Q60: 92.58219122 | R60: 131.2365937 | S60: 13.2668354 | T60: 0 | U60: 0 | V60: 0
B63: Network capex - Total less table 6.1 | D63: =D17-D84 -> 9.95619582 | E63: =E17-E84 -> 86.36449614 | F63: 127.4111905 | G63: 12.92777153 | H63: 0 | I63: 0 | J63: 0
A64: =IF(SUM(D64:J64)=0,0,1) -> 0 | B64: Check - 4.1 Reconciliation | D64: =IF(ROUND(D60-D63,3)=0,0,1) -> 0 | E64: =IF(ROUND(E60-E63,3)=0,0,1) -> 0 | F64: 0 | G64: 0 | H64: 0 | I64: 0 | J64: 0
A66: 6. Non-network
B68: 6.1 Non-network expenditure (real $m, Jun 2024)
C69: =C$6 -> Total | D69: 2022-23 | E69: 2023-24 | F69: =F$6 -> 2024-25 | G69: =G$6 -> 2025-26 | H69: =H$6 -> 2026-27 | I69: =I$6 -> 2027-28 | J69: =J$6 -> 2028-29
B71: Opex
B72: =Inputs!A208 -> IT & Communications | C72: =SUM(D72:J72) -> 0
B73: =Inputs!A209 -> Motor Vehicles | C73: =SUM(D73:J73) -> 0
B74: =Inputs!A210 -> Buildings and Property | C74: =SUM(D74:J74) -> 0
B75: =Inputs!A211 -> Other non network | C75: =SUM(D75:J75) -> 0
B77: Total non-network opex | C77: =SUM(D77:J77) -> 0 | D77: =SUM(D72:D75) -> 0 | E77: 0 | F77: 0 | G77: 0 | H77: 0 | I77: 0 | J77: 0
B78: Capex
B79: =B72 -> IT & Communications | C79: =SUM(D79:J79) -> 0.169399468 | D79: 0 | E79: 0.169399468 | F79: 0 | G79: 0 | K79: Note: This category includes labour related 'IT Hardware expenses'
B80: =B73 -> Motor Vehicles | C80: =SUM(D80:J80) -> 0 | D80: 0 | E80: 0 | F80: 0 | G80: 0 | H80: 0 | I80: 0 | J80: 0
B81: =B74 -> Buildings and Property | C81: =SUM(D81:J81) -> 0 | D81: 0 | E81: 0 | F81: 0 | G81: 0 | H81: 0 | I81: 0 | J81: 0
B82: =B75 -> Other non network | C82: =SUM(D82:J82) -> 11.68874646 | D82: =D91 -> 1.475983801 | E82: 6.048295606 | F82: 3.82540318 | G82: 0.3390638716 | H82: 0 | I82: 0 | J82: 0 | K82: Note: This category includes support or overhead costs assuming 70% of support costs relate to non network based on reported network and corporate overheads in the 2021-22 Annual CA RIN
B84: Total non-network capex | C84: =SUM(D84:J84) -> 11.85814593 | D84: =SUM(D79:D82) -> 1.475983801 | E84: 6.217695074 | F84: 3.82540318 | G84: 0.3390638716 | H84: 0 | I84: 0 | J84: 0
B87: Labour and overhead costs | D87: =D69 -> 2022-23 | E87: =E69 -> 2023-24 | F87: 2024-25 | G87: 2025-26 | H87: 2026-27 | I87: 2027-28 | J87: 2028-29
B88: Total capex support costs | C88: Real 2024 Dollars | D88: 2.108548287 | E88: 8.640422294 | F88: 5.464861686 | G88: 0.4843769594 | K88: Note: Equates to 30% labour costs
B89: Network proportion of total capex support costs | C89: Percent | D89: 0.3 | E89: 0.3 | F89: 0.3 | G89: 0.3 | K89: Note: based on reported network and corporate overheads in our 2021-22 Annual CA RIN
B90: Network capex support costs | C90: Real 2024 Dollars | D90: =D88*D89 -> 0.6325644861 | E90: =E88*E89 -> 2.592126688 | F90: =F88*F89 -> 1.639458506 | G90: =G88*G89 -> 0.1453130878
B91: Non network capex support costs | C91: Real 2024 Dollars | D91: =D88*(1-D89) -> 1.475983801 | E91: =E88*(1-E89) -> 6.048295606 | F91: =F88*(1-F89) -> 3.82540318 | G91: =G88*(1-G89) -> 0.3390638716
B92: Labour-related (direct, 'IT Hardware expenses') | C92: Real 2024 Dollars | D92: 0 | E92: 0.169399468 | F92: 0 | G92: 0
A94: 7.1 Regulatory requirements/contractual arrangement costs
B96: 7.1 Regulatory requirements/contractual arrangement costs (real $)
C97: Total | D97: 2022-23 | E97: 2023-24 | F97: 2024-25 | G97: 2025-26 | H97: 2026-27 | I97: 2027-28 | J97: 2028-29
B99: Network Operator Appointment Fee | C99: =SUM(D99:J99) -> 0
B100: Regulatory submissions | C100: c-i-c | D100: c-i-c | E100: c-i-c | F100: c-i-c | G100: c-i-c | H100: c-i-c | I100: c-i-c | J100: c-i-c | K100: Note: Based on the 'Regulatory Approvals' cost category
B101: Environmental Approvals | C101: c-i-c | D101: c-i-c | E101: c-i-c | F101: c-i-c | G101: c-i-c | H101: c-i-c | I101: c-i-c | J101: c-i-c | K101: Note: Based on the 'Environment' cost category
B102: Independent Engineer | C102: c-i-c | D102: c-i-c | E102: c-i-c | F102: c-i-c | G102: c-i-c | H102: c-i-c | I102: c-i-c | J102: c-i-c
B103: SIPS Contract Management, Operations, Annual Testing, and Defect Rectification | C103: =SUM(D103:J103) -> 0
B105: Regulatory requirements/contractual arrangement costs | C105: 4440353.954 | D105: 1248389.091 | E105: 3191964.863 | F105: 0 | G105: 0 | H105: 0 | I105: 0 | J105: 0
A108: Checks
A110: =IF(SUM(D110:H110)=0,0,1) -> 0 | B110: Check - Table 4 | D110: =IF(ROUND(F17-'Outputs|Models'!K$21,3)=0,0,1) -> 0 | E110: =IF(ROUND(G17-'Outputs|Models'!L$21,3)=0,0,1) -> 0 | F110: =IF(ROUND(H17-'Outputs|Models'!M$21,3)=0,0,1) -> 0 | G110: =IF(ROUND(I17-'Outputs|Models'!N$21,3)=0,0,1) -> 0 | H110: =IF(ROUND(J17-'Outputs|Models'!O$21,3)=0,0,1) -> 0
A111: =IF(SUM(D111:H111)=0,0,1) -> 0 | B111: Check - Table 5 and 6 | D111: =IF(ROUND((F60+F84)-'Outputs|Models'!K$21,3)=0,0,1) -> 0 | E111: =IF(ROUND((G60+G84)-'Outputs|Models'!L$21,3)=0,0,1) -> 0 | F111: =IF(ROUND((H60+H84)-'Outputs|Models'!M$21,3)=0,0,1) -> 0 | G111: =IF(ROUND((I60+I84)-'Outputs|Models'!N$21,3)=0,0,1) -> 0 | H111: =IF(ROUND((J60+J84)-'Outputs|Models'!O$21,3)=0,0,1) -> 0
A113: End
